{"text_format":"1","workbook":"xlsx","n_sheets":29,"sheets":["Dane Wnioskodawcy","Dane dotyczące klastra","Lokalizacja projektu","Rachunek bankowy","Zaliczki","Podatek VAT","Rozpoczęcie projektu","Trwałość","Zasady horyzontalne","Wykonalność","Środowisko","Specyfikacja nowe usługi","Specyfikacja potencjał infrastr","Koszty pośrednie","Inwestycja początkowa","Spójna komunikacja","RSI","Nowe usługi","Doświadczenie","Formularz pomocy innej","Formularz pomocy de minimis","Pomoc de minimis","Kumulacja pomocy","Tajemnica przedsiębiorstwa","Oświadczenia","Słownik 2.7","słownik RIS","słownik koszty 1.3","Słownik"],"not_rendered":{"charts":0,"images":6,"macros":1,"external_links":2,"defined_names":52,"comments":3,"pivot_tables":0},"unopened":[],"bounds":{"document_bytes":16777216,"sheet_cells":100000,"rows_first":2000,"rows_last":500,"rows_between":2000,"halvings":0,"cell_chars":16384,"cell_head_chars":4096},"cells_cut":0,"cells_raw":0,"read":"whole","date_system":"1900"}

{"sheet":"Dane Wnioskodawcy","index":0,"n_rows":32,"n_cols":2,"rows_kept":32,"cut":false,"hidden":false,"merged":[]}
["Opis pola","Dane do wypełnienia"]
["Nazwa Wnioskodawcy"]
["NIP"]
["Numer naboru","FELU.02.08-IP.01-001/26"]
["Nazwa Działania","Budowa i rozwój powiązań klastrowych "]
["Data sporządzania dokumentu"]
["Lp.","Niniejszy dokument składa się z następujących zakładek/arkuszy (kliknij aby przejść do zakładki):"]
["1.","Dane dotyczące klastra"]
["2.","Lokalizacja projektu"]
["3.","Rachunek bankowy"]
["4.","Zaliczki"]
["5.","Podatek VAT"]
["6.","Rozpoczęcie projektu"]
["7.","Trwałość"]
["8.","Zasady horyzontalne"]
["9.","Środowisko "]
["10.","Wykonalność"]
["11.","Specyfikacja nowe usługi"]
["12.","Specyfikacja potencjał infrastr"]
["13.","Koszty pośrednie"]
["14.","Inwestycja początkowa"]
["15.","Spójna komunikacja"]
["16.","RSI"]
["17.","Nowe usługi"]
["18.","Doświadczenie"]
["19.","Formularz informacji przedstawianych przy ubieganiu się o pomoc inną niż pomoc w rolnictwie lub rybołówstwie, pomoc de minimis lub pomoc de minimis w rolnictwie lub rybołówstwie "]
["20.","Formularz informacji przedstawianych przy ubieganiu się o pomoc de minimis "]
["21.","Pomoc de minimis"]
["22.","Kumulacja pomocy"]
["23.","Tajemnica przedsiębiorstwa"]
["24.","Oświadczenia"]
[null,"Klauzula informacyjna Lubelskiej Agencji Wspierania Przedsiębiorczości w Lublinie (LAWP):Zgodnie z art. 47 ust. 1 pkt 2) ustawy z dnia 28 kwietnia 2022 r. o zasadach realizacji zadań finansowanych ze środków europejskich  w perspektywie finansowej 2021–2027 (ustawa wdrożeniowa) LAWP informuje, iż może wymagać od wnioskodawców oświadczeń na potwierdzenie faktów lub stanu prawnego, niezbędnych do oceny projektu lub objęcia go dofinansowanie.\nPonadto, zgodnie z art. 47 ust. 2 ustawy wdrożeniowej, oświadczenia o których mowa powyżej, są składane pod rygorem odpowiedzialności karnej za składanie fałszywych oświadczeń."]

{"sheet":"Dane dotyczące klastra","index":1,"n_rows":120,"n_cols":1,"rows_kept":120,"cut":false,"hidden":false,"merged":[]}
["Dane dotyczące klastra"]
["1. Dane klastra"]
["a) Nazwa klastra"]
["W wierszu poniżej należy wskazać aktualną nazwę klastra, który reprezentuje wnioskodawca."]
[]
["b) Data rozpoczęcia działalności klastra "]
["W wierszu poniżej należy wskazać datę rozpoczęcia działalności klastra (w formacie RRRR-MM-DD). Data powinna wynikać z prawomocnego dokumentu założycielskiego klastra (nie może być wcześniejsza od daty wejścia w życie postanowień tego dokumentu)."]
[]
["Uzasadnienie"]
["W wierszu poniżej należy opisać okoliczności powstania klastra, wskazać precyzyjnie dokument założycielski i wyjaśnić, w jaki sposób dokument ten potwierdza podaną datę rozpoczęcia działalności klastra. Należy wskazać, czy istnieją inne dokumenty regulujące funkcjonowanie klastra (jeśli tak – jakie)? Należy wyjaśnić, czy od powstania klastra zaistniały zmiany formalno-prawne dotyczące dokumentu założycielskiego klastra, ewentualnych innych kluczowych dokumentów regulujących działalność klastra albo podmiotu pełniącego rolę koordynatora klastra. W przypadku wystąpienia takich zmian scharakteryzuj je oraz uzasadnij, że zachodzi ciągłość prawna funkcjonowania klastra."]
[]
["c) Siedziba klastra"]
["W wierszu poniżej należy wskazać adres siedziby klastra."]
[]
["d) Adres strony www klastra"]
["W wierszu poniżej należy wskazać adres strony internetowej klastra."]
[]
["e) Liczba członków klastra ogółem "]
["W wierszu poniżej należy podać łączną liczbę członków klastra (z pominięciem koordynatora klastra). Dane muszą być spójne z informacjami przedstawionymi w Wykazie członków klastra, sporządzonym na wzorze stanowiącym załącznik nr I.7 do Regulaminu wyboru projektów, które wnioskodawca obligatoryjnie musi dołączyć do wniosku w ramach zał. Dokumenty dotyczące działalności klastra."]
[]
["f) Liczba przedsiębiorstw wchodzących w skład klastra "]
["Należy podać łączną liczbę członków klastra (z pominięciem koordynatora klastra), będących przedsiębiorstwami w rozumieniu Artykułu 1 załącznika I do rozporządzenia Komisji UE nr 651/2014. Dane muszą być spójne z informacjami przedstawionymi w Wykazie członków klastra, sporządzonym na wzorze stanowiącym załącznik nr I.7 do Regulaminu wyboru projektów, które wnioskodawca obligatoryjnie musi dołączyć do wniosku w ramach zał. Dokumenty dotyczące działalności klastra."]
[]
["g) Udział % przedsiębiorstw w strukturze klastra"]
["Dane poniżej wyliczane są automatycznie jako iloraz wartości pól „Liczba przedsiębiorstw wchodzących w skład klastra” i „Liczba członków klastra ogółem”."]
[{"$f":"A23/A20","v":{"$error":"#DIV/0!"}}]
["h) Osoba upoważniona do zarządzania klastrem"]
["W wierszu poniżej należy wskazać imię i nazwisko oraz adres e-mail osoby upoważnionej do zarządzania klastrem."]
[]
["i) Dane teleadresowe klastra "]
["W wierszu poniżej należy wskazać adres do korespondencji, nr telefonu, e-mail klastra."]
[]
["2. Klaster innowacyjny w rozumieniu art. 2 pkt 92 Rozporządzenia Komisji (UE) nr 651/2014?"]
["Klastry innowacyjne zgodnie z art. 2 pkt 92 Rozporządzenia Komisji (UE) nr 651/2014 oznaczają struktury lub zorganizowane skupiska niezależnych podmiotów (takich jak: innowacyjne przedsiębiorstwa typu start-up, małe, średnie i duże przedsiębiorstwa, a także organizacje prowadzące badania i upowszechniające wiedzę, infrastruktury badawcze, infrastruktury testowo-doświadczalne, centra innowacji cyfrowych, organizacje niedochodowe i inne powiązane podmioty gospodarcze), mające na celu stymulowanie działalności innowacyjnej oraz nowych sposobów współpracy, w tym za pomocą środków cyfrowych, dzięki wspólnemu korzystaniu lub promowaniu wspólnego korzystania z obiektów oraz wymianie informacji i wiedzy fachowej oraz dzięki skutecznemu przyczynianiu się do transferu wiedzy, tworzenia sieci kontaktów oraz rozpowszechniania informacji i współpracy wśród przedsiębiorstw i innych organizacji wchodzących w skład danego klastra. \nCentra innowacji cyfrowych, których celem jest stymulowanie powszechnego wprowadzania przez przemysł (w szczególności przez MŚP) i organizacje sektora publicznego technologii cyfrowych, takich jak sztuczna inteligencja, przetwarzanie w chmurze, przetwarzanie danych na obrzeżach sieci i obliczenia wielkiej skali oraz cyberbezpieczeństwo kwalifikuje się jako klastry innowacyjne. \nJeżeli klaster reprezentowany przez wnioskodawcę, nie spełnia definicji klastra innowacyjnego projekt nie kwalifikuje się do wsparcia."]
["W wierszu poniżej należy wskazać czy klaster reprezentowany przez wnioskodawcę spełnia definicję klastra innowacyjnego w rozumieniu art. 2 pkt 92 Rozporządzenia Komisji (UE) nr 651/2014?"]
[]
["Uzasadnienie"]
["W wierszu poniżej należy uzasadnić udzieloną odpowiedź."]
[]
["3. Koordynator Krajowego Klastra Kluczowego"]
["Definicja koordynatora klastra oraz Krajowego Klastra Kluczowego znajdują się w Rozdz. 2 Regulaminu. Jeżeli koordynator klastra (wnioskodawca) jest podmiotem reprezentującym klaster, który na dzień składania wniosku posiada aktualny status Krajowego Klastra Kluczowego uzyskany w konkursie o status Krajowego Klastra Kluczowego, którego organizatorem było Ministerstwo Rozwoju i Technologii lub następcą prawnym tego podmiotu (reprezentującego klaster) projekt nie kwalifikuje się do wsparcia. "]
["W wierszu poniżej należy wskazać czy koordynator klastra (wnioskodawca) nie jest podmiotem reprezentującym Krajowy Klaster Kluczowy? "]
[]
["4. Klaster zalążkowy"]
["Definicja klastra zalążkowego znajdują się w Rozdz. 2 Regulaminu. "]
["W wierszu poniżej należy wskazać czy klaster reprezentowany przez wnioskodawcę spełnia kryteria klastra zalążkowego według krajowej polityki klastrowej? "]
[]
["Wybierając opcję „TAK” należy złożyć wyjaśnia dotyczące warunków jakie musi spełniać klaster zalążkowy, które zostały opisane w polach poniżej.\nAby klaster został zakwalifikowany jako klaster zalążkowy muszą być spełnione wszystkie opisane poniżej warunki."]
["a) Okres działalności klastra"]
["W wierszu poniżej należy wskazać czy klaster działa co najmniej 12 miesięcy przed złożeniem wniosku o dofinansowanie?"]
[]
["b) Ilość członków klastra"]
["W wierszu poniżej należy wskazać czy klaster zrzesza minimum 15 członków (w tym przynajmniej 2/3 liczby członków powinny stanowić przedsiębiorstwa)?"]
[]
["c) Opis usług"]
["W wierszu poniżej należy wskazać czy w okresie ostatnich 12 miesięcy przed złożeniem wniosku o dofinansowanie na rzecz członków klastra były świadczone usługi informacyjno-promocyjne, szkoleniowe lub usługi doradcze przez koordynatora klastra lub za jego pośrednictwem?"]
[]
["W przypadku wyboru opcji \"TAK\" należy opisać zakres zrealizowanych usług oraz wskazać czy były skierowane do wszystkich zainteresowanych członków klastra czy tylko do wybranych podmiotów oraz podać liczbę podmiotów/członków klastra zostało objętych poszczególnymi usługami."]
[]
["d) Opis wspólnego projektu"]
["W wierszu poniżej należy wskazać czy został zrealizowany minimum 1 wspólny projekt, w którym brał udział co najmniej koordynator klastra i dwa inne podmioty należące do klastra albo co najmniej 3 podmioty należące do klastra bez udziału koordynatora?\nPrzez wspólny projekt rozumie się przedsięwzięcie, realizowane w oparciu o umowę, z określonym budżetem, ramami czasowymi oraz rezultatami"]
[]
["W wierszu poniżej należy wskazać cele i zakres zrealizowanego wspólnego projektu, czas trwania, budżet, jego uczestników oraz uzyskane rezultaty"]
[]
["e) Wydarzenia branżowe"]
["W wierszu poniżej należy wskazać czy klaster brał udział w wydarzeniach branżowych, dedykowanym klastrom lub targach?"]
[]
["W wierszu poniżej należy wskazać liczbę wydarzeń branżowych/imprez targowo-wystawienniczych, nazwę danej imprezy i termin, w jakim się odbyła oraz podmioty z klastra, biorące udział w danej imprezie."]
[]
["5. Klaster wzrostowy regionalny"]
["Definicja klastra wzrostowego regionalnego znajdują się w Rozdz. 2 Regulaminu. "]
["W wierszu poniżej należy wskazać czy klaster reprezentowany przez wnioskodawcę spełnia kryteria klastra wzrostowego regionalnego? "]
[]
["Wybierając opcję „TAK” należy złożyć wyjaśnia dotyczące warunków jakie musi spełniać klaster wzrostowy regionalny, które zostały opisane w polach poniżej.\nAby klaster został zakwalifikowany jako klaster wzrostowy regionalny muszą być spełnione wszystkie opisane poniżej warunki."]
["a) Okres działalności klastra"]
["W wierszu poniżej należy wskazać czy klaster działa co najmniej 24 miesięcy przed złożeniem wniosku o dofinansowanie?"]
[]
["b) Ilość członków klastra"]
["W wierszu poniżej należy wskazać czy klaster zrzesza minimum 25 członków (w tym przynajmniej 2/3 liczby członków powinny stanowić przedsiębiorstwa)?"]
[]
["c) Przynależność ośrodka innowacji do klastra"]
["W wierszu poniżej należy wskazać czy członkiem klastra jest minimum 1 ośrodek innowacji (do ośrodków innowacji zalicza się: parki technologiczne, naukowe, naukowo-technologiczne, przemysłowo-technologiczne, techno-parki; inkubatory technologiczne; centra transferu technologii; centra innowacji)?"]
[]
["W przypadku wyboru opcji \"TAK\" należy podać nazwy ośrodków innowacji będących członkami klastra.\nDane muszą być spójne z informacjami przedstawionymi w Wykazie członków klastra, sporządzonym na wzorze stanowiącym załącznik nr I.7 do Regulaminu wyboru projektów, które wnioskodawca obligatoryjnie musi dołączyć do wniosku w ramach zał. Dokumenty dotyczące działalności klastra."]
[]
["d) Członkostwo podmiotów w klastrze powyżej 12 miesięcy"]
["W wierszu poniżej należy wskazać czy udział członków będących w klastrze powyżej 12 miesięcy przed złożeniem wniosku o dofinansowanie wynosi nie mniej niż 50%?\nDeklaracja w tym zakresie musi być spójna z danymi przedstawionymi w Wykazie członków klastra, sporządzonym na wzorze stanowiącym załącznik nr I.7 do Regulaminu wyboru projektów, które wnioskodawca obligatoryjnie musi dołączyć do wniosku w ramach zał. Dokumenty dotyczące działalności klastra."]
[]
["e) Członkostwo w klastrze podmiotów prowadzących działalność B+R"]
["W wierszu poniżej należy wskazać czy przynajmniej jeden podmiot będący członkiem klastra prowadzi działalność badawczo-rozwojową?"]
[]
["W przypadku wyboru opcji \"TAK\" należy podać nazwy podmiotów będących członkami klastra, które prowadzą działalność badawczo-rozwojową.\nDane muszą być spójne z informacjami przedstawionymi w Wykazie członków klastra, sporządzonym na wzorze stanowiącym załącznik nr I.7 do Regulaminu wyboru projektów, które wnioskodawca obligatoryjnie musi dołączyć do wniosku w ramach zał. Dokumenty dotyczące działalności klastra. Działalność B+R może być uznana jedynie wówczas, gdy dany przedsiębiorca poniósł udokumentowane wydatki na B+R, ujęte w sprawozdaniu PNT-01 o działalności badawczej i rozwojowej składanym do GUS za ostatni zakończony rok obrotowy. Należy krótko opisać prowadzoną przez wskazany podmiot działalność B+R."]
[]
["f) Udział w klastrze uczelni wyższych/ośrodków naukowych/jednostek B+R"]
["W wierszu poniżej należy wskazać czy uczelnia wyższa/ośrodek naukowy/ jednostka badawczo-rozwojowa jest członkiem/partnerem klastra przez okres powyżej 12 miesięcy przed złożeniem wniosku o dofinansowanie?"]
[]
["W przypadku wyboru opcji \"TAK\" należy podać nazwy uczelni wyższych/ośrodków naukowych/ jednostek badawczo-rozwojowych będących członkami lub partnerami klastra oraz wskazać datę przystąpienia danego podmiotu do klastra.\nDane muszą być spójne z informacjami przedstawionymi w Wykazie członków klastra, sporządzonym na wzorze stanowiącym załącznik nr I.7 do Regulaminu wyboru projektów, które wnioskodawca obligatoryjnie musi dołączyć do wniosku w ramach zał. Dokumenty dotyczące działalności klastra."]
[]
["g) Opis usług"]
["W wierszu poniżej należy wskazać czy w okresie ostatnich 12 miesięcy przed złożeniem wniosku o dofinansowanie na rzecz członków klastra były świadczone usługi informacyjno-promocyjne, szkoleniowe lub usługi doradcze przez koordynatora klastra lub za jego pośrednictwem?"]
[]
["W przypadku wyboru opcji \"TAK\" należy opisać zakres zrealizowanych usług oraz wskazać czy były skierowane do wszystkich zainteresowanych członków klastra czy tylko do wybranych podmiotów oraz podać liczbę podmiotów/członków klastra zostało objętych poszczególnymi usługami."]
[]
["h) Opis wspólnego projektu"]
["W wierszu poniżej należy wskazać czy został zrealizowany minimum 1 wspólny projekt, w którym brał udział co najmniej koordynator klastra i dwa inne podmioty należące do klastra albo co najmniej 3 podmioty należące do klastra bez udziału koordynatora?\nPrzez wspólny projekt rozumie się przedsięwzięcie, realizowane w oparciu o umowę, z określonym budżetem, ramami czasowymi oraz rezultatami."]
[]
["W przypadku wyboru opcji \"TAK\" należy wskazać cele i zakres zrealizowanego wspólnego projektu, czas trwania, budżet, jego uczestników oraz uzyskane rezultaty."]
[]
["i) Opis wspólnego projektu B+R"]
["W wierszu poniżej należy wskazać czy został zrealizowany minimum 1 wspólny projekt badawczy-rozwojowy, w którym brał udział co najmniej koordynator klastra i dwa inne podmioty należące do klastra albo co najmniej 3 podmioty należące do klastra bez udziału koordynatora?\nPrzez wspólny projekt rozumie się przedsięwzięcie, realizowane w oparciu o umowę, z określonym budżetem, ramami czasowymi oraz rezultatami."]
[]
["W przypadku wyboru opcji \"TAK\" należy wskazać cele i zakres zrealizowanego wspólnego projektu badawczo-rozwojowego, czas trwania, budżet, jego uczestników oraz uzyskane rezultaty."]
[]
["j) Wydarzenia branżowe"]
["W wierszu poniżej należy wskazać czy klaster brał udział w wydarzeniach branżowych, dedykowanym klastrom lub targach? "]
[]
["W przypadku wyboru opcji \"TAK\" należy wskazać liczbę wydarzeń branżowych/imprez targowo-wystawienniczych, nazwę danej imprezy i termin, w jakim się odbyła "]
[]
["k) Działalność klastra prowadzona ze środków własnych"]
["W wierszu poniżej należy wskazać czy działalność klastra prowadzona jest m.in. ze środków własnych – za ostatni zakończony okres składkowy określony zgodnie z przyjętymi uregulowaniami wewnętrznymi co najmniej 50% członków klastra wniosło opłaty członkowskie lub udostępniło swoją infrastrukturę na działalność wspólną klastra?\nDeklaracja w tym zakresie musi być spójna z danymi przedstawionymi w Wykazie członków klastra, sporządzonym na wzorze stanowiącym załącznik nr I.7 do Regulaminu wyboru projektów, które wnioskodawca obligatoryjnie musi dołączyć do wniosku w ramach zał. Dokumenty dotyczące działalności klastra."]

{"sheet":"Lokalizacja projektu","index":2,"n_rows":7,"n_cols":11,"rows_kept":7,"cut":false,"hidden":false,"merged":[[0,0,0,10]]}
["Miejsce realizacji projektu\nW tabeli poniżej należy wskazać miejsca, gdzie będzie realizowany projekt. W przypadku gdy projekt posiada wiele lokalizacji, należy wskazać wszystkie miejsca lokalizacji projektu. Przez pojęcie lokalizacji projektu należy rozumieć miejsce lub miejsca na obszarze województwa lubelskiego, bezpośrednio związane z jego realizacją."]
["Lp.","Województwo","Powiat","Gmina","Miejscowość","Kod pocztowy","Ulica","Numer budynku","Numer lokalu ","Numer księgi wieczystej nieruchomości, na której zlokalizowany jest projekt","Numer działki"]
[null,"W polu poniżej należy podać nazwę województwa w którym będzie zlokalizowany projekt","W polu poniżej należy wskazać powiat","W polu poniżej należy wskazać gminę","W polu poniżej należy wskazać miejscowość","W polu poniżej należy wskazać kod pocztowy miejscowości ","W polu poniżej należy wskazać ulicę","W polu poniżej należy wskazać numer budynku","W polu poniżej należy wskazać numer lokalu","W polu poniżej należy podać numer księgi wieczystej w następującym formacie XXXX/XXXXXXXX/X. Jeżeli jedna nieruchomość będąca lokalizacją projektu objęta jest więcej niż jedną księgą wieczystą należy wymienić wszystkie numery ksiąg dotyczące realizowanej inwestycji, czytelnie oddzielając je od siebie.","W polu poniżej należy podać numer działki, na której zlokalizowana jest nieruchomość lub na której będzie realizowana inwestycja, jeżeli działka jest niezabudowana. Jeżeli jedna nieruchomość będąca lokalizacją znajduje się na kilku działkach lub inwestycja jest realizowana na kilku działkach niezabudowanych należy wymienić wszystkie numery działek, czytelnie oddzielając je od siebie."]
[1,"Lubelskie"]
[2,"Lubelskie"]
[3,"Lubelskie"]
[4,"Lubelskie"]

{"sheet":"Rachunek bankowy","index":3,"n_rows":2,"n_cols":1,"rows_kept":2,"cut":false,"hidden":false,"merged":[]}
["Rachunek bankowy"]
["W wierszu poniżej należy wskazać numer rachunku bankowego, na który LAWP będzie przekazywać płatności w formie refundacji. Jeżeli na dzień składania wniosku, wnioskodawca nie dysponuje wyodrębnionym rachunkiem bankowym, wówczas istnieje możliwość wskazania numeru rachunku bankowego przed podpisaniem umowy o dofinansowanie (w takim przypadku należy pole poniżej pozostawić puste)."]

{"sheet":"Zaliczki","index":4,"n_rows":4,"n_cols":1,"rows_kept":4,"cut":false,"hidden":false,"merged":[]}
["Deklaracja korzystania z płatności zaliczkowych"]
["W wierszu poniżej należy wskazać czy wnioskodawca zamierza finansować realizację projektu w formie zaliczki, wybierając TAK/NIE."]
[]
["Jeżeli wnioskodawca zamierza finansować projekt w formie zaliczki, należy wskazać w wierszu poniżej wyodrębniony numer rachunku bankowego. Jeżeli na dzień składania wniosku, wnioskodawca nie dysponuje wyodrębnionym rachunkiem bankowym do celów zaliczkowych, wówczas istnieje możliwość wskazania numeru rachunku bankowego przed podpisaniem umowy o dofinansowaniem (w takim przypadku należy pole poniżej pozostawić puste)."]

{"sheet":"Podatek VAT","index":5,"n_rows":4,"n_cols":1,"rows_kept":4,"cut":false,"hidden":false,"merged":[]}
["Kwalifikowalność podatku VAT"]
["W poniższym polu należy wskazać, czy wnioskodawca ma możliwość odzyskania VAT. Jeżeli wnioskodawca ma zgodnie z obowiązującymi przepisami prawa możliwość odzyskania podatku VAT tj. obniżenia kwoty podatku należnego o kwotę podatku naliczonego lub ubiegania się o zwrot VAT wówczas należy wybrać TAK, a podatek VAT stanowi w takim przypadku koszty niekwalifikowalne projektu (UWAGA! Dla uznania podatku VAT za niekwalifikowalny wystarczające jest posiadanie prawa, tj. potencjalnej możliwości prawnej, do ubiegania się o zwrot VAT, nawet jeśli faktycznie zwrot nie nastąpi np. ze względu na niepodjęcie czynności zmierzających do realizacji tego prawa).\nJeżeli wnioskodawca zgodnie z obowiązującymi przepisami prawa nie ma możliwości odzyskania podatku VAT, tj. obniżenia kwoty podatku należnego o kwotę podatku naliczonego lub ubiegania się o zwrot VAT wówczas, należy wybrać opcję \"NIE\"."]
[]
["W przypadku wybrania opcji NIE w wierszu poniżej należy wskazać podstawy prawne oraz opisać, z czego wynika brak możliwości odzyskania VAT i/lub brak możliwości ubiegania się o zwrot VAT."]

{"sheet":"Rozpoczęcie projektu","index":6,"n_rows":4,"n_cols":1,"rows_kept":4,"cut":false,"hidden":false,"merged":[]}
["Rozpoczęcie projektu"]
["W wierszu poniżej należy wskazać czy wnioskodawca przed dniem złożenia wniosku o dofinansowanie podejmował czynności związane lub służące rozpoczęciu realizacji projektu."]
[]
["Jeżeli w pytaniu powyżej wybrano opcję TAK, w wierszu poniżej należy opisać jakie działania w związku z rozpoczęciem realizacji projektu zostały podjęte przez wnioskodawcę (np. prace przygotowawcze, uzyskanie niezbędnych zezwoleń, decyzji, opracowanie niezbędnych do wdrożenia projektu dokumentów itp.). Jeżeli wnioskodawca podejmował działania związane z realizacją przedmiotowego projektu, dla każdego z tych działań należy wskazać daty ich przeprowadzenia oraz wskazać czy działania zostały ukończone i jakie są ich ewentualne efekty. Jeżeli wnioskodawca rozpoczął realizację projektu i Regulamin wyboru projektów dopuszcza taką możliwość, należy jednoznacznie wskazać czy projekt realizowany był dotychczas zgodnie z prawem krajowym i unijnym oraz nie został fizycznie ukończony lub w pełni wdrożony przed przedłożeniem wniosku o dofinansowanie w ramach naboru, niezależnie od tego, czy dokonano wszystkich powiązanych płatności\nJeżeli wybrano opcję NIE wiersz poniżej może pozostać niewypełniony."]

{"sheet":"Trwałość","index":7,"n_rows":2,"n_cols":1,"rows_kept":2,"cut":false,"hidden":false,"merged":[]}
["Zachowanie trwałości projektu"]
["W wierszu poniżej należy opisać warunki zachowania trwałości projektu w odniesieniu do art. 65 Rozporządzenia Parlamentu Europejskiego i Rady (UE) nr 2021/1060, w tym złożyć deklarację że trwałość zostanie zachowana przez wymagany okres, w zależności od statusu przedsiębiorstwa. Wnioskodawca zobligowany jest do zachowania okresu trwałości, zgodnie z art. 65 Rozporządzenia ogólnego, tj. 5 lat od zakończenia realizacji projektu, natomiast w przypadku MŚP 3 lata od zakończenia realizacji projektu. Zgodnie z art. 65 trwałość operacji nie zostanie zachowana w przypadku: a) zaprzestania lub przeniesienia działalności produkcyjnej poza region na poziomie NUTS 2, w którym dana operacja otrzymała wsparcie; b) zmiany własności elementu infrastruktury, która daje przedsiębiorstwu lub podmiotowi publicznemu nienależną korzyść; c) istotnej zmiany wpływającej na charakter operacji, jej cele lub warunki wdrażania, mogącej doprowadzić do naruszenia pierwotnych celów operacji."]

{"sheet":"Zasady horyzontalne","index":8,"n_rows":15,"n_cols":1,"rows_kept":15,"cut":false,"hidden":false,"merged":[]}
["Zasady horyzontalne (na podstawie art. 9 ust. 1-4 Rozporządzenia Parlamentu Europejskiego i Rady (UE) 2021/1060 z dnia 24 czerwca 2021 r.)"]
["Zgodność z Kartą Praw Podstawowych Unii Europejskiej"]
["W wierszu poniżej należy opisać czy projekt jest zgodny z Kartą Praw Podstawowych Unii Europejskiej, w zakresie odnoszącym się do sposobu realizacji i zakresu projektu. Należy wskazać z jakimi aspektami Karty Praw Podstawowych projekt jest zgodny i w jaki sposób przejawia się ww. zgodność w projekcie. Zgodność projektu z Kartą Praw Podstawowych Unii Europejskiej należy rozumieć jako brak sprzeczności pomiędzy zapisami projektu a wymogami tego dokumentu lub stwierdzenie, że te wymagania są neutralne wobec zakresu i zawartości projektu. Zastosowanie mają Wytyczne Komisji Europejskiej dotyczące zapewnienia poszanowania Karty praw podstawowych Unii Europejskiej przy wdrażaniu europejskich funduszy strukturalnych i inwestycyjnych, w szczególności załącznik nr III."]
[]
["Zgodność z zasadą równości mężczyzn i kobiet"]
["W wierszu poniżej należy opisać czy projekt ma pozytywny wpływ na zasadę równości mężczyzn i kobiet. Należy wskazać w jaki sposób przejawia się ww. zgodność w projekcie. Przez zgodność z tą zasadą należy rozumieć, z jednej strony zaplanowanie takich działań w projekcie, które wpłyną na wyrównywanie szans danej płci będącej w gorszym położeniu (o ile takie nierówności zostały zdiagnozowane w projekcie), z drugiej strony zaś stworzenie takich mechanizmów, aby na żadnym etapie wdrażania projektu nie dochodziło do dyskryminacji i wykluczenia ze względu na płeć. Dopuszczalne jest także uznanie neutralności projektu w stosunku do zasady równości kobiet i mężczyzn. O neutralności można mówić jednak tylko wtedy, kiedy wnioskodawca uzasadni, dlaczego dany projekt nie jest w stanie zrealizować jakichkolwiek działań w zakresie spełnienia ww. zasady."]
[]
["Zgodność z zasadami dostępności dla osób z niepełnosprawnościami, w tym z koncepcją uniwersalnego projektowania "]
["W wierszu poniżej należy opisać czy projekt ma pozytywny bądź neutralny wpływ na realizację zasad dostępności dla osób z niepełnosprawnościami zgodnie z Wytycznymi dotyczącymi realizacji zasad równościowych w ramach funduszy unijnych na lata 2021-2027, w tym czy realizacja projektu uwzględnia działania zgodne z koncepcją uniwersalnego projektowania. Należy szczegółowo opisać, które rozwiązania zastosowane w projekcie mają pozytywny wpływ na realizację zasad dostępności i wyjaśnić dlaczego lub wskazać że projekt w tym zakresie jest neutralny i wyjaśnić dlaczego. Ponadto należy szczegółowo opisać w jakim zakresie w projekcie ma zastosowanie uniwersalne projektowanie i w jaki sposób przejawia się to w projekcie. W opisie należy się odwoływać do aspektów, które zostały szczegółowo opisane w Wytycznych dotyczących realizacji zasad równościowych w ramach funduszy unijnych na lata 2021-2027, w tym do standardów dostępności."]
[]
["Zgodność z Konwencją o Prawach Osób Niepełnosprawnych"]
["W wierszu poniżej należy opisać czy projekt jest zgodny z Konwencją o Prawach Osób Niepełnosprawnych, w zakresie odnoszącym się do sposobu realizacji, zakresu projektu i wnioskodawcy. Należy wskazać z jakimi aspektami Konwencji o Prawach Osób Niepełnosprawnych projekt jest zgodny i w jaki sposób przejawia się ww. zgodność w projekcie. Zgodność projektu z Konwencją o Prawach Osób Niepełnosprawnych należy rozumieć jako brak sprzeczności pomiędzy zapisami projektu a wymogami tego dokumentu lub stwierdzenie, że te wymagania są neutralne wobec zakresu i zawartości projektu."]
[]
["Zgodnośc z zasadami niedyskryminacji"]
["W wierszu poniżej należy opisać czy realizacja projektu nie będzie skutkować jakąkolwiek dyskryminacją ze względu na płeć, rasę lub pochodzenie etniczne, religię lub światopogląd, niepełnosprawność, wiek lub orientację seksualną. Należy wskazać w jaki sposób brak dyskryminacji przejawia się w projekcie."]

{"sheet":"Wykonalność","index":9,"n_rows":3,"n_cols":1,"rows_kept":3,"cut":false,"hidden":false,"merged":[]}
["Wykonalność"]
["Decyzje administracyjne i uzgodnienia z właściwymi organami"]
["W wierszu poniżej należy wskazać czy realizacja projektu wymaga uzyskania decyzji administracyjnych i/lub innych uzgodnień z właściwymi organami lub opinii z właściwych organów (np. zgoda komisji bioetycznej, pozwolenie na budowę, dokonanie zgłoszenia robót budowalnych, opinie/decyzje dotyczące przeprowadzenia postepowania OOŚ, zgoda konserwatora zabytków itp.). Jeżeli realizacja projektu wymaga uzyskania decyzji administracyjnych i/lub innych uzgodnień lub opinii z właściwych organów, należy wskazać jakich oraz czy wnioskodawca już je pozyskał (jeśli tak to kiedy) czy dopiero planuje ich pozyskanie (jeśli tak to kiedy)."]

{"sheet":"Środowisko","index":10,"n_rows":67,"n_cols":1,"rows_kept":67,"cut":false,"hidden":false,"merged":[]}
["Sekcja I. Zgodność z zasadą „nie czyń poważnych szkód” (DNSH - Do No Significant Harm) "]
["Zasada \"nie czyń poważnych szkód\" DNSH wynika z art. 9 ust. 4 Rozporządzenia Parlamentu Europejskiego i Rady (UE) 2021/1060 z dnia 24 czerwca 2021 r. ustanawiającego wspólne przepisy dotyczące Europejskiego Funduszu Rozwoju Regionalnego, Europejskiego Funduszu Społecznego Plus, Funduszu Spójności, Funduszu na rzecz Sprawiedliwej Transformacji i Europejskiego Funduszu Morskiego, Rybackiego i Akwakultury, a także przepisy finansowe na potrzeby tych funduszy oraz na potrzeby Funduszu Azylu, Migracji i Integracji, Funduszu Bezpieczeństwa Wewnętrznego i Instrumentu Wsparcia Finansowego na rzecz Zarządzania Granicami i Polityki Wizowej). \nZasada DNSH dotyczy niewspierania ani nieprowadzenia działalności gospodarczej, która powoduje znaczące szkody dla któregokolwiek z celów środowiskowych określonych w art. 17 Rozporządzenia Parlamentu Europejskiego i Rady (UE) 2020/852 z dnia 18 czerwca 2020 r. w sprawie ustanowienia ram ułatwiających zrównoważone inwestycje, zmieniającego rozporządzenie (UE) 2019/2088 (Tekst mający znaczenie dla EOG), dalej rozporządzenie o taksonomii.\nProjekt podlega ocenie względem sześciu poniżej wskazanych celów środowiskowych. Należy wybrać odpowiedź TAK/NIE/NIE DOTYCZY w każdym z poniższych pytań oraz uzasadnić odpowiedź w polu opisowym, zgodnie z poniższymi instrukcjami. Aby można było uznać że projekt jest zgodny z zasadą DNSH nie może powodować znaczących szkód względem 6 celów środowiskowych wymienionych poniżej. Przy ocenie należy uwzględnić zarówno skutki środowiskowe samej działalności której dotyczy przedsięwzięcie, jak również wpływ, jaki na środowisko mają produkty dostarczane i usługi świadczone w ramach tej działalności przez cały cykl ich życia, szczególnie z uwzględnieniem wytwarzania, użytkowania i zakończenia cyklu życia tych produktów i usług."]
["Cel 1: Łagodzenie zmian klimatu: Czy projekt doprowadzi do znacznych emisji gazów cieplarnianych?"]
[]
["Zgodnie z art. 17 ust. 1 lit. a) rozporządzenia o taksonomii, jeżeli projekt prowadzi do znacznych emisji gazów cieplarnianych to wyrządza poważne szkody dla środowiska i jest niezgodny z zasadą DNSH. W przypadku wskazania odpowiedzi \"NIE\" należy opisać w poniższym polu, w jaki sposób realizacja projektu przyczynia się do realizacji celów polityki ochrony środowiska oraz w jaki sposób wpisuje się w cele klimatyczne określone w Strategii Europejski Zielony Ład, Prawie Klimatycznym, Pakiecie energetyczno - klimatycznym, Krajowym Planie na Rzecz Energii i Klimatu na lata 2021-2030, w cel dążenia do neutralności klimatycznej do roku 2050. W przypadku udzielania odpowiedzi TAK projekt nie może kwalifikować się do wsparcia."]
[]
["Cel 2: Adaptacja do zmian klimatu: Czy projekt doprowadzi do zwiększonego niekorzystnego wpływu obecnego i spodziewanego przyszłego klimatu na samo działanie lub na ludność, przyrodę lub aktywa?"]
[]
["Zgodnie z art. 17 ust. 1 lit. b) rozporządzenia o taksonomii, jeżeli działalność prowadzi do nasilenia niekorzystnych skutków obecnych i oczekiwanych, dla przyszłych warunków klimatycznych, wywieranych na tę działalność lub na ludzi, przyrodę lub aktywa to wpływa znacząco na środowisko i jest niezgodny z zasadą DNSH.\nW przypadku wskazania odpowiedzi \"NIE\" należy opisać w poniższym polu:\n- w jaki sposób uwzględniono zagrożenia związane ze zmianami klimatu (np. obciążenia śniegiem, wiatrem, różnicy temperatur i odziaływania np. fali upałów, zagrożenia powodziowego, suszy), \n- w jaki sposób uwzględniono kwestie dotyczące przystosowania się do zmian klimatu i ich łagodzenia oraz odporności na klęski żywiołowe,\n- czy w trakcie przygotowywania projektu przeprowadzono ocenę zagrożeń wynikających ze zmian klimatycznych lub kontrolę podatności (ocenę ryzyka związanego prognozowanymi zmianami klimat lub analizę podatności),\n- w jaki sposób projekt odnosi się do strategii krajowej lub regionalnej w zakresie przystosowania się do zmian klimatu,\n- czy projekt w połączeniu ze zmianami klimatu będzie miał jakikolwiek pozytywny lub negatywny wpływ na otoczenie,\n- czy zmiany klimatu wpłynęły na wybór lokalizacji projektu.\nW przypadku udzielania odpowiedzi \"TAK\" projekt nie może kwalifikować się do wsparcia."]
[]
["Cel 3: Zrównoważone wykorzystywanie i ochrona zasobów wodnych i morskich: Czy projekt obejmuje zmiany charakterystyki fizycznej lub chemicznej części wód powierzchniowych, wód gruntowych lub zmiany poziomu części wód podziemnych, które pogarszają stan jednolitej części wód lub uniemożliwiają osiągnięcie dobrego stanu wód w tym stanu wód morskich? "]
[]
["Cele dla osiągnięcia dobrego stanu ekologicznego i chemicznego wód powierzchniowych, jak również dobrego stanu chemicznego i ilościowego wód podziemnych wyznacza Dyrektywa 2000/60/WE Parlamentu Europejskiego i Rady z dnia 23 października 2000 r. ustanawiająca ramy wspólnotowego działania w dziedzinie polityki wodnej (Ramowa dyrektywa wodna). Osiągnięcie celów ww. Dyrektywy wspierane jest poprzez opracowanie niezbędnych dokumentów planistycznych, jakimi są Plany gospodarowania wodami na obszarach dorzeczy oraz Program wodnośrodowiskowy kraju, w tym w oparciu o Ustawę z dnia 20 lipca 2017 r. Prawo wodne. Zgodnie z art. 17 ust. 1 lit. c) rozporządzenia o taksonomii, jeżeli projekt będzie zagrażał dobremu stanowi lub dobremu potencjałowi ekologicznemu jednolitych części wód, w tym wód powierzchniowych i wód gruntowych lub dobremu stanowi środowiska wód morskich to wpływa znacząco na środowisko i jest niezgodny z zasadą DNSH. Dotyczy projektów infrastrukturalnych, które z racji swojego charakteru i zakresu mogą oddziaływać na określoną jednolitą część wód. W pozostałych przypadkach można uznać neutralny charakter projektu i wówczas należy wybrać opcję \"NIE DOTYCZY\", co oznacza neutralny charakter projektu. Pole opisowe w takim przypadku należy pozostawić puste.\nW przypadku projektów infrastrukturalnych, które z racji swojego charakteru i zakresu mogą oddziaływać na określoną jednolitą część wód i wskazania odpowiedzi \"NIE\", wnioskodawca będzie zobligowany na wezwanie LAWP do przedstawienia deklaracji zgodności właściwego organu w sprawach ocen wodnoprawnych, że projekt nie pogarsza stanu jednolitego części wód lub ich dobrego potencjału.\nW przypadku projektów infrastrukturalnych, które z racji swojego charakteru i zakresu mogą oddziaływać na określoną jednolitą część wód i wskazania odpowiedzi „TAK” (tj. inwestycji lub działań mogących wpłynąć na możliwość osiągnięcia celów środowiskowych, o których mowa w art. 56, art. 57, art. 59 oraz w art. 61 Prawa wodnego, dotyczy np. takich działań jak budowle piętrzące, falochrony, duży pobór wody), wnioskodawca będzie zobligowany na wezwanie LAWP do przedstawienia oceny wodnoprawnej, o której mowa w art. 430, art. 431 i art. 434 ust. 1 ustawy z dnia 20 lipca 2017 r. Prawo wodne, wydanej w drodze decyzji, przez organ właściwy w sprawach ocen wodnoprawnych, potwierdzającej zgodność inwestycji lub działań z celami środowiskowymi lub przedłożenia decyzji o środowiskowych uwarunkowaniach, w treści której znajdą się wnioski z przeprowadzonej analizy oddziaływania inwestycji na jednolite części wód (jeżeli taka decyzja została wydana)."]
[]
["Cel 4: Gospodarka o obiegu zamkniętym, w tym zapobieganie powstawaniu odpadów i recykling: Czy projekt prowadzi do znacznego zwiększenia wytwarzania, spalania lub unieszkodliwiania odpadów (z wyjątkiem spalania odpadów niebezpiecznych nienadających się do recyklingu) lub doprowadzi do znaczącej nieefektywności w zakresie bezpośredniego lub pośredniego korzystania z jakiegokolwiek zasobu naturalnego na dowolnym etapie jego cyklu życia, która nie zostanie ograniczona do minimum za pomocą odpowiednich środków lub długotrwałego składowania odpadów, prowadzącego do wyrządzenia poważnych i długoterminowych szkód dla środowiska?"]
[]
["Zgodnie z art. 17 ust. 1 lit. d) rozporządzenia o taksonomii, jeżeli projekt prowadzi do znacznego zwiększenia wytwarzania, spalania lub unieszkodliwiania odpadów (z wyjątkiem spalania odpadów niebezpiecznych nienadających się do recyklingu) lub doprowadzi do znaczącego braku efektywności w wykorzystywaniu materiałów lub w bezpośrednim lub pośrednim wykorzystywaniu zasobów naturalnych, takich jak nieodnawialne źródła energii, surowce, woda i grunty, na co najmniej jednym z etapów cyklu życia produktów, w tym pod względem trwałości produktów, a także możliwości ich naprawy, ulepszenia, ponownego użycia lub recyklingu lub długotrwałego składowania odpadów, prowadzącego do wyrządzenia poważnych i długoterminowych szkód dla środowiska to wpływa znacząco na środowisko i jest niezgodny z zasadą DNSH.\nW przypadku wybrania odpowiedzi \"NIE\" należy opisać, w jaki sposób realizacja projektu wpływa na zapobieganie powstawaniu odpadów oraz ich ponowne użycie i recykling, np. czy została uwzględniona hierarchia sposobów postępowania z odpadami (od zapobiegania powstawaniu odpadów, poprzez selektywne zbieranie, przygotowanie do ponownego użytku, recykling, inne procesy odzysku do unieszkodliwiania). W przypadku udzielania odpowiedzi \"TAK\" projekt nie może kwalifikować się do wsparcia."]
[]
["Cel 5: Zapobieganie zanieczyszczeniom powietrza, wody lub gleby i jego kontrola: Czy projekt doprowadzi do istotnego zwiększenia poziomu emisji zanieczyszczeń do powietrza, wody lub gleby?"]
[]
["Zgodnie z art. 17 ust. 1 lit. e) rozporządzenia o taksonomii, jeżeli projekt prowadzi do znaczącego wzrostu emisji zanieczyszczeń do powietrza, wody lub ziemi w porównaniu z sytuacją sprzed rozpoczęcia realizacji projektu to wpływa znacząco na środowisko i jest niezgodny z zasadą DNSH.\nW przypadku odpowiedzi \"NIE\" należy w polu opisowym wykazać aspekty projektu, które wpływają na brak zwiększenia poziomu emisji zanieczyszczeń, w tym np. działania dążące do poprawy jakości powietrza, wody lub gleby na obszarach, na których prowadzona jest dana działalność gospodarcza, przy jednoczesnym minimalizowaniu i zapobieganiu wszelkich niekorzystnych skutków lub zagrożeń dla zdrowia ludzi dla środowiska wynikających z produkcji, stosowania lub unieszkodliwiania chemikaliów lub minimalizowania takich niekorzystnych skutków. \nDodatkowo w przypadku, gdy działalność wnioskodawcy ma wpływ na środowisko należy dodatkowo opisać w jaki sposób w projekcie została uwzględniona zasada \"zanieczyszczający płaci\", według której sprawcy szkód w środowisku powinni ponosić pełne koszty tych działań, które są niezbędne dla usunięcia zanieczyszczenia lub koszty równoważnych działań umożliwiających osiągnięcie celów ochrony środowiska.\nW przypadku udzielania odpowiedzi \"TAK\" projekt nie może kwalifikować się do wsparcia."]
[]
["Cel 6: Ochrona i odbudowa bioróżnorodności i ekosystemów: Czy projekt  będzie w znacznym stopniu szkodliwy dla dobrego stanu i odporności ekosystemów lub będzie szkodliwy dla stanu zachowania siedlisk i gatunków w tym siedlisk i gatunków objętych zakresem zainteresowania Unii?"]
[]
["Zgodnie z art. 17 ust. 1 lit. f) rozporządzenia o taksonomii przedsięwzięcie, które będzie w znacznym stopniu szkodliwe dla dobrego stanu i odporności ekosystemów lub będzie szkodliwe dla stanu zachowania siedlisk i gatunków, w tym siedlisk i gatunków objętych zakresem zainteresowania Unii wpływa znacząco na środowisko i jest niezgodne z zasadą DNSH. W przypadku projektów, które nie obejmują robót budowlanych (nie zależnie czy wnioskodawca ponosi bezpośrednie nakłady na roboty czy ponosi je podmiot trzeci, a wnioskodawca nabywa wyłącznie środki trwałe, będący efektem tych robót) należy wybrać opcję \"NIE DOTYCZY\", zaś pole opisowe pozostawić puste.\nW przypadku projektów, których realizacja wymaga przeprowadzenia robót budowlanych, gdy nie istniało lub nie istnieje prawdopodobieństwo, że projekt może znacząco oddziaływać na obszary Natura 2000, należy wybrać opcję \"NIE\". W takim przypadku wnioskodawca zobligowany jest do przedłożenia Deklaracji organu odpowiedzialnego za monitorowanie obszarów Natura2000.\nW przypadku projektów, których realizacja wymaga przeprowadzenia robót budowlanych, jeżeli wybrano odpowiedz \"TAK\" wnioskodawca będzie zobligowany na wezwanie LAWP do przedstawienia:\na) decyzji administracyjnej, w przypadku której prowadzi się postępowanie w sprawie oceny oddziaływania na obszar Natura 2000 (dla przedsięwzięć mogących wpływać na obszar Natura 2000);\nb) postanowienia RDOŚ uzgadniającego decyzję, w przypadku której prowadzi się postępowanie w sprawie oceny oddziaływania na obszar Natura 2000 (dla przedsięwzięć mogących wpływać na obszar Natura 2000);\nc) formularza „Informacja na temat projektów, które mogą wywierać istotny negatywny wpływ na obszary NATURA 2000, zgłoszone Komisji na mocy dyrektywy 92/43/EWG” wraz z niezbędnymi opiniami, jeżeli organ, który wydał zgodę na realizację przedsięwzięcia, stwierdził występowanie negatywnego oddziaływania na obszar Natura 2000."]
[]
["Sekcja II Stosowanie Dyrektywy OOŚ"]
["W poniższych polach należy wskazać czy projekt dotyczy rodzaju przedsięwzięcia objętego Załącznikiem I lub Załącznikiem II do Dyrektywy Parlamentu Europejskiego i Rady 2011/92/UE w sprawie oceny skutków wywieranych na niektóre przedsięwzięcia publiczne i prywatne na środowisko, dalej dyrektywa OOŚ oraz czy wzięto pod uwagę ocenę rozwiązań alternatywnych na podstawie wymogów dyrektywy OOŚ z uwzględnieniem Wytycznych w sprawie działań naprawczych w odniesieniu do projektów współfinansowanych w okresie programowania 2014-2020 oraz ubiegających się o współfinansowanie w okresie 2021-2027 z Funduszy UE, dotkniętych naruszeniem 2016/2046 w zakresie specustaw, dla których prowadzone jest postępowanie w sprawie oceny oddziaływania na środowisko (sygn. Ares(2021)1423319)."]
["Czy projekt objęty jest załącznikiem I do dyrektywy OOŚ?                                                                                                              "]
[]
["Czy projekt objęty jest załącznikiem II do dyrektywy OOŚ?"]
[]
["Czy przeprowadzono ocenę oddziaływania na środowisko?"]
[]
["Jeżeli powyżej wybrano, że projekt jest objęty I lub II aneksem dyrektywy OOŚ wnioskodawca zobligowany będzie na wezwanie LAWP do przedstawienia dokumentów potwierdzających przeprowadzenie procedury OOŚ."]
["Sekcja III Zgodność projektu z zasadami zrównoważonego rozwoju"]
["W poniższych polach należy udzielić odpowiedzi, czy projekt będzie realizowany zgodnie z zasadą zrównoważonego rozwoju, o której mowa w art. 9 ust. 4 Rozporządzenia Parlamentu Europejskiego i Rady 2021/1060 tj. cele Funduszy są realizowane zgodnie z celem wspierania zrównoważonego rozwoju, określonym w art. 11 TFUE, oraz z uwzględnieniem celów ONZ dotyczących zrównoważonego rozwoju, a także porozumienia paryskiego i zasady „nie czyń poważnych szkód” oraz ustawą z dnia 27 kwietnia 2001 r. Prawo ochrony środowiska, określającą zasady ochrony środowiska oraz warunki korzystania z jego zasobów. Należy wskazać, jakie działania zostaną podjęte w ramach projektu w celu spełnienia przynajmniej dwóch z niżej wskazanych zasad (6R) lub wskazać czy projekt wywiera pozytywny wpływ na inne aspekty środowiskowe, które nie są objęte poniższymi zasadami (6R). "]
["1. Czy w projekcie uwzględniono działania zgodne z zasadą zrównoważonego rozwoju - Refuse (odmów)? \nCelem tej zasady jest zmniejszenie ilości odpadów, zużycia surowców i emisji zanieczyszczeń poprzez unikanie produkcji i konsumpcji niepotrzebnych rzeczy oraz unikanie wszelkich działań, produktów i usług, które są nieodpowiednie lub szkodliwe dla środowiska. Zasada ta polegać może np. na rezygnacji z użycia materiałów i innych produktów, które nie nadają się do ponownego użycia.  "]
[]
["Jeżeli w pytaniu powyżej wybrano opcję TAK, w wierszu poniżej należy opisać jakie działania zostaną podjęte oraz w jaki sposób wnioskodawca będzie monitorował spełnienie założeń."]
[]
["2. Czy w projekcie uwzględniono działania zgodne z zasadą zrównoważonego rozwoju - Reduce (ogranicz)? \nCelem tej zasady jest zminimalizowanie negatywnego wpływu na środowisko i ograniczenie marnowania surowców. Zasada ta polegać może np. na zmniejszaniu zużycia zasobów, materiałów i substancji poprzez zastosowanie odpowiednich działań, np. technologicznych, poprzez wybór produktów i usług, które są bardziej wydajne i zużywają mniej surowców i energii, a także poprzez zmianę nawyków i stylów życia, które wprowadzają bardziej oszczędne i zrównoważone podejście do konsumpcji."]
[]
["Jeżeli w pytaniu powyżej wybrano opcję TAK, w wierszu poniżej należy opisać jakie działania zostaną podjęte oraz w jaki sposób wnioskodawca będzie monitorował spełnienie założeń."]
[]
["3. Czy w projekcie uwzględniono działania zgodne z zasadą zrównoważonego rozwoju - Reuse (użyj ponownie)? \nCelem tej zasady jest zwiększenie wydajności i zmniejszenie zużycia surowców, a także zmniejszenie ilości odpadów i zanieczyszczeń. Zasada ta polegać może np. ponownym użyciu produktów, ponownym wykorzystaniu opakowań, renowację i naprawianie produktów, a także stosowanie produktów wielokrotnego użytku, takich jak butelki na wodę i torby na zakupy."]
[]
["Jeżeli w pytaniu powyżej wybrano opcję TAK, w wierszu poniżej należy opisać jakie działania zostaną podjęte oraz w jaki sposób wnioskodawca będzie monitorował spełnienie założeń."]
[]
["4. Czy w projekcie uwzględniono działania zgodne z zasadą zrównoważonego rozwoju - Recover (napraw)? \nCelem tej zasady jest zmniejszenie ilości odpadów i zapotrzebowania na surowce pierwotne. Zasada ta polegać może np. na wprowadzaniu rozwiązań umożliwiających naprawę i ponowne użycie produktów, które można ponownie wykorzystać w procesie produkcji a także odzysk energii z biogazu, odpadów."]
[]
["Jeżeli w pytaniu powyżej wybrano opcję TAK, w wierszu poniżej należy opisać jakie działania zostaną podjęte oraz w jaki sposób wnioskodawca będzie monitorował spełnienie założeń.\nJeżeli wybrano opcję NIE wiersz poniżej może pozostać niewypełniony."]
[]
["5. Czy w projekcie uwzględniono działania zgodne z zasadą zrównoważonego rozwoju - Recycle (recyklinguj)? \nCelem tej zasady jest zmniejszenie ilości odpadów, które trafiają do składowisk, a także zmniejszenie zapotrzebowania na surowce pierwotne. Zasada ta polegać może np. na ponownym wykorzystaniu surowców i produktów, w celu zmniejszenia ich negatywnego wpływu na środowisko."]
[]
["Jeżeli w pytaniu powyżej wybrano opcję TAK, w wierszu poniżej należy opisać jakie działania zostaną podjęte oraz w jaki sposób wnioskodawca będzie monitorował spełnienie założeń."]
[]
["6. Czy w projekcie uwzględniono działania zgodne z zasadą zrównoważonego rozwoju - Rethink (ulepsz)? \nCelem tej zasady jest zmiana sposobu myślenia i działania, aby zapobiegać powstawaniu odpadów, poprzez zmianę projektów, produktów i procesów, tak aby były one bardziej efektywne i przyjazne dla środowiska. Zasada ta polegać może np. na zmniejszaniu zużycia zasobów, materiałów i substancji poprzez zastosowanie odpowiednich działań, np. technologicznych."]
[]
["Jeżeli w pytaniu powyżej wybrano opcję TAK, w wierszu poniżej należy opisać jakie działania zostaną podjęte oraz w jaki sposób wnioskodawca będzie monitorował spełnienie założeń."]
[]
["7. Czy w projekcie uwzględniono inne działania mające pozytywny wpływ na środowisko, nie wymienione wyżej?"]
[]
["Jeżeli w pytaniu powyżej wybrano opcję TAK, w wierszu poniżej należy opisać jakie działania zostaną podjęte oraz w jaki sposób wnioskodawca będzie monitorował spełnienie założeń."]
[]
["Sekcja IV Uodparnianie na zmiany klimatu inwestycji."]
["W przypadku inwestycji w infrastrukturę o przewidywanej trwałości wynoszącej co najmniej 5 lat, należy opisać w polu tekstowym poniżej, w jaki sposób wnioskodawca w ramach projektu zapewni uodparnianie na zmiany klimatu, co oznacza działania mające na celu zapobieganie podatności infrastruktury na potencjalne długoterminowe skutki zmian klimatu, przy jednoczesnym zapewnieniu przestrzegania zasady „efektywności energetycznej przede wszystkim” oraz zgodności poziomu emisji gazów cieplarnianych wynikających z projektu, z celem osiągnięcia neutralności klimatycznej w 2050 r. Jeżeli projekt nie dotyczy inwestycji w infrastrukturę o przewidywanej trwałości co najmniej 5 lat, należy w wierszu poniżej, wpisać \"nie dotyczy\"."]

{"sheet":"Specyfikacja nowe usługi","index":11,"n_rows":35,"n_cols":13,"rows_kept":35,"cut":false,"hidden":false,"merged":[]}
["Specyfikacja kosztów z uwzględnieniem analizy rynku - zadanie Nowe usługi na rzecz członków klastra "]
["Uwaga: pola oznaczone kolorem żółtym są polami nieedytowalnymi."]
[null,"Instrukcja wypełniania arkusza (kliknij)"]
["Lp.","Nazwa kosztu","Nazwa zadania","Opis i uzasadnienie kosztów","Jednostka miary ","Ilość ","Analiza rynku ","Wartość netto zł","Stawka VAT %","Wartość ogółem zł","Wydatki kwalifikowalne  zł","% poziom wsparcia","Dofinansowanie zł"]
[{"$f":"ROW()-4","v":1},null,null,null,null,null,null,null,null,{"$f":"IF(I5=\"ZW/ND\",H5,ROUNDDOWN($H5*(1+($I5/100)),2))","v":0},null,null,{"$f":"ROUNDDOWN((Specyfikacja_wnioskodawca[[#This Row],[Wydatki kwalifikowalne  zł]]*Specyfikacja_wnioskodawca[[#This Row],[% poziom wsparcia]]/100),2)","v":0}]
[{"$f":"ROW()-4","v":2},null,null,null,null,null,null,null,null,0,null,null,{"$f":"ROUNDDOWN((Specyfikacja_wnioskodawca[[#This Row],[Wydatki kwalifikowalne  zł]]*Specyfikacja_wnioskodawca[[#This Row],[% poziom wsparcia]]/100),2)","v":0}]
[{"$f":"ROW()-4","v":3},null,null,null,null,null,null,null,null,0,null,null,{"$f":"ROUNDDOWN((Specyfikacja_wnioskodawca[[#This Row],[Wydatki kwalifikowalne  zł]]*Specyfikacja_wnioskodawca[[#This Row],[% poziom wsparcia]]/100),2)","v":0}]
[{"$f":"ROW()-4","v":4},null,null,null,null,null,null,null,null,0,null,null,{"$f":"ROUNDDOWN((Specyfikacja_wnioskodawca[[#This Row],[Wydatki kwalifikowalne  zł]]*Specyfikacja_wnioskodawca[[#This Row],[% poziom wsparcia]]/100),2)","v":0}]
[5,null,null,null,null,null,null,null,null,0,null,null,{"$f":"ROUNDDOWN((Specyfikacja_wnioskodawca[[#This Row],[Wydatki kwalifikowalne  zł]]*Specyfikacja_wnioskodawca[[#This Row],[% poziom wsparcia]]/100),2)","v":0}]
[6,null,null,null,null,null,null,null,null,0,null,null,{"$f":"ROUNDDOWN((Specyfikacja_wnioskodawca[[#This Row],[Wydatki kwalifikowalne  zł]]*Specyfikacja_wnioskodawca[[#This Row],[% poziom wsparcia]]/100),2)","v":0}]
[7,null,null,null,null,null,null,null,null,0,null,null,{"$f":"ROUNDDOWN((Specyfikacja_wnioskodawca[[#This Row],[Wydatki kwalifikowalne  zł]]*Specyfikacja_wnioskodawca[[#This Row],[% poziom wsparcia]]/100),2)","v":0}]
[8,null,null,null,null,null,null,null,null,0,null,null,{"$f":"ROUNDDOWN((Specyfikacja_wnioskodawca[[#This Row],[Wydatki kwalifikowalne  zł]]*Specyfikacja_wnioskodawca[[#This Row],[% poziom wsparcia]]/100),2)","v":0}]
[9,null,null,null,null,null,null,null,null,0,null,null,{"$f":"ROUNDDOWN((Specyfikacja_wnioskodawca[[#This Row],[Wydatki kwalifikowalne  zł]]*Specyfikacja_wnioskodawca[[#This Row],[% poziom wsparcia]]/100),2)","v":0}]
[10,null,null,null,null,null,null,null,null,0,null,null,{"$f":"ROUNDDOWN((Specyfikacja_wnioskodawca[[#This Row],[Wydatki kwalifikowalne  zł]]*Specyfikacja_wnioskodawca[[#This Row],[% poziom wsparcia]]/100),2)","v":0}]
[11,null,null,null,null,null,null,null,null,0,null,null,{"$f":"ROUNDDOWN((Specyfikacja_wnioskodawca[[#This Row],[Wydatki kwalifikowalne  zł]]*Specyfikacja_wnioskodawca[[#This Row],[% poziom wsparcia]]/100),2)","v":0}]
[12,null,null,null,null,null,null,null,null,0,null,null,{"$f":"ROUNDDOWN((Specyfikacja_wnioskodawca[[#This Row],[Wydatki kwalifikowalne  zł]]*Specyfikacja_wnioskodawca[[#This Row],[% poziom wsparcia]]/100),2)","v":0}]
[13,null,null,null,null,null,null,null,null,0,null,null,{"$f":"ROUNDDOWN((Specyfikacja_wnioskodawca[[#This Row],[Wydatki kwalifikowalne  zł]]*Specyfikacja_wnioskodawca[[#This Row],[% poziom wsparcia]]/100),2)","v":0}]
[14,null,null,null,null,null,null,null,null,0,null,null,{"$f":"ROUNDDOWN((Specyfikacja_wnioskodawca[[#This Row],[Wydatki kwalifikowalne  zł]]*Specyfikacja_wnioskodawca[[#This Row],[% poziom wsparcia]]/100),2)","v":0}]
[{"$f":"ROW()-4","v":15},null,null,null,null,null,null,null,null,{"$f":"IF(I19=\"ZW/ND\",H19,ROUNDDOWN($H19*(1+($I19/100)),2))","v":0},null,null,{"$f":"ROUNDDOWN((Specyfikacja_wnioskodawca[[#This Row],[Wydatki kwalifikowalne  zł]]*Specyfikacja_wnioskodawca[[#This Row],[% poziom wsparcia]]/100),2)","v":0}]
[16,null,null,null,null,null,null,null,null,0,null,null,{"$f":"ROUNDDOWN((Specyfikacja_wnioskodawca[[#This Row],[Wydatki kwalifikowalne  zł]]*Specyfikacja_wnioskodawca[[#This Row],[% poziom wsparcia]]/100),2)","v":0}]
[17,null,null,null,null,null,null,null,null,0,null,null,{"$f":"ROUNDDOWN((Specyfikacja_wnioskodawca[[#This Row],[Wydatki kwalifikowalne  zł]]*Specyfikacja_wnioskodawca[[#This Row],[% poziom wsparcia]]/100),2)","v":0}]
[18,null,null,null,null,null,null,null,null,0,null,null,{"$f":"ROUNDDOWN((Specyfikacja_wnioskodawca[[#This Row],[Wydatki kwalifikowalne  zł]]*Specyfikacja_wnioskodawca[[#This Row],[% poziom wsparcia]]/100),2)","v":0}]
[19,null,null,null,null,null,null,null,null,0,null,null,{"$f":"ROUNDDOWN((Specyfikacja_wnioskodawca[[#This Row],[Wydatki kwalifikowalne  zł]]*Specyfikacja_wnioskodawca[[#This Row],[% poziom wsparcia]]/100),2)","v":0}]
[20,null,null,null,null,null,null,null,null,0,null,null,{"$f":"ROUNDDOWN((Specyfikacja_wnioskodawca[[#This Row],[Wydatki kwalifikowalne  zł]]*Specyfikacja_wnioskodawca[[#This Row],[% poziom wsparcia]]/100),2)","v":0}]
[21,null,null,null,null,null,null,null,null,0,null,null,{"$f":"ROUNDDOWN((Specyfikacja_wnioskodawca[[#This Row],[Wydatki kwalifikowalne  zł]]*Specyfikacja_wnioskodawca[[#This Row],[% poziom wsparcia]]/100),2)","v":0}]
[22,null,null,null,null,null,null,null,null,0,null,null,{"$f":"ROUNDDOWN((Specyfikacja_wnioskodawca[[#This Row],[Wydatki kwalifikowalne  zł]]*Specyfikacja_wnioskodawca[[#This Row],[% poziom wsparcia]]/100),2)","v":0}]
[{"$f":"ROW()-4","v":23},null,null,null,null,null,null,null,null,0,null,null,{"$f":"ROUNDDOWN((Specyfikacja_wnioskodawca[[#This Row],[Wydatki kwalifikowalne  zł]]*Specyfikacja_wnioskodawca[[#This Row],[% poziom wsparcia]]/100),2)","v":0}]
[24,null,null,null,null,null,null,null,null,0,null,null,{"$f":"ROUNDDOWN((Specyfikacja_wnioskodawca[[#This Row],[Wydatki kwalifikowalne  zł]]*Specyfikacja_wnioskodawca[[#This Row],[% poziom wsparcia]]/100),2)","v":0}]
[25,null,null,null,null,null,null,null,null,0,null,null,{"$f":"ROUNDDOWN((Specyfikacja_wnioskodawca[[#This Row],[Wydatki kwalifikowalne  zł]]*Specyfikacja_wnioskodawca[[#This Row],[% poziom wsparcia]]/100),2)","v":0}]
[26,null,null,null,null,null,null,null,null,0,null,null,{"$f":"ROUNDDOWN((Specyfikacja_wnioskodawca[[#This Row],[Wydatki kwalifikowalne  zł]]*Specyfikacja_wnioskodawca[[#This Row],[% poziom wsparcia]]/100),2)","v":0}]
[27,null,null,null,null,null,null,null,null,0,null,null,{"$f":"ROUNDDOWN((Specyfikacja_wnioskodawca[[#This Row],[Wydatki kwalifikowalne  zł]]*Specyfikacja_wnioskodawca[[#This Row],[% poziom wsparcia]]/100),2)","v":0}]
[28,null,null,null,null,null,null,null,null,0,null,null,{"$f":"ROUNDDOWN((Specyfikacja_wnioskodawca[[#This Row],[Wydatki kwalifikowalne  zł]]*Specyfikacja_wnioskodawca[[#This Row],[% poziom wsparcia]]/100),2)","v":0}]
[{"$f":"ROW()-4","v":29},null,null,null,null,null,null,null,null,0,null,null,{"$f":"ROUNDDOWN((Specyfikacja_wnioskodawca[[#This Row],[Wydatki kwalifikowalne  zł]]*Specyfikacja_wnioskodawca[[#This Row],[% poziom wsparcia]]/100),2)","v":0}]
[30,null,null,null,null,null,null,null,null,0,null,null,{"$f":"ROUNDDOWN((Specyfikacja_wnioskodawca[[#This Row],[Wydatki kwalifikowalne  zł]]*Specyfikacja_wnioskodawca[[#This Row],[% poziom wsparcia]]/100),2)","v":0}]
["Suma",null,null,null,null,null,"Razem",{"$f":"SUM(H5:H34)","v":0},null,{"$f":"SUM(J5:J34)","v":0},{"$f":"SUM(K5:K34)","v":0},null,{"$f":"SUM(M5:M34)","v":0}]

{"sheet":"Specyfikacja potencjał infrastr","index":12,"n_rows":35,"n_cols":13,"rows_kept":35,"cut":false,"hidden":false,"merged":[]}
["Specyfikacja kosztów z uwzględnieniem analizy rynku - zadanie Rozwój potencjału infrastrukturalnego klastra"]
["Uwaga: pola oznaczone kolorem żółtym są polami nieedytowalnymi."]
[null,"Instrukcja wypełniania arkusza (kliknij)"]
["Lp.","Nazwa kosztu","Nazwa zadania","Opis i uzasadnienie kosztów","Jednostka miary ","Ilość ","Analiza rynku ","Wartość netto zł","Stawka VAT %","Wartość ogółem zł","Wydatki kwalifikowalne  zł","% poziom wsparcia","Dofinansowanie zł"]
[{"$f":"ROW()-4","v":1},null,null,null,null,null,null,null,null,{"$f":"IF(I5=\"ZW/ND\",H5,ROUNDDOWN($H5*(1+($I5/100)),2))","v":0},null,null,{"$f":"ROUNDDOWN((Specyfikacja_wnioskodawca12[[#This Row],[Wydatki kwalifikowalne  zł]]*Specyfikacja_wnioskodawca12[[#This Row],[% poziom wsparcia]]/100),2)","v":0}]
[{"$f":"ROW()-4","v":2},null,null,null,null,null,null,null,null,0,null,null,{"$f":"ROUNDDOWN((Specyfikacja_wnioskodawca12[[#This Row],[Wydatki kwalifikowalne  zł]]*Specyfikacja_wnioskodawca12[[#This Row],[% poziom wsparcia]]/100),2)","v":0}]
[{"$f":"ROW()-4","v":3},null,null,null,null,null,null,null,null,0,null,null,{"$f":"ROUNDDOWN((Specyfikacja_wnioskodawca12[[#This Row],[Wydatki kwalifikowalne  zł]]*Specyfikacja_wnioskodawca12[[#This Row],[% poziom wsparcia]]/100),2)","v":0}]
[{"$f":"ROW()-4","v":4},null,null,null,null,null,null,null,null,0,null,null,{"$f":"ROUNDDOWN((Specyfikacja_wnioskodawca12[[#This Row],[Wydatki kwalifikowalne  zł]]*Specyfikacja_wnioskodawca12[[#This Row],[% poziom wsparcia]]/100),2)","v":0}]
[5,null,null,null,null,null,null,null,null,0,null,null,{"$f":"ROUNDDOWN((Specyfikacja_wnioskodawca12[[#This Row],[Wydatki kwalifikowalne  zł]]*Specyfikacja_wnioskodawca12[[#This Row],[% poziom wsparcia]]/100),2)","v":0}]
[6,null,null,null,null,null,null,null,null,0,null,null,{"$f":"ROUNDDOWN((Specyfikacja_wnioskodawca12[[#This Row],[Wydatki kwalifikowalne  zł]]*Specyfikacja_wnioskodawca12[[#This Row],[% poziom wsparcia]]/100),2)","v":0}]
[7,null,null,null,null,null,null,null,null,0,null,null,{"$f":"ROUNDDOWN((Specyfikacja_wnioskodawca12[[#This Row],[Wydatki kwalifikowalne  zł]]*Specyfikacja_wnioskodawca12[[#This Row],[% poziom wsparcia]]/100),2)","v":0}]
[8,null,null,null,null,null,null,null,null,0,null,null,{"$f":"ROUNDDOWN((Specyfikacja_wnioskodawca12[[#This Row],[Wydatki kwalifikowalne  zł]]*Specyfikacja_wnioskodawca12[[#This Row],[% poziom wsparcia]]/100),2)","v":0}]
[9,null,null,null,null,null,null,null,null,0,null,null,{"$f":"ROUNDDOWN((Specyfikacja_wnioskodawca12[[#This Row],[Wydatki kwalifikowalne  zł]]*Specyfikacja_wnioskodawca12[[#This Row],[% poziom wsparcia]]/100),2)","v":0}]
[10,null,null,null,null,null,null,null,null,0,null,null,{"$f":"ROUNDDOWN((Specyfikacja_wnioskodawca12[[#This Row],[Wydatki kwalifikowalne  zł]]*Specyfikacja_wnioskodawca12[[#This Row],[% poziom wsparcia]]/100),2)","v":0}]
[11,null,null,null,null,null,null,null,null,0,null,null,{"$f":"ROUNDDOWN((Specyfikacja_wnioskodawca12[[#This Row],[Wydatki kwalifikowalne  zł]]*Specyfikacja_wnioskodawca12[[#This Row],[% poziom wsparcia]]/100),2)","v":0}]
[12,null,null,null,null,null,null,null,null,0,null,null,{"$f":"ROUNDDOWN((Specyfikacja_wnioskodawca12[[#This Row],[Wydatki kwalifikowalne  zł]]*Specyfikacja_wnioskodawca12[[#This Row],[% poziom wsparcia]]/100),2)","v":0}]
[13,null,null,null,null,null,null,null,null,0,null,null,{"$f":"ROUNDDOWN((Specyfikacja_wnioskodawca12[[#This Row],[Wydatki kwalifikowalne  zł]]*Specyfikacja_wnioskodawca12[[#This Row],[% poziom wsparcia]]/100),2)","v":0}]
[14,null,null,null,null,null,null,null,null,0,null,null,{"$f":"ROUNDDOWN((Specyfikacja_wnioskodawca12[[#This Row],[Wydatki kwalifikowalne  zł]]*Specyfikacja_wnioskodawca12[[#This Row],[% poziom wsparcia]]/100),2)","v":0}]
[{"$f":"ROW()-4","v":15},null,null,null,null,null,null,null,null,{"$f":"IF(I19=\"ZW/ND\",H19,ROUNDDOWN($H19*(1+($I19/100)),2))","v":0},null,null,{"$f":"ROUNDDOWN((Specyfikacja_wnioskodawca12[[#This Row],[Wydatki kwalifikowalne  zł]]*Specyfikacja_wnioskodawca12[[#This Row],[% poziom wsparcia]]/100),2)","v":0}]
[16,null,null,null,null,null,null,null,null,0,null,null,{"$f":"ROUNDDOWN((Specyfikacja_wnioskodawca12[[#This Row],[Wydatki kwalifikowalne  zł]]*Specyfikacja_wnioskodawca12[[#This Row],[% poziom wsparcia]]/100),2)","v":0}]
[17,null,null,null,null,null,null,null,null,0,null,null,{"$f":"ROUNDDOWN((Specyfikacja_wnioskodawca12[[#This Row],[Wydatki kwalifikowalne  zł]]*Specyfikacja_wnioskodawca12[[#This Row],[% poziom wsparcia]]/100),2)","v":0}]
[18,null,null,null,null,null,null,null,null,0,null,null,{"$f":"ROUNDDOWN((Specyfikacja_wnioskodawca12[[#This Row],[Wydatki kwalifikowalne  zł]]*Specyfikacja_wnioskodawca12[[#This Row],[% poziom wsparcia]]/100),2)","v":0}]
[19,null,null,null,null,null,null,null,null,0,null,null,{"$f":"ROUNDDOWN((Specyfikacja_wnioskodawca12[[#This Row],[Wydatki kwalifikowalne  zł]]*Specyfikacja_wnioskodawca12[[#This Row],[% poziom wsparcia]]/100),2)","v":0}]
[20,null,null,null,null,null,null,null,null,0,null,null,{"$f":"ROUNDDOWN((Specyfikacja_wnioskodawca12[[#This Row],[Wydatki kwalifikowalne  zł]]*Specyfikacja_wnioskodawca12[[#This Row],[% poziom wsparcia]]/100),2)","v":0}]
[21,null,null,null,null,null,null,null,null,0,null,null,{"$f":"ROUNDDOWN((Specyfikacja_wnioskodawca12[[#This Row],[Wydatki kwalifikowalne  zł]]*Specyfikacja_wnioskodawca12[[#This Row],[% poziom wsparcia]]/100),2)","v":0}]
[22,null,null,null,null,null,null,null,null,0,null,null,{"$f":"ROUNDDOWN((Specyfikacja_wnioskodawca12[[#This Row],[Wydatki kwalifikowalne  zł]]*Specyfikacja_wnioskodawca12[[#This Row],[% poziom wsparcia]]/100),2)","v":0}]
[{"$f":"ROW()-4","v":23},null,null,null,null,null,null,null,null,0,null,null,{"$f":"ROUNDDOWN((Specyfikacja_wnioskodawca12[[#This Row],[Wydatki kwalifikowalne  zł]]*Specyfikacja_wnioskodawca12[[#This Row],[% poziom wsparcia]]/100),2)","v":0}]
[24,null,null,null,null,null,null,null,null,0,null,null,{"$f":"ROUNDDOWN((Specyfikacja_wnioskodawca12[[#This Row],[Wydatki kwalifikowalne  zł]]*Specyfikacja_wnioskodawca12[[#This Row],[% poziom wsparcia]]/100),2)","v":0}]
[25,null,null,null,null,null,null,null,null,0,null,null,{"$f":"ROUNDDOWN((Specyfikacja_wnioskodawca12[[#This Row],[Wydatki kwalifikowalne  zł]]*Specyfikacja_wnioskodawca12[[#This Row],[% poziom wsparcia]]/100),2)","v":0}]
[26,null,null,null,null,null,null,null,null,0,null,null,{"$f":"ROUNDDOWN((Specyfikacja_wnioskodawca12[[#This Row],[Wydatki kwalifikowalne  zł]]*Specyfikacja_wnioskodawca12[[#This Row],[% poziom wsparcia]]/100),2)","v":0}]
[27,null,null,null,null,null,null,null,null,0,null,null,{"$f":"ROUNDDOWN((Specyfikacja_wnioskodawca12[[#This Row],[Wydatki kwalifikowalne  zł]]*Specyfikacja_wnioskodawca12[[#This Row],[% poziom wsparcia]]/100),2)","v":0}]
[28,null,null,null,null,null,null,null,null,0,null,null,{"$f":"ROUNDDOWN((Specyfikacja_wnioskodawca12[[#This Row],[Wydatki kwalifikowalne  zł]]*Specyfikacja_wnioskodawca12[[#This Row],[% poziom wsparcia]]/100),2)","v":0}]
[{"$f":"ROW()-4","v":29},null,null,null,null,null,null,null,null,0,null,null,{"$f":"ROUNDDOWN((Specyfikacja_wnioskodawca12[[#This Row],[Wydatki kwalifikowalne  zł]]*Specyfikacja_wnioskodawca12[[#This Row],[% poziom wsparcia]]/100),2)","v":0}]
[30,null,null,null,null,null,null,null,null,0,null,null,{"$f":"ROUNDDOWN((Specyfikacja_wnioskodawca12[[#This Row],[Wydatki kwalifikowalne  zł]]*Specyfikacja_wnioskodawca12[[#This Row],[% poziom wsparcia]]/100),2)","v":0}]
["Suma",null,null,null,null,null,"Razem",{"$f":"SUM(H5:H34)","v":0},null,{"$f":"SUM(J5:J34)","v":0},{"$f":"SUM(K5:K34)","v":0},null,{"$f":"SUM(M5:M34)","v":0}]

{"sheet":"Koszty pośrednie","index":13,"n_rows":6,"n_cols":8,"rows_kept":6,"cut":false,"hidden":false,"merged":[[0,0,0,7],[1,0,1,7],[2,0,2,7]]}
["Koszty pośrednie"]
["Uwaga: pola oznaczone kolorem żółtym są polami nieedytowalnymi."]
["W tabeli poniżej należy wypełnić jedynie dane w kolumnie \"Procentowy poziom wsparcia\" i kolumnie \"Opis kosztów pośrednich\".\nUwaga: dane liczbowe uzyskanie w niniejszej tabeli w wierszu \"Razem\" w kolumnach: \"Koszty pośrednie wartość ogółem \", \"Koszty pośrednie wydatki kwalifikowalne \" oraz \"Dofinansowanie\" należy przenieść do zadania \"Koszty pośrednie\" znajdującego się w sekcji \"BUDŻET PROJEKTU\" w formularzu wniosku w WOD2021 zastępując wartości liczbowe wyliczone automatycznie przez system WOD2021 w tej sekcji dla wnioskodawcy."]
["Zadanie","Wartość ogółem","Wydatki kwalifikowalne","Koszty pośrednie - wartość ogółem","Koszty pośrednie - wydatki kwalifikowalne ","Procentowy poziom wsparcia","Dofinansowanie ","Opis kosztów pośrednich"]
["\"KOSZTY POŚREDNIE\"","Wiersze wypełniane przez arkusz na podstawie danych podanych w arkuszach \"Specyfikacja nowe usługi\" oraz \"Specyfikacja potencjał infrastr.\".","Wiersze wypełniane przez arkusz na podstawie danych podanych w arkuszach \"Specyfikacja nowe usługi\" oraz \"Specyfikacja potencjał infrastr.\".","Wiersze wypełniane przez arkusz na podstawie danych podanych we wcześniejszych kolumnach.","Wiersze wypełniane przez arkusz na podstawie danych podanych przez wnioskodawcę we wcześniejszych kolumnach.","Należy podać, z dokładnością do dwóch miejsc po przecinku, procentowy poziom wsparcia (dofinansowania) o jaki wnioskodawca zamierza ubiegać się w odniesieniu do kosztów pośrednich. Uwaga: podany poziom wsparcia nie może być wyższy niż dopuszczalny procentowy poziom wsparcia, o którym mowa w Regulaminie wyboru projektu. ","Wiersze wypełniane przez arkusz na podstawie danych podanych we wcześniejszych kolumnach.","Należy  wskazać rodzaje kosztów, które wnioskodawca planuje sfinansować w ramach kosztów pośrednich. Katalog kosztów pośrednich znajduje się w Regulaminie wyboru projektów. Koszty rozliczone metodą ryczałtową są traktowane jako wydatki poniesione. W ramach projektu beneficjent nie ma obowiązku zbierania ani opisywania dokumentów księgowych w celu potwierdzenia poniesienia wydatków, które zostały rozliczone jako koszty pośrednie.\nKoszty rozliczane metodą ryczałtową w ramach kosztów pośrednich nie mogą zostać wykazane w ramach innych kategorii kosztów projektu."]
["Razem",{"$f":"Specyfikacja_wnioskodawca[[#Totals],[Wartość ogółem zł]]+Specyfikacja_wnioskodawca12[[#Totals],[Wartość ogółem zł]]","v":0},{"$f":"Specyfikacja_wnioskodawca[[#Totals],[Wydatki kwalifikowalne  zł]]+Specyfikacja_wnioskodawca12[[#Totals],[Wydatki kwalifikowalne  zł]]","v":0},{"$f":"ROUNDDOWN(Tabela20[[#This Row],[Wartość ogółem]]*0.07,2)","v":0},{"$f":"ROUNDDOWN(Tabela20[[#This Row],[Wydatki kwalifikowalne]]*0.07,2)","v":0},null,{"$f":"ROUNDDOWN(Tabela20[[#This Row],[Koszty pośrednie - wydatki kwalifikowalne ]]*Tabela20[[#This Row],[Procentowy poziom wsparcia]],2)","v":0}]

{"sheet":"Inwestycja początkowa","index":14,"n_rows":84,"n_cols":5,"rows_kept":84,"cut":false,"hidden":false,"merged":[]}
["1. Inwestycja początkowa"]
["Tabela odnosi się wyłącznie do projektów wspieranych na podstawie art. 14 Rozporządzenia Komisji (UE) nr 651/2014. W wierszu poniżej należy zadeklarować czy projekt dotyczy inwestycji początkowej w rozumieniu art. 14 Rozporządzenia Komisji (UE) Nr 651/2014. Opcja „NIE DOTYCZY” ma zastosowanie do projektów, których podstawą wsparcia nie jest art. 14 powyższego rozporządzenia."]
[]
["Z rozwijanej listy poniżej należy wybrać właściwą opcję dotyczącą rodzaju \"inwestycji początkowej\", której dotyczy projekt. "]
[]
["W wierszu poniżej należy opisać w jaki sposób realizacja projektu wpisuje się w wybraną przez wnioskodawcę inwestycję początkową. Należy wskazać wszystkie przesłanki kwalifikujące daną inwestycję w wybrany rodzaj inwestycji początkowej. \nW przypadku jeżeli w polu powyżej wybrano \"dywersyfikacja produkcji zakładu poprzez wprowadzenie produktów lub usług dotąd niewytwarzanych lub nieświadczonych przez ten zakład\", należy w polu opisowym określić jaki nowy produkt/usługa będzie przez przedsiębiorstwo wytwarzane/świadczone na rynku."]
[]
["2. Dywersyfikacja istniejącego zakładu  "]
["Jeżeli realizacja projektu ma na celu dywersyfikację należy wskazać poniżej, czy w projekcie będą wykorzystywane posiadane i użytkowane przez wnioskodawcę dotychczas aktywa. Pojęcie aktywów w kontekście inwestycji początkowej należy odnosić do rzeczowych aktywów trwałych oraz wartości niematerialnych i prawnych. Rzeczowe aktywa trwałe składają się z gruntów, budynków, zakładów, urządzeń i wyposażenia (art. 2 pkt 29 Rozporządzenia 651/2014). Należy także wziąć pod uwagę zakres, w jakim aktywa będą ponownie wykorzystywane (np. jeśli ma być używane tylko 30% pojemności składnika aktywów, należy brać pod uwagę tylko proporcjonalną wartość księgową tych aktywów)."]
[]
["W przypadku odpowiedzi \"TAK\" powyżej należy wypełnić tabelę poniżej, wskazać nazwę/rodzaj ponownie wykorzystywanych aktywów, rok, za jaki wnioskodawca wykazuje wartość księgową tych aktywów, stopień ich wykorzystania oraz podać wartość księgową we wskazanym roku. Zgodnie z art. 14 rozporządzenia 651/2014 w przypadku dywersyfikacji koszty kwalifikowalne (objęte regionalną pomocą inwestycyjną na podstawie ww. art. 14) w projekcie muszą przekraczać o co najmniej 200 % wartość księgową ponownie wykorzystywanych aktywów, odnotowaną w roku obrotowym poprzedzającym rozpoczęcie projektu, żeby projekt mógł kwalifikować się do wsparcia (tj. koszty kwalifikowalne muszą stanowić co najmniej trzykrotność wartości ponownie wykorzystywanych aktywów). "]
["Nazwa danego środka trwałego/wartości niematerialnej i prawnej","ROK","Wartość księgowa w roku poprzedzającym rozpoczęcie projektu (zł)","Stopień wykorzytania (%)","Wartość księgowa w roku poprzedzającym rozpoczęcie projektu (zł) uwzględniająca stopień wykorzystania"]
[]
[]
[]
[]
[]
[]
[]
[]
[]
[]
[]
[]
[]
[]
[]
[]
[]
[]
[]
[]
[]
[]
[]
[]
[]
[]
[]
[]
[]
[]
[]
[]
[]
[]
[]
[]
[]
[]
[]
[]
[]
[]
[]
[]
[]
[]
[]
[]
[]
[]
[]
[]
[]
[]
[]
[null,null,null,"SUMA",{"$f":"SUBTOTAL(109,E13:E67)","v":0}]
[]
[]
[]
[]
[]
[]
[]
[]
[]
[]
[]
[]
["Utworzenie nowego zakładu"]
["Zwiększenie zdolności produkcyjnej istniejącego zakładu"]
["Dywersyfikacja produkcji zakładu poprzez wprowadzenie produktów lub usług dotąd niewytwarzanych lub nieświadczonych przez ten zakład"]
["Zasadnicza zmiana całościowego procesu produkcji produktu lub produktów, których dotyczy inwestycja w ten zakład"]

{"sheet":"Spójna komunikacja","index":15,"n_rows":7,"n_cols":1,"rows_kept":7,"cut":false,"hidden":false,"merged":[]}
["Zachowanie spójnej komunikacji dotyczącej oferty usług wnioskodawcy i usług otoczenia biznesu."]
["Zachowanie spójnej komunikacji dotyczącej oferty usług wnioskodawcy należy rozumieć jako przekazywanie wszystkim członkom klastra oraz innym potencjalnym zainteresowanym w jasny i spójny sposób informacji na temat zakresu świadczonych przez klaster usług oraz korzyści wynikających z sieciowania, aby przedsiębiorcy mogli łatwo zrozumieć, co mogą zyskać i jak mogą skorzystać z oferty.\nSpójna komunikacja powinna zawierać następujące elementy:\n• jasne i zrozumiałe komunikaty - oferta opisana prostym językiem;\n• komunikowanie korzyści, a nie tylko usług;\n• monitoring i aktualizacja przekazu- komunikacja powinna być dostosowana do zmieniających się potrzeb rynku.\nZapewnienie spójnej komunikacji dotyczącej oferty usług otoczenia biznesu należy rozumieć jako wskazanie, że wnioskodawca posiada:\n• znajomość aktualnej oferty IOB/Ośrodków Innowacji (OI) działających w województwie lubelskim tak, aby skutecznie doradzać członkom klastra, gdzie powinni skierować się po konkretną usługę doradczą, badawczą, innowacyjną czy szkoleniową w sytuacji braku posiadania przez danego wnioskodawcę danej usługi w ofercie;\n• znajomość aktualnej oferty najważniejszych/największych IOB/OI w kraju w zakresie branżowym (w jakim działalność prowadzi wnioskodawca) i umiejętność przekierowania do właściwej IOB/OI, to jest w szczególności wskazanie, gdzie członek klastra może skorzystać z potrzebnej infrastruktury;\n• możliwość przekazania kontaktów i danych do IOB/OI działających w województwie lubelskim oraz wsparcia członków klastra w nawiązaniu kontaktu z innymi IOB/OI."]
["W związku z ubieganiem się o dofinansowanie projektu złożonego w ramach programu Fundusze Europejskie dla Lubelskiego 2021-2027 oświadczam, że w okresie realizacji i trwałości projektu zachowam spójną komunikację w zakresie świadczonych usług oraz zapewnię spójną komunikację dotyczącą oferty usług otoczenia biznesu.\nW przypadku udzielenia odpowiedzi negatywnej (wybór opcji \"NIE\") projekt nie kwalifikuje się do wsparcia."]
[]
["W polu poniżej należy opisać w jaki sposób wnioskodawca planuje przekazywać informacje dotyczące oferty usług, które będzie świadczył."]
[]
["W polu poniżej należy krótko scharakteryzować ofertę IOB/Ośrodków Innowacji (OI) działających w województwie lubelskim w zakresie usług doradczych, badawczych i innowacyjnych oraz ofertę najważniejszych/największych IOB/OI w kraju w zakresie branżowym w jakim działalność prowadzi lub planuje prowadzić w wyniku realizacji niniejszego projektu wnioskodawca.  Należy też wskazać w jaki sposób wnioskodawca będzie udzielał informacji w zakresie oferty innych IOB/OI zainteresowanym przedsiębiorcom (np. doradztwo indywidualne i przekazania kontaktów i danych do IOB/OI, zamieszczenie informacji/danych kontaktowych  na  stronie  internetowej wnioskodawcy, pośrednictwo w nawiązywaniu kontaktów z innymi IOB/OI) oraz w jakim zakresie."]

{"sheet":"RSI","index":16,"n_rows":12,"n_cols":4,"rows_kept":12,"cut":false,"hidden":false,"merged":[[0,0,0,3],[1,0,1,3]]}
["Zgodność projektu z Regionalną Strategią Innowacji Województwa Lubelskiego do 2030 roku."]
["W wierszu poniżej należy wskazać, czy działalność klastra, której dotyczą wdrażane w ramach projektu nowe usługi, wpisuje się w przynajmniej jeden obszar inteligentnych specjalizacji województwa lubelskiego wymienionych \nw załączniku nr 1 do Regionalnej Strategii Innowacji Województwa Lubelskiego do 2030 roku? "]
[]
["W przypadku, jeżeli w powyższym wierszu wybrano opcję \"NIE\" projekt nie może kwalifikować się do wsparcia. "]
["W przypadku, jeżeli udzielono odpowiedzi \"TAK\" należy w tabeli poniżej wskazać wszystkie obszary w ramach specjalizacji, w których będą realizowane nowe usługi oraz należy uzasadnić swój wybór. "]
["Lp.","Nazwa specjalizacji","Czy świadczona nowa usługa wpisuje się w niżej wymienione zakresy tematyczne","Uzasadnienie"]
[null,"W punktach od I do V przedstawiono regionalne inteligentne specjalizacje zgodnie z Regionalną Strategią Innowacji do 2030 r. (RSI). \nW przypadku jeżeli nowe usługi będą realizowane w poniższych specjalizacjach dla każdej należy wypełnić kolumny obok.","Należy wybrać z listy właściwą opcję \"TAK\" lub \"NIE\".","W przypadku wyboru opcji \"TAK\" należy w tej kolumnie uzasadnić swój wybór oraz wskazać, które z usług w zakładce \"Nowe usługi\" dotyczą danego obszaru, zagadnienia. W przypadku wyboru opcji \"NIE\", przy danym obszarze, wiersz należy pozostawić niewypełniony."]
["I.","ŻYWNOŚĆ WYSOKIEJ JAKOŚCI "]
["II.","ZIELONA GOSPODARKA"]
["III.","ZDROWE SPOŁECZEŃSTWO"]
["IV.","CYFROWE SPOŁECZEŃSTWO"]
["V.","TECHNOLOGIE MATERIAŁOWE,\nPROCESY PRODUKCYJNE I LOGISTYCZNE"]

{"sheet":"Nowe usługi","index":17,"n_rows":180,"n_cols":9,"rows_kept":180,"cut":false,"hidden":false,"merged":[]}
["Nowe usługi wdrażane w ramach projektu"]
[null,"Instrukcja wypełniania arkusza (kliknij)"]
["Lp.","Nazwa usługi planowanej do świadczenia przez koordynatora klastra na rzecz członków klastra","Opis przedmiotu usługi","Czy świadczona nowa usługa wpisuje się w zakres tematyczny -  transformacja cyfrowa?","Czy świadczona nowa usługa wpisuje się w zakres tematyczny -  transformacja w kierunku przemysłu przyszłości (Przemysł 4.0)?","Czy świadczona nowa usługa wpisuje się w zakres tematyczny -  gospodarka obiegu zamkniętego (GOZ)?","Czy świadczona nowa usługa wpisuje się w zakres tematyczny -  gospodarka niskoemisyjna?","Uzasadnienie dotyczące związku nowej usługi z wybranym zakresem tematycznym","Narzędzia i metody świadczenia usług"]
[{"$f":"ROW()-3","v":1}]
[2]
[3]
[4]
[5]
[6]
[7]
[8]
[9]
[10]
[11]
[12]
[13]
[14]
[15]
[16]
[17]
[18]
[19]
[20]
[]
[]
[]
[]
[]
[]
[]
[]
[]
[]
[]
[]
[]
[]
[]
[]
[]
[]
[]
[]
[]
[]
[]
[]
[]
[]
[]
[]
[]
[]
[]
[]
[]
[]
[]
[]
[null,"Szczegółowe zagadnienie"]
[null,"111 Innowacyjne działania na rzecz poprawy żyzności i produktywności gleb"]
[null,"\n112 Wysokiej jakości materiał siewny, rozmnożeniowy i nasadzeniowy o zwiększonej odporności na choroby i szkodniki oraz warunki suszy rolniczej\n"]
[null,"113 Bezpieczeństwo oraz poprawa jakości surowców roślinnych w zakresie stosowania nawozów i środków ochrony roślin"]
[null,"114 Innowacyjne technologie i maszyny dla rolnictwa, w tym precyzyjnego"]
[null,"121 Zdrowa żywność, w tym ekologiczna, tradycyjna i regionalna"]
[null,"122 Innowacyjne sieci dystrybucji zdrowej, lokalnej i sezonowej żywności tzw.kooperatywy spożywcze"]
[null,"123 Technologie przetwórstwa rolno-spożywczego ograniczające zużycie energii i wody"]
[null,"124 Technologie podnoszące jakość, trwałość, funkcjonalność i bezpieczeństwo produktów pochodzenia roślinnego i zwierzęcego\n"]
[null,"125 Zrównoważona produkcja, przetwórstwo i przechowalnictwo"]
[null,"126 Innowacyjne systemy i oprogramowanie oraz inteligentne metody i narzędzia zarządzania i monitorowania przebiegu procesu produkcji oraz oceny jakości surowców i produktów gotowych                                                                                                                                                                                                                                                                                                                                                                                                                                                \n\n"]
[null,"127 Rozwijanie narzędzi i nowoczesnych technik badawczych oraz markerów jakości żywności"]
[null,"128 Innowacyjne systemy, układy, sensory i detektory elektroniczne i fotoniczne do zastosowań rolno-spożywczych "]
[null,"129 Technologie cyfrowe, w tym rozwiązania informatyczne służące do gromadzenia i analizy danych, wspomagających procesy produkcyjne w sektorze rolno-spożywczym\n"]
[null,"130 Technologie w zakresie transportu i przechowywania żywności"]
[null,"131 Innowacyjne modele marketingowe w promocji żywności wysokiej jakości"]
[null,"211 Efektywne zarządzanie zasobami obejmujące ich przetwarzanie, produkcję, sprzedaż, użytkowanie i zagospodarowanie odpadów\n"]
[null,"212 Wykorzystywanie biomasy do produkcji materiałów zastępujących inne nieodnawialne surowce"]
[null,"213 Obniżanie emisyjności przemysłu"]
[null,"214 Technologie i systemy przeciwdziałające zagrożeniom środowiskowym oraz monitoring poziomu zanieczyszczeń"]
[null,"215 Biodegradowalność surowców oraz optymalizacja zagospodarowania odpadów poprodukcyjnych (technologie, procesy, produkty)\n"]
[null,"216 Zero waste food"]
[null,"217 Biotechnologie w inżynierii i ochronie środowiska"]
[null,"218 Innowacyjne systemy, układy, sensory i detektory elektroniczne i fotoniczne do zastosowań w ochronie środowiska"]
[null,"219 Metody ochrony i rekultywacji gleb oraz oczyszczanie ścieków"]
[null,"220 Oszczędna i efektywna gospodarka wodna"]
[null,"221 Czyste technologie węglowe"]
[null,"222 Substancje bioaktywne przeznaczone do wytwarzania środków ochrony roślin, nawozów i leków, w tym leków weterynaryjnych \n"]
[null,"223 (Bio)polimery i (bio)tworzywa"]
[null,"231 Zwiększenie wykorzystania odnawialnych źródeł energii"]
[null,"232 Energia z odpadów i paliw alternatywnych"]
[null,"233 Poprawa efektywności konwersji energii"]
[null,"234 Innowacyjne systemy wytwarzania, zarządzania, przesyłu, dystrybucji energii\n"]
[null,"235 Inteligentne rozwiązania w sieciach elektroenergetycznych"]
[null,"236 Metody i technologie magazynowania energii"]
[null,"237 Smart mettering i inteligentne liczniki energii"]
[null,"238 Nowoczesne systemy ciepłownicze i chłodnicze"]
[null,"239 Systemy izolacyjne sprzyjające energooszczędności"]
[null,"240 Systemy dystrybucji energii w budynkach"]
[null,"241 Inteligentne, energooszczędne systemy oświetleniowe"]
[null,"242 Rozwój infrastruktury sprzyjającej elektromobilności"]
[null,"311 Promocja zdrowego stylu życia, w tym rozwój branży wellness"]
[null,"312 Profilaktyka chorób cywilizacyjnych i przeciwdziałanie zagrożeniom epidemiologicznym, w tym nowe innowacyjne metody leczenia i profilaktyki"]
[null,"313 Turystyka, w tym turystyka zdrowotna i prozdrowotna"]
[null,"314 Wykorzystanie zasobów (walorów) naturalnych regionu w funkcji uzdrowiskowej\n"]
[null,"315 Rozwój usług i produktów skierowanych do osób starszych, z niepełnosprawnościami, sprzyjających utrzymaniu ich samodzielności i aktywności"]
[null,"316 Nowe leki, innowacyjne suplementy diety, żywność funkcjonalna i środki spożywcze specjalnego przeznaczenia żywieniowego"]
[null,"317 Innowacyjne kosmetyki"]
[null,"318 Innowacyjne substancje biologicznie czynne jako potencjalne leki nowej generacji"]
[null,"321 Diagnostyka i terapia genowa"]
[null,"322 Medycyna spersonalizowana"]
[null,"323 Zintegrowana opieka medyczna"]
[null,"324 Chirurgia minimalnie inwazyjna"]
[null,"325 Medycyna regeneracyjna i inżynieria tkankowa"]
[null,"326 Medycyna translacyjna"]
[null,"331 Teleopieka i telemedycyna"]
[null,"332 Nowoczesne technologie materiałowe i materiały w medycynie i rehabilitacji"]
[null,"333 Informatyczne narzędzia medyczne do gromadzenia i analizy danych medycznych w celach diagnostycznych, terapeutycznych i rehabilitacyjnych"]
[null,"334 Innowacyjne systemy, układy, sensory i detektory elektroniczne i fotoniczne do zastosowań medycznych"]
[null,"335 Biosensory"]
[null,"336 Algorytmy sztucznej inteligencji do zastosowania medycznego"]
[null,"337 Robotyka medyczna"]
[null,"338 Rzeczywistość wirtualna i technologie symulacyjne w medycynie"]
[null,"411 Gromadzenie i przechowywanie danych, dygitalizaja zasobów, chmury"]
[null,"412 Aplikacje i analizy potencjału rynku"]
[null,"413 Projektowanie, zarządzanie, optymalizacja i sterowanie procesami produkcyjnymi"]
[null,"414 Technologie i systemy służące świadczeniu usług dla biznesu"]
[null,"415 Technologie i inteligentne systemy telekomunikacyjne i teleinformatyczne, w tym internet rzeczy"]
[null,"416 Systemy służące sprzedaży oraz obsłudze klienta, platformy e-zakupowe, telemarketing"]
[null,"417 Systemy i usługi płatnicze i finansowe (e-commerce)"]
[null,"421 Systemy wykorzystywane w transporcie, w tym systemy sterowania ruchem"]
[null,"422 Inteligentne bezzałogowe statki latające"]
[null,"423 Systemy i urządzenia sterowane numerycznie"]
[null,"431 Bezpieczeństwo i systemy ochrony cyberprzestrzeni"]
[null,"432 Cyberbezpieczeństwo systemów energetycznych"]
[null,"433 Systemy przewidywania i zapobiegania awariom"]
[null,"434 Przestrzenne systemy nawigacje i monitorowania, w tym rozwiązania stosowane w obiektach zamkniętych"]
[null,"435 Zintegrowane systemy zarządzania budynkami"]
[null,"436 Systemy bezinwazyjnego pomiaru i detekcji"]
[null,"437 Projektowanie, w tym projektowanie wnętrz i zabudowy"]
[null,"438 Rzeczywistość wirtualna i technologie symulacyjne"]
[null,"441 Wykorzystanie TIK na rzecz rozwoju edukacji w obszarze umiejętności cyfrowych w celu stworzenia warunków do edukacji zdalnej (na odległość)"]
[null,"442 Innowacyjne produkty i technologie stosowane w upowszechnianiu kultury i dziedzictwa narodowego oraz zabezpieczaniu zbiorów i ich konserwacji"]
[null,"443 Innowacyjne produkty i technologie stosowane w sporcie, rozrywce, reklamie i multimediach"]
[null,"444 Rozwój oprogramowania i technologii związanych ze sztuczną inteligencją i uczeniem maszynowym"]
[null,"511 Materiały o podwyższonych parametrach konstrukcyjnych i izolacyjnych, trwałości oraz charakteryzujące się wysoką odpornością na zużycie i czynniki degradujące"]
[null,"512 Niskoodpadowe technologie i linie produkcyjne wykorzystywane w procesach produkcyjnych"]
[null,"513 Innowacyjne maszyny i urządzenia zmniejszające energochłonność i pracochłonność  produkcji oraz zwiększające bezpieczeństwo pracy"]
[null,"514 Technologie i linie produkcyjne do wytwarzania materiałów i wyrobów z zastosowaniem surowców towarzyszących, produktów ubocznych i odpadów"]
[null,"515 Nowoczesne technologie i materiały dla sektora lotniczego"]
[null,"516 Inżynieria mechaniczna w zakresie nowoczesnych metod wytwarzania"]
[null,"517 Innowacyjne metody i narzędzia stosowane do oceny jakości wykonanych produktów\n"]
[null,"521 Nowoczesne technologie budowy dróg i mostów"]
[null,"522 Innowacyjne konstrukcje nośne z zastosowaniem nowoczesnych materiałów konstrukcyjnych, w tym kompozytów"]
[null,"523 Technologie i systemy sprzyjające racjonalnemu wykorzystaniu ciepła i wody w procesach produkcyjnych"]
[null,"524 Ponowne wykorzystanie materiałów oraz elementów budowlanych (recykling w budoownictwie)"]
[null,"531 Innowacyjne pokrycia dachowe oraz zawansowane technologicznie okna i drzwi\n"]
[null,"532 Innowacyjne systemy, układy, sensory i detektory elektroniczne i fotoniczne do  zastosowań w procesach produkcyjnych i logistycznych, energetyce i budownictwie"]
[null,"533 Innowacyjne technologie VR do zastosowań w procesach produkcyjnych i budownictwie"]
[null,"541 Automatyka przemysłowa i usługowa"]
[null,"542 Inteligentne opakowania umożliwiające monitoring jakości i zawartości otoczenia\n\n\n"]
[null,"543 Inteligentne magazyny z wysoce zautomatyzowanymi procesami logistycznymi"]
[null,"544 Nowoczesne opakowania, w tym biodegradowalne i wielokrotnego użytku"]
[null,"545 Zarządzanie procesami technologicznymi i logistycznymi, w tym sterowanie łańcuchem dostaw"]
[null,"546 Systemy i rozwiązania stosowane w usługach spedytorskich i dyspozytorskich"]
[]
[]
[]
[]
[]
[]
[]
[null,"Analiza innowacyjnych pomysłów pod kątem możliwości ich wdrożenia i komercjalizacji,"]
[null,"Opracowanie strategii komercjalizacji,"]
[null,"Opracowanie studiów wykonalności,"]
[null,"Przeprowadzenie badań rynkowych,"]
[null,"Usługi wyceny własności intelektualnej,"]
[null,"Usługi związane z ochroną własności intelektualnej,"]
[null,"Pośredniczenie w kontaktach między przedsiębiorstwem a naukowcami/właścicielami wyników prac B+R,"]
[null,"Realizacja prac w zakresie dostosowania innowacyjnych technologii/wyników prac B+R do specyfiki przedsiębiorstwa w celu ich wdrożenia do działalności MŚP,"]
[null,"Inne usługi związane z pobudzaniem transferu technologii i komercjalizacją badań, które są uzasadnione z punktu widzenia potrzeb i rozwoju wspieranego przedsiębiorstwa."]

{"sheet":"Doświadczenie","index":18,"n_rows":16,"n_cols":1,"rows_kept":16,"cut":false,"hidden":false,"merged":[]}
["1. Doświadczenie wnioskodawcy i członków klastra"]
["Współpraca międzyregionalna, transgraniczna lub transnarodowa "]
["W wierszu poniżej należy wskazać, czy koordynator klastra i minimum dwa inne podmioty należące do klastra, które posiadają siedzibę na terenie województwa lubelskiego, albo co najmniej 3 podmioty z siedzibą na terenie województwa należące, do klastra (bez udziału koordynatora), posiadają doświadczenie i/lub są zaangażowani w działania współpracy międzyregionalnej, transgranicznej lub transnarodowej (nie dotyczy współpracy z organizacją prowadzącą badania i upowszechniającą wiedzę).\nZasięg międzyregionalny oznacza współpracę z podmiotami z innych województw, zasięg transgraniczny oznacza współpracę z podmiotami z obszarów przygranicznych Rzeczpospolitej Polskiej, bezpośrednio przylegających do granicy województwa lubelskiego (tj. przygranicznych obszarach Ukrainy lub Białorusi), zasięg transnarodowy oznacza współpracę z podmiotami z zagranicy (z wyłączeniem obszarów transgranicznych).\nZa współpracę międzyregionalną, transgraniczną lub transnarodową nie jest uznawana współpraca z osobami lub podmiotami, wpisanymi na listę osób, wobec których są stosowane środki określone w art. 1 ustawy z dnia 13 kwietnia 2022 r. o szczególnych rozwiązaniach w zakresie przeciwdziałania wspieraniu agresji na Ukrainę oraz służących ochronie bezpieczeństwa narodowego, prowadzona w okresie stosowania tych środków.\nW przypadku, gdy członkami klastra są podmioty nie posiadające siedziby ani oddziału, ani miejsca prowadzenia działalności na terenie województwa lubelskiego uznaje się, że członkowie klastra są zaangażowani w działania współpracy międzyregionalnej, transgranicznej lub transnarodowej i należy wybrać opcję \"TAK\"."]
[]
["Jeżeli w pytaniu powyżej wybrano opcję \"TAK\", w wierszu poniżej należy wskazać nazwy członków klastra, którzy zrealizowali lub są zaangażowani we wspólne działania w zakresie współpracy międzyregionalnej, transgranicznej lub transnarodowej oraz opisać te działania. W przypadku, gdy członkami klastra są podmioty nie posiadające siedziby ani oddziału, ani miejsca prowadzenia działalności na terenie województwa lubelskiego uznaje się, że członkowie klastra są zaangażowani w działania współpracy międzyregionalnej, transgranicznej lub transnarodowej i należy wskazać wyłącznie nazwę i adres siedziby/oddziału/miejsca wykonywania działalności takiego podmiotu."]
[]
["Współpraca z organizacją prowadzącą badania i upowszechniającą wiedzę, spoza woj. lubelskiego"]
["W wierszu poniżej należy wskazać, czy koordynator klastra i minimum dwa inne podmioty należące do klastra, które posiadają siedzibę na terenie województwa lubelskiego, albo co najmniej 3 podmioty z siedzibą na terenie województwa, należące do klastra (bez udziału koordynatora), posiadają doświadczenie i/lub są zaangażowani w działania współpracy z organizacją prowadząca badania i upowszechniającą wiedzę w rozumieniu art. 2 pkt 83 Rozporządzenia Komisji (UE) nr 651/2014, która nie posiada siedziby ani filii na obszarze województwa lubelskiego.\nW przypadku, gdy członkami lub partnerami klastra są organizacje prowadzące badania i upowszechniające wiedzę nie posiadające siedziby ani filii na terenie województwa lubelskiego uznaje się że współpraca istnieje i należy wybrać opcję \"TAK\"."]
[]
["Jeżeli w pytaniu powyżej wybrano opcję \"TAK\", w wierszu poniżej należy wskazać nazwy członków klastra, którzy są zaangażowani we wspólne działania współpracy  z organizacją prowadząca badania i upowszechniającą wiedzę, która nie posiada siedziby ani filii na obszarze województwa lubelskiego oraz opisać te działania. W przypadku, gdy członkami lub partnerami klastra są organizacje prowadzące badania i upowszechniające wiedzę nie posiadające siedziby ani filii na terenie województwa lubelskiego uznaje się, że współpraca istnieje i należy wskazać wyłącznie nazwę i adres siedziby/oddziału/miejsca wykonywania działalności takiego podmiotu."]
[]
["2. Potencjał wnioskodawcy"]
["W wierszu poniżej należy wskazać, czy wnioskodawca (koordynator klastra) lub reprezentowany przez niego klaster na dzień złożenia wniosku o dofinansowanie zrealizował co najmniej jeden projekt współfinansowany ze środków UE w okresie od 2014 r., a jeśli tak, należy podać nazwę zrealizowanego projektu, krótko opisać jego przedmiot, okres realizacji i wskazać źródła finansowania."]
[" "]
["3. Nawiązanie w ramach projektu współpracy międzyregionalnej, transgranicznej lub transnarodowej"]
["W wierszu poniżej należy wskazać, czy wnioskodawca zaplanował, że w wyniku realizacji projektu zostanie nawiązana współpraca z innymi klastrami, instytucjami otoczenia biznesu lub organizacjami badawczymi związanymi z branżą, w której działa klaster, posiadającymi siedzibę/oddział/miejsce prowadzenia działalności poza województwem lubelskim, a jeśli tak należy opisać zakres planowanej współpracy."]

{"sheet":"Formularz pomocy innej","index":19,"n_rows":246,"n_cols":31,"rows_kept":246,"cut":false,"hidden":false,"merged":[[243,0,243,31],[244,0,244,31],[245,0,245,31],[41,1,41,2],[41,4,41,5],[41,7,41,10],[110,1,110,24],[172,1,172,5],[172,6,172,7],[166,1,166,5],[166,6,166,7],[214,0,214,31],[218,0,218,31],[234,0,234,31],[235,0,235,31],[236,0,236,31],[237,0,237,31],[238,0,238,31],[239,0,239,31],[240,0,240,31],[241,0,241,31],[242,0,242,31],[228,0,228,31],[229,0,229,31],[230,0,230,31],[231,0,231,31],[232,0,232,31],[233,0,233,31],[224,0,224,31],[225,0,225,31],[226,0,226,31],[227,0,227,31],[217,0,217,31],[219,0,219,31],[220,0,220,31],[221,0,221,31],[222,0,222,31],[223,0,223,31],[210,0,210,31],[211,0,211,31],[212,0,212,31],[213,0,213,31],[215,0,215,31],[216,0,216,31],[203,1,203,30],[204,1,204,30],[205,1,205,30],[206,1,206,30],[207,1,207,30],[209,1,209,13],[209,18,209,30],[197,1,197,30],[198,1,198,30],[199,1,199,30],[200,1,200,30],[201,1,201,30],[202,1,202,30],[191,2,191,30],[192,1,192,30],[193,1,193,30],[194,1,194,30],[195,1,195,30],[196,1,196,30],[185,1,185,30],[186,2,186,30],[187,2,187,30],[188,2,188,30],[189,2,189,30],[190,2,190,30],[182,16,183,17],[182,18,183,19],[182,20,183,21],[182,22,183,23],[182,24,183,25],[182,26,183,27],[182,1,183,5],[182,6,183,7],[182,8,183,9],[182,10,183,11],[182,12,183,13],[182,14,183,15],[178,22,181,23],[178,24,181,25],[178,26,181,27],[178,1,181,5],[178,6,181,7],[178,8,181,9],[178,10,181,11],[178,12,181,13],[178,14,181,15],[173,1,177,5],[173,6,177,7],[173,8,177,9],[173,10,177,11],[173,12,177,13],[173,14,177,15],[178,16,181,17],[178,18,181,19],[178,20,181,21],[173,16,177,17],[173,18,177,19],[173,20,177,21],[173,22,177,23],[173,24,177,25],[173,26,177,27],[168,26,171,27],[168,14,171,15],[168,16,171,17],[168,18,171,19],[168,20,171,21],[168,22,171,23],[168,24,171,25],[168,1,171,5],[168,6,171,7],[168,8,171,9],[168,10,171,11],[168,12,171,13],[167,1,167,5],[167,6,167,7],[167,8,167,9],[167,10,167,11],[167,12,167,13],[167,14,167,15],[167,16,167,17],[167,18,167,19],[167,20,167,21],[167,22,167,23],[167,24,167,25],[167,26,167,27],[151,1,152,24],[155,1,158,24],[157,27,157,30],[165,1,165,30],[153,27,153,30],[160,1,163,24],[162,27,162,30],[131,1,131,30],[132,1,132,30],[141,1,145,23],[146,1,146,30],[147,1,148,24],[149,1,150,24],[120,1,125,30],[126,1,126,30],[127,1,127,30],[128,1,128,30],[129,1,129,30],[130,1,130,30],[133,1,133,20],[134,1,134,30],[136,1,136,30],[135,1,135,30],[139,1,139,30],[137,1,138,30],[143,26,143,29],[111,1,111,23],[112,1,112,24],[113,1,113,23],[115,1,115,24],[117,1,119,23],[118,26,118,29],[119,26,119,29],[106,1,107,24],[108,1,108,23],[109,1,109,23],[97,1,98,30],[99,1,101,23],[101,26,101,29],[102,1,103,30],[104,1,104,29],[105,1,105,24],[85,2,85,16],[86,2,86,16],[87,2,88,16],[89,2,89,30],[90,2,94,30],[95,1,96,24],[96,27,96,30],[77,1,77,27],[78,2,78,16],[79,2,79,16],[80,2,81,16],[82,2,82,16],[83,2,83,16],[84,2,84,16],[70,1,70,24],[72,1,73,24],[74,1,76,24],[75,27,75,30],[76,27,76,30],[58,1,59,30],[60,1,62,30],[63,1,63,30],[64,1,66,24],[65,27,65,30],[67,1,69,24],[68,27,68,30],[0,0,1,31],[2,0,2,31],[3,0,3,31],[4,1,4,14],[4,17,4,30],[5,1,5,14],[23,3,24,30],[25,3,25,11],[26,3,26,30],[13,1,13,14],[15,1,15,9],[16,3,16,16],[17,3,17,15],[18,3,19,29],[20,3,22,30],[7,1,7,14],[8,1,8,14],[8,17,8,30],[9,1,10,14],[9,17,10,31],[11,1,11,14],[11,17,11,30],[27,1,28,30],[29,3,29,8],[30,3,30,9],[44,1,45,24],[46,1,47,24],[48,1,49,24],[50,1,52,24],[53,1,54,24],[55,1,57,24],[31,3,31,9],[32,3,32,15],[33,1,33,31],[39,1,39,9],[42,1,42,12],[43,1,43,30],[35,1,36,29],[37,1,38,28]]}
["Formularz informacji przedstawianych przy ubieganiu się o pomoc inną niż pomoc w rolnictwie lub rybołówstwie, pomoc de minimis lub pomoc de minimis w rolnictwie lub rybołówstwie "]
[]
["Zgodnie z art. 37 ust. 8 ustawy z dnia 30 kwietnia 2004 r. o postępowaniu w sprawach dotyczących pomocy publicznej (Dz. U. z 2026 r. poz. 500, z późn. zm.) niniejszy formularz wypełnia się wyłącznie w zakresie, w którym informacje w nim określone nie są przedstawiane na podstawie odrębnych ustaw."]
["Wraz z formularzem przedstawia się sprawozdania finansowe zgodnie z § 2 ust. 2 rozporządzenia Rady Ministrów z dnia 29 marca 2010 r. w sprawie zakresu informacji przedstawianych przez podmiot ubiegający się o pomoc inną niż pomoc de minimis lub pomoc de minimis w rolnictwie lub rybołówstwie (Dz. U. poz. 312, z późn. zm.).\n"]
[null,"A. Informacje dotyczące podmiotu, któremu ma być udzielona pomoc publiczna1)",null,null,null,null,null,null,null,null,null,null,null,null,null,null,null,"A1. Informacje dotyczące wnioskodawcy niebędącego podmiotem, któremu ma być udzielona pomoc publiczna2)"]
[null,"1) Identyfikator podatkowy NIP podmiotu",null,null,null,null,null,null,null,null,null,null,null,null,null,null,null,"1a) Identyfikator podatkowy NIP wnioskodawcy3)"]
[]
[null,"2) Imię i nazwisko albo nazwa podmiotu",null,null,null,null,null,null,null,null,null,null,null,null,null,null,null,"2a) Imię i nazwisko albo nazwa wnioskodawcy"]
[]
[null,"3) Adres miejsca zamieszkania albo adres siedziby podmiotu",null,null,null,null,null,null,null,null,null,null,null,null,null,null,null,"3a) Adres miejsca zamieszkania albo adres siedziby wnioskodawcy"]
[]
[]
[]
[null,"4) Identyfikator gminy, w której podmiot ma miejsce zamieszkania albo siedzibę4)"]
[]
[null,"5) Forma prawna podmiotu5)"]
[null,null,null,"przedsiębiorstwo państwowe"]
[null,null,null,"jednoosobowa spółka Skarbu Państwa"]
[null,null,null,"jednoosobowa spółka jednostki samorządu terytorialnego w rozumieniu przepisów ustawy z dnia 20 grudnia 1996 r. o gospodarce komunalnej (Dz. U. z 2021 r. poz. 679)"]
[]
[null,null,null,"podmiot, w stosunku do którego Skarb Państwa, jednostka samorządu terytorialnego, przedsiębiorstwo państwowe lub jednoosobowa spółka Skarbu Państwa są podmiotami, które posiadają uprawnienia takie jak przedsiębiorcy dominujący w rozumieniu przepisów ustawy z dnia 16 lutego 2007 r. o ochronie konkurencji i konsumentów (Dz. U. z 2025 r. poz. 1714)"]
[]
[]
[null,null,null,"jednostka sektora finansów publicznych w rozumieniu przepisów ustawy z dnia 27 sierpnia 2009 r. o finansach publicznych (Dz. U. z 2025 r. poz. 1483, z późn. zm.)"]
[]
[null,null,null,"inna (podać jaka)"]
[]
[null,"6) Wielkość podmiotu, zgodnie z załącznikiem I do rozporządzenia Komisji (UE) nr 651/2014 z dnia 17 czerwca 2014 r. uznającego niektóre rodzaje pomocy za zgodne z rynkiem wewnętrznym w zastosowaniu art. 107 i 108 Traktatu (Dz. Urz. UE L 187 z 26.06.2014, str. 1, z późn. zm.), zwanego dalej \"rozporządzeniem Komisji (UE) nr 651/2014\"5)"]
[]
[null,null,null,"mikroprzedsiębiorca"]
[null,null,null,"mały przedsiębiorca"]
[null,null,null,"średni przedsiębiorca"]
[null,null,null,"inny przedsiębiorca"]
[null,"7) Klasa działalności, w związku z którą podmiot ubiega się o pomoc publiczną6)"]
[]
[null,"a) \tokreślona zgodnie z rozporządzeniem Rady Ministrów z dnia 18 grudnia 2024 r. w sprawie Polskiej Klasyfikacji Działalności (PKD) (Dz. U. poz. 1936)"]
[]
[null,"b)\t określona zgodnie z rozporządzeniem Rady Ministrów z dnia 24 grudnia 2007 r. w sprawie Polskiej Klasyfikacji Działalności (PKD) (Dz. U. poz. 1885, z późn. zm.)7)"]
[]
[null,"8) Data utworzenia podmiotu"]
[null,null,null," - ",null,null," - "]
[null,"dzień",null,null,"miesiąc",null,null,"rok"]
[null,"9) Powiązania z innymi przedsiębiorcami"]
[null,"Czy między podmiotem a innymi przedsiębiorcami istnieją powiązania polegające na tym, że:"]
[null,"a) jeden przedsiębiorca posiada w drugim większość praw głosu?",null,null,null,null,null,null,null,null,null,null,null,null,null,null,null,null,null,null,null,null,null,null,null,null,null,"tak",null,null,"nie"]
[]
[null,"b) jeden przedsiębiorca ma prawo powołać lub odwołać większość członków organu zarządzającego lub nadzorującego innego przedsiębiorcy?",null,null,null,null,null,null,null,null,null,null,null,null,null,null,null,null,null,null,null,null,null,null,null,null,null,"tak",null,null,"nie"]
[]
[null,"c) jeden przedsiębiorca ma prawo wywierać dominujący wpływ na innego przedsiębiorcę zgodnie z umową zawartą z tym przedsiębiorcą lub jego dokumentami założycielskimi?",null,null,null,null,null,null,null,null,null,null,null,null,null,null,null,null,null,null,null,null,null,null,null,null,null,"tak",null,null,"nie"]
[]
[null,"d) jeden przedsiębiorca, który jest akcjonariuszem lub wspólnikiem innego przedsiębiorcy lub jego członkiem, zgodnie z porozumieniem z innymi akcjonariuszami, wspólnikami lub członkami tego przedsiębiorcy, samodzielnie kontroluje większość praw głosu u tego przedsiębiorcy?",null,null,null,null,null,null,null,null,null,null,null,null,null,null,null,null,null,null,null,null,null,null,null,null,null,"tak",null,null,"nie"]
[]
[]
[null,"e) przedsiębiorca pozostaje w jakimkolwiek ze stosunków opisanych w lit. a-d  przez jednego innego przedsiębiorcę lub kilku innych przedsiębiorców?",null,null,null,null,null,null,null,null,null,null,null,null,null,null,null,null,null,null,null,null,null,null,null,null,null,"tak",null,null,"nie"]
[]
[null,"f) przedsiębiorca pozostaje w jakimkolwiek ze stosunków opisanych w lit. a-d za pośrednictwem osoby fizycznej lub grupy osób fizycznych działających wspólnie oraz prowadzi swoją działalność lub część działalności na tym samym rynku właściwym lub rynkach pokrewnych8)? ",null,null,null,null,null,null,null,null,null,null,null,null,null,null,null,null,null,null,null,null,null,null,null,null,null,"tak",null,null,"nie"]
[]
[]
[null,"W przypadku zaznaczenia przynajmniej jednej odpowiedzi twierdzącej w lit. a - f należy podać identyfikator podatkowy NIP wszystkich powiązanych z podmiotem przedsiębiorców: "]
[]
[]
[]
[]
[null,"B. Informacje dotyczące sytuacji ekonomicznej podmiotu, któremu ma być udzielona pomoc publiczna9)"]
[null,"1) Czy - w przypadku spółki akcyjnej, spółki z ograniczoną odpowiedzialnością oraz  spółki komandytowo-akcyjnej - wysokość niepokrytych strat przewyższa 50 % wysokości kapitału zarejestrowanego?10)",null,null,null,null,null,null,null,null,null,null,null,null,null,null,null,null,null,null,null,null,null,null,null,null,null,"tak",null,null,"nie"]
[null,null,null,null,null,null,null,null,null,null,null,null,null,null,null,null,null,null,null,null,null,null,null,null,null,null,null,"nie dotyczy"]
[]
[null,"2) Czy - w przypadku spółki jawnej, spółki komandytowej, spółki partnerskiej oraz spółki cywilnej - wysokość niepokrytych strat przewyższa 50 % wysokości jej kapitału według ksiąg spółki?\n\n",null,null,null,null,null,null,null,null,null,null,null,null,null,null,null,null,null,null,null,null,null,null,null,null,null,"tak",null,null,"nie"]
[null,null,null,null,null,null,null,null,null,null,null,null,null,null,null,null,null,null,null,null,null,null,null,null,null,null,null,"nie dotyczy"]
[]
[null,"3) Czy wobec podmiotu toczy się postępowanie upadłościowe lub restrukturyzacyjne lub spełnia on kryteria kwalifikujące go do objęcia postępowaniem upadłościowym?",null,null,null,null,null,null,null,null,null,null,null,null,null,null,null,null,null,null,null,null,null,null,null,null,null,"tak",null,null,"nie"]
[]
[null,"4) Czy podmiot otrzymał pomoc na ratowanie i nie spłacił do tej pory pożyczki lub nadal jest stroną umowy gwarancji lub otrzymał pomoc na restrukturyzację i nadal realizuje plan restrukturyzacyjny?",null,null,null,null,null,null,null,null,null,null,null,null,null,null,null,null,null,null,null,null,null,null,null,null,null,"tak",null,null,"nie"]
[]
[null,"5) Czy – w przypadku podmiotu innego niż mikroprzedsiębiorca lub innego niż mały lub średni przedsiębiorca – w ciągu ostatnich dwóch lat stosunek długów do kapitału własnego był większy niż 7,5, a stosunek zysku operacyjnego powiększonego o amortyzację do odsetek był niższy niż 1 )11)?",null,null,null,null,null,null,null,null,null,null,null,null,null,null,null,null,null,null,null,null,null,null,null,null,null,"tak",null,null,"nie"]
[null,null,null,null,null,null,null,null,null,null,null,null,null,null,null,null,null,null,null,null,null,null,null,null,null,null,null,"nie dotyczy"]
[]
[null,"6) Czy w okresie 3 lat poprzedzających dzień wystąpienia z wnioskiem o udzielenie pomocy:"]
[null,null,"a) podmiot odnotowuje rosnące straty?",null,null,null,null,null,null,null,null,null,null,null,null,null,null,null,"tak",null,null,"nie"]
[null,null,"b) obroty podmiotu maleją? ",null,null,null,null,null,null,null,null,null,null,null,null,null,null,null,"tak",null,null,"nie"]
[null,null,"c) zwiększeniu ulegają zapasy podmiotu lub niewykorzystany potencjał do świadczenia usług?",null,null,null,null,null,null,null,null,null,null,null,null,null,null,null,"tak",null,null,"nie"]
[]
[null,null,"d) podmiot ma nadwyżki produkcji?12)",null,null,null,null,null,null,null,null,null,null,null,null,null,null,null,"tak",null,null,"nie"]
[null,null,"e) zmniejsza się przepływ środków finansowych?",null,null,null,null,null,null,null,null,null,null,null,null,null,null,null,"tak",null,null,"nie"]
[null,null,"f) zwiększa się suma zadłużenia podmiotu?",null,null,null,null,null,null,null,null,null,null,null,null,null,null,null,"tak",null,null,"nie"]
[null,null,"g) rosną kwoty odsetek od zobowiązań podmiotu?",null,null,null,null,null,null,null,null,null,null,null,null,null,null,null,"tak",null,null,"nie"]
[null,null,"h) wartość aktywów netto podmiotu zmniejsza się lub jest zerowa?\n",null,null,null,null,null,null,null,null,null,null,null,null,null,null,null,"tak",null,null,"nie"]
[null,null,"i) zaistniały inne okoliczności wskazujące na trudności w zakresie płynności finansowej?",null,null,null,null,null,null,null,null,null,null,null,null,null,null,null,"tak",null,null,"nie"]
[]
[null,null,"Jeśli tak, należy wskazać jakie:"]
[]
[]
[]
[]
[]
[null,"7) Czy podmiot, któremu ma być udzielona pomoc, oraz przedsiębiorcy z nim powiązani, których identyfikatory podatkowe są wskazane w części A pkt 9 formularza, spełniają łącznie co najmniej jedną z przesłanek określonych w pkt 1–5?",null,null,null,null,null,null,null,null,null,null,null,null,null,null,null,null,null,null,null,null,null,null,null,null,null,"tak",null,null,"nie"]
[null,null,null,null,null,null,null,null,null,null,null,null,null,null,null,null,null,null,null,null,null,null,null,null,null,null,null,"nie dotyczy"]
[null,"C. Informacja o decyzji Komisji Europejskiej nakładającej obowiązek zwrotu udzielonej pomocy publicznej"]
[]
[null,"Czy na podmiocie, któremu ma być udzielona pomoc publiczna lub którymkolwiek przedsiębiorcy z nim powiązanym, którego identyfikator podatkowy jest wskazany w części A pkt 9 formularza, ciąży obowiązek zwrotu udzielonej pomocy, wynikający z decyzji Komisji Europejskiej nakazującej zwrot?",null,null,null,null,null,null,null,null,null,null,null,null,null,null,null,null,null,null,null,null,null,null,null,null,"tak",null,null,"nie"]
[]
[]
[null,"D. Informacje dotyczące działalności gospodarczej prowadzonej przez podmiot, któremu ma być udzielona pomoc publiczna"]
[]
[null,"1. Czy podmiot, któremu ma być udzielona pomoc, prowadzi dzialalność:"]
[null,"a) w sektorze rybołówstwa i akwakultury?13)",null,null,null,null,null,null,null,null,null,null,null,null,null,null,null,null,null,null,null,null,null,null,null,null,"tak",null,null,"nie"]
[null,"b) w zakresie produkcji podstawowej produktów rolnych wymienionych w załączniku I do Traktatu o funkcjonowaniu Unii Europejskiej?",null,null,null,null,null,null,null,null,null,null,null,null,null,null,null,null,null,null,null,null,null,null,null,null,"tak",null,null,"nie"]
[]
[null,"c) w sektorze hutnictwa żelaza i stali?14)",null,null,null,null,null,null,null,null,null,null,null,null,null,null,null,null,null,null,null,null,null,null,null,null,"tak",null,null,"nie"]
[null,"d) w sektorze transportu15) lub związanej z tym infrastruktury?",null,null,null,null,null,null,null,null,null,null,null,null,null,null,null,null,null,null,null,null,null,null,null,null,"tak",null,null,"nie"]
[null,"e) w sektorze wytwarzania, magazynowania, przesyłu lub dystrybucji energii lub związanej z tym infrastruktury?16)",null,null,null,null,null,null,null,null,null,null,null,null,null,null,null,null,null,null,null,null,null,null,null,null,"tak",null,null,"nie"]
[null,"f) w sektorze węgla brunatnego i sektorze węgla kamiennego?17)",null,null,null,null,null,null,null,null,null,null,null,null,null,null,null,null,null,null,null,null,null,null,null,null,"tak",null,null,"nie"]
[null,"g) w sektorze finansowym?18)",null,null,null,null,null,null,null,null,null,null,null,null,null,null,null,null,null,null,null,null,null,null,null,null,"tak",null,null,"nie"]
[null,"h) w sektorze łączności szerokopasmowej",null,null,null,null,null,null,null,null,null,null,null,null,null,null,null,null,null,null,null,null,null,null,null,null,"tak",null,null,"nie"]
[]
[null,"2.Czy pomoc, o którą podmiot wnioskuje, zostanie przeznaczona na działalność wskazaną w pkt 1 lit. a–h?",null,null,null,null,null,null,null,null,null,null,null,null,null,null,null,null,null,null,null,null,null,null,null,null,"tak",null,null,"nie"]
[]
[null,"3. W przypadku zaznaczenia odpowiedzi twierdzącej w pkt 1: czy jest zapewniona rozdzielność rachunkowa19) uniemożliwiająca przeniesienie na wskazaną w tym punkcie działalność korzyści wynikających z uzyskanej pomocy (w jaki sposób)?",null,null,null,null,null,null,null,null,null,null,null,null,null,null,null,null,null,null,null,null,null,null,null,null,"tak",null,null,"nie"]
[null,null,null,null,null,null,null,null,null,null,null,null,null,null,null,null,null,null,null,null,null,null,null,null,null,null,"nie dotyczy"]
[]
[]
[]
[]
[]
[]
[]
[null,"4. Informacje dotyczące planowanego przedsięwzięcia20) na realizację którego podmiot ubiega się o pomoc"]
[null,"a) opis przedsięwzięcia, w tym planowane daty jego rozpoczęcia21) i zakończenia"]
[]
[null,"b) lokalizacja przedsięwzięcia22)"]
[]
[null,"c) wykaz kosztów przedsięwzięcia oraz ich wartości nominalne i zdyskontowane"]
[]
[null,"d) wartość pomocy, o jaką wnioskuje podmiot ubiegający się o pomoc"]
[]
[null,"e) całkowita wartość pomocy potrzebna do realizacji przedsięwzięciaający się o pomoc"]
[]
[null,"f) w przypadku gdy całkowita wartość pomocy wskazana w lit. e jest większa od wartości pomocy wskazanej\nw lit. d, należy podać informacje o innej pomocy (wskazać odpowiednią podstawę prawną), jaka zostanie udzielona na realizację przedsięwzięcia"]
[]
[]
[]
[null,"5. W przypadku ubiegania się o regionalną pomoc inwestycyjną udzielaną na warunkach określonych w komunikacie Komisji – Wytyczne w sprawie regionalnej pomocy państwa (Dz. Urz. UE C 153 z 29.04.2021, str. 1, z późn. zm.) lub w rozporządzeniu Komisji (UE) nr 651/2014, czy podmiot ubiegający się o pomoc potwierdza, że nie dokonał przeniesienia, o którym mowa w pkt 19 ppkt 24 tego komunikatu lub w art. 2 pkt 61a tego rozporządzenia, w ciągu dwóch lat poprzedzających złożenie wniosku o pomoc, oraz zobowiązuje się, że nie dokona takiego przeniesienia przez okres dwóch lat od zakończenia inwestycji? ",null,null,null,null,null,null,null,null,null,null,null,null,null,null,null,null,null,null,null,null,null,null,null,null,"tak",null,null,"nie"]
[]
[null,null,null,null,null,null,null,null,null,null,null,null,null,null,null,null,null,null,null,null,null,null,null,null,null,null,"nie dotyczy"]
[]
[]
[null,"E. Informacje dotyczące otrzymanej pomocy"]
[null,"1. Czy pomoc, o którą podmiot wnioskuje, zostanie przeznaczona na przedsięwzięcie, na które podmiot otrzymał inną pomoc 23)?",null,null,null,null,null,null,null,null,null,null,null,null,null,null,null,null,null,null,null,null,null,null,null,null,null,"tak",null,null,"nie"]
[]
[null,"2. Czy pomoc, o którą podmiot wnioskuje, zostanie przeznaczona na pokrycie dających się zidentyfikować kosztów?",null,null,null,null,null,null,null,null,null,null,null,null,null,null,null,null,null,null,null,null,null,null,null,null,null,"tak",null,null,"nie"]
[]
[null,"3. W przypadku zaznaczenia odpowiedzi twierdzącej w pkt 1, czy została udzielona inna pomoc na pokrycie tych samych kosztów, o których mowa w pkt 2?\t",null,null,null,null,null,null,null,null,null,null,null,null,null,null,null,null,null,null,null,null,null,null,null,null,null,"tak",null,null,"nie"]
[]
[null,null,null,null,null,null,null,null,null,null,null,null,null,null,null,null,null,null,null,null,null,null,null,null,null,null,null,"nie dotyczy"]
[]
[null,"4. W przypadku ubiegania się o pomoc na ratowanie, pomoc na restrukturyzację lub tymczasową pomoc na restrukturyzację, czy w okresie 10 lat poprzedzających dzień złożenia wniosku o udzielenie pomocy została udzielona tego rodzaju pomoc lub został zakończony okres restrukturyzacji wspierany pomocą lub została wstrzymana realizacja planu restrukturyzacji wspieranego pomocą?",null,null,null,null,null,null,null,null,null,null,null,null,null,null,null,null,null,null,null,null,null,null,null,null,null,"tak",null,null,"nie"]
[]
[null,null,null,null,null,null,null,null,null,null,null,null,null,null,null,null,null,null,null,null,null,null,null,null,null,null,null,"nie dotyczy"]
[]
[]
[null,"5. W przypadku ubiegania się o regionalną pomoc inwestycyjną udzielaną na warunkach określonych w komunikacie Komisji – Wytyczne w sprawie regionalnej pomocy państwa (Dz. Urz. UE C 153 z 29.04.2021, str. 1, z późn. zm.) lub w rozporządzeniu Komisji (UE) nr 651/2014: czy podmiot ubiegający się o pomoc w tym samym regionie NUTS 3 oraz w ciągu ostatnich trzech lat otrzymał w związku z realizacją innego przedsięwzięcia pomoc związaną z taką samą lub podobną działalnością 24), która ma być prowadzona w planowanym przedsięwzięciu?",null,null,null,null,null,null,null,null,null,null,null,null,null,null,null,null,null,null,null,null,null,null,null,null,null,"tak",null,null,"nie"]
[]
[null,null,null,null,null,null,null,null,null,null,null,null,null,null,null,null,null,null,null,null,null,null,null,null,null,null,null,"nie dotyczy"]
[]
[]
[null,"6. W przypadku zaznaczenia przynajmniej jednej odpowiedzi twierdzącej w pkt 1 i 3–5 należy wypełnić poniższą tabelę 26) w odniesieniu do już otrzymanej pomocy. "]
[null,"Wartość pomocy brutto (PLN)",null,null,null,null,7]
[null,"Forma pomocy",null,null,null,null,6]
[null,"Przeznaczenie pomocy",null,null,null,null,5]
[]
[]
[]
[null,"Podstawa prawna udzielenia pomocy",null,null,null,null,4]
[null,"Podmiot udzielający pomocy",null,null,null,null,3]
[]
[]
[]
[]
[null,"Dzień udzielenia pomocy",null,null,null,null,2]
[]
[]
[]
[null,"Lp.",null,null,null,null,1,null,"1.",null,"2.",null,"3.",null,"4.",null,"5.",null,"6.",null,"7.",null,"8.",null,"9.",null,"10."]
[]
[]
[null,"7.  W przypadku ubiegania się o pomoc w ramach następujących przeznaczeń pomocy:"]
[null,null,"a) na udział mikroprzedsiębiorców, małych i średnich przedsiębiorców w targach (art. 19 rozporządzenia Komisji (UE) nr 651/2014),"]
[null,null,"b) w formie subsydiowania wynagrodzeń na rekrutację pracowników znajdujących się w szczególnie\nniekorzystnej sytuacji (art. 32 rozporządzenia Komisji (UE) nr 651/2014),"]
[null,null,"c) w formie subsydiowania wynagrodzeń na zatrudnianie pracowników niepełnosprawnych\n(art. 33 rozporządzenia Komisji (UE) nr 651/2014),"]
[null,null,"d) na rekompensatę dodatkowych kosztów związanych z zatrudnieniem pracowników niepełnosprawnych (art. 34 rozporządzenia Komisji (UE) nr 651/2014),\n"]
[null,null,"e) na rekompensatę kosztów wsparcia udzielanego pracownikom znajdującym się w szczególnie niekorzystnej sytuacji (art. 35 rozporządzenia Komisji (UE) nr 651/2014),"]
[null,null,"f) operacyjnej na kulturę i zachowanie dziedzictwa kulturowego (art. 53 rozporządzenia Komisji (UE) nr 651/2014),"]
[null,"należy podać całkowitą wartość w euro26) pomocy  otrzymanej przez podmiot ubiegający się o pomoc oraz powiązane z nim podmioty, których identyfikatory podatkowe są wskazane w części A pkt 9 formularza w roku, w którym podmiot ubiega się o pomoc, w ramach tego samego przeznaczenia, co przeznaczenie pomocy o którą się ubiega:"]
[]
[null,"8. W przypadku ubiegania się o pomoc na finansowanie ryzyka (art. 21 i art. 21a rozporządzenia Komisji (UE) nr 651/2014) lub pomoc dla przedsiębiorstw rozpoczynających działalność (art. 22 rozporządzenia Komisji (UE) nr 651/2014) należy podać całkowitą wartość w euro26) pomocy otrzymanej przez podmiot ubiegający się o pomoc oraz powiązane z nim podmioty, których identyfikatory podatkowe są wskazane w części A pkt 9 formularza, w ramach tego samego przeznaczenia, co przeznaczenie pomocy, o którą się ubiega:"]
[]
[null,"9. Jeżeli w tabeli zamieszczonej w pkt 6 wykazano jakąkolwiek pomoc, należy dodatkowo podać następujące informacje dotyczące przedzięwzięcia, na realizację którego podmiot tę pomoc otrzymał:"]
[null,"a) opis przedsięwzięcia27)"]
[]
[null,"b) wykaz kosztów przedsięwzięcia kwalifikujących się do objęcia pomocą oraz ich wartości nominalne i zdyskontowane"]
[]
[null,"c) lokalizacja przedsięwzięcia22)"]
[]
[null,"d) etapy realizacji przedsięwzięcia"]
[]
[null,"e) data rozpoczęcia21) i zakończenia realizacji przedsięwzięcia"]
[]
[null,"F. Informacje dotyczące osoby upoważnionej do przedstawienia informacji"]
[null,"Imię i nazwisko"]
[]
["1)  W przypadku gdy o pomoc wnioskuje wspólnik spółki cywilnej, jawnej albo partnerskiej, komplementariusz spółki komandytowej albo komandytowo-akcyjnej niebędący akcjonariuszem, wspólnik jednoosobowej spółki z ograniczoną odpowiedzialnością albo akcjonariusz prostej spółki akcyjnej lub inny podmiot, na który została przeniesiona odpowiedzialność podatkowa, w związku z działalnością prowadzoną w tej spółce, podaje się informacje dotyczące tej spółki. W przypadku spółki cywilnej należy podać NIP tej spółki, nazwę, pod jaką spółka funkcjonuje na rynku, oraz miejsce prowadzenia działalności, a w przypadku braku nazwy i miejsca prowadzenia działalności – imiona i nazwiska oraz adresy wszystkich wspólników tej spółki."]
["2) Wypełnia się, gdy o pomoc wnioskuje wspólnik spółki cywilnej, jawnej albo partnerskiej, komplementariusz spółki komandytowej albo komandytowo-akcyjnej niebędący akcjonariuszem, wspólnik jednoosobowej spółki z ograniczoną odpowiedzialnością albo akcjonariusz prostej spółki akcyjnej lub inny podmiot, na który została przeniesiona odpowiedzialność podatkowa, w związku z działalnością prowadzoną w tej spółce (podaje się informacje dotyczące tego wspólnika, komplementariusza, akcjonariusza lub osoby trzeciej, na którą przeniesiono odpowiedzialność podatkową)."]
["3) O ile posiada identyfikator podatkowy NIP."]
["4) Wpisuje się siedmiocyfrowy identyfikator określony zgodnie z rozporządzeniem Rady Ministrów z dnia 15 grudnia 1998 r. w sprawie szczegółowych zasad prowadzenia, stosowania i udostępniania krajowego rejestru urzędowego podziału terytorialnego kraju oraz związanych z tym obowiązków organów administracji rządowej i jednostek samorządu terytorialnego (Dz. U. poz. 1031, z późn. zm.).\nLista identyfikatorów gmin znajduje się na stronie internetowej poniżej:"]
[{"$f":"HYPERLINK(\"https://sip.lex.pl/akty-prawne/dzu-dziennik-ustaw/szczegolowe-zasady-prowadzenia-stosowania-i-udostepniania-krajowego-16832284\",\"Wykaz identyfikatorów\")","v":"Wykaz identyfikatorów"}]
["5) Zaznacza się właściwą pozycję znakiem X."]
["6) Podaje się klasę działalności, w związku z którą podmiot ubiega się o pomoc. Jeżeli brak jest możliwości ustalenia jednej takiej działalności, podaje się klasę PKD tej działalności, która generuje największy przychód."]
["7) Wypełnia się do dnia 31 grudnia 2026 r., jeżeli podmiot ubiegający się o pomoc nie dostosował tej klasy działalności do rozporządzenia Rady Ministrów z dnia 18 grudnia 2024 r. w sprawie Polskiej Klasyfikacji Działalności (PKD)."]
["8) Za rynek pokrewny uważa się rynek dla danego produktu lub usługi znajdujący się bezpośrednio na wyższym lub niższym szczeblu rynku w stosunku do rynku właściwego. "]
["9) Części B formularza nie wypełnia się w przypadku podmiotów, którym pomoc ma być udzielona na podstawie art. 34a ustawy z dnia 8 maja 1997 r. o poręczeniach i gwarancjach udzielanych przez Skarb Państwa oraz niektóre osoby prawne (Dz. U. z 2024 r. poz. 291).\nW części B formularza nie wypełnia się pkt 1 i 2 w przypadku pomocy udzielanej na warunkach określonych w rozporządzeniu Komisji (UE) nr 651/2014 mikroprzedsiębiorcom oraz małym i średnim przedsiębiorcom, o których mowa w załączniku I do rozporządzenia Komisji (UE) nr 651/2014, istniejącym krócej niż trzy lata (od dnia ich utworzenia do dnia wystąpienia z wnioskiem o udzielenie pomocy) albo ubiegającym się o pomoc udzielaną na warunkach określonych w art. 21 rozporządzenia Komisji (UE) nr 651/2014 w okresie siedmiu lat od daty pierwszej sprzedaży komercyjnej, które kwalifikują się do inwestycji w zakresie finansowania ryzyka w następstwie przeprowadzenia procedury due diligence przez wybranego pośrednika finansowego.\nW części B formularza nie wypełnia się pkt 1–5 i 7 w przypadku pomocy udzielanej na warunkach określonych w rozporządzeniu Komisji (UE) nr 651/2014, jeżeli jest możliwe udzielanie przedsiębiorcom znajdującym się w trudnej sytuacji pomocy, o której mowa w art. 1 ust. 4 lit. c tego rozporządzenia.\nW części B formularza pkt 6 obejmuje informacje niezbędne do ustalenia stopy referencyjnej mającej zastosowanie do wnioskodawcy. Ten punkt wypełnia się tylko w przypadku gdy ma być udzielona pomoc, której wartość jest obliczana po ustaleniu stopy referencyjnej mającej zastosowanie do wnioskodawcy (tj. pomoc udzielana w formie takiej jak: pożyczki, gwarancje, odroczenia i rozłożenia na raty)."]
["10) Warunek jest spełniony, jeżeli po odjęciu wartości skumulowanych strat od sumy kapitałów o charakterze rezerwowym (takich jak kapitał zapasowy, rezerwowy oraz kapitał z aktualizacji wyceny) uzyskano wynik ujemny, którego wartość bezwzględna przekracza połowę wartości kapitału zarejestrowanego, tj. akcyjnego lub zakładowego. "]
["11) Wymagane jest jednoczesne wystąpienie obu opisanych okoliczności w każdym roku z ostatnich dwóch lat. Określenie „ostatnich dwóch lat” oznacza weryfikację sytuacji przedsiębiorcy na podstawie dwóch ostatnich zaudytowanych i zatwierdzonych rocznych sprawozdań finansowych."]
["12) Dotyczy wyłącznie producentów."]
["13) Objętych rozporządzeniem Parlamentu Europejskiego i Rady (UE) nr 1379/2013 z dnia 11 grudnia 2013 r. w sprawie wspólnej organizacji rynków produktów rybołówstwa i akwakultury, zmieniającym rozporządzenia Rady (WE) nr 1184/2006 i (WE) nr 1224/2009 oraz uchylającym rozporządzenie Rady (WE) nr 104/2000 (Dz. Urz. UE L 354 z 28.12.2013, str. 1, z późn. zm.)."]
["14) W rozumieniu art. 2 pkt 43 rozporządzenia Komisji (UE) nr 651/2014."]
["15) W rozumieniu art. 2 pkt 5 i 45 rozporządzenia Komisji (UE) nr 651/2014."]
["16) W rozumieniu art. 2 pkt 130 rozporządzenia Komisji (UE) nr 651/2014."]
["17) W rozumieniu art. 2 pkt 13 i 43a rozporządzenia Komisji (UE) nr 651/2014."]
["18) W rozumieniu rozporządzenia Parlamentu Europejskiego i Rady (UE) nr 575/2013 z dnia 26 czerwca 2013 r. w sprawie wymogów ostrożnościowych dla instytucji kredytowych i firm inwestycyjnych, zmieniającego rozporządzenie (UE) nr 648/2012 (Dz. Urz. UE L 176 z 27.6.2013, str. 1, z późn. zm.)."]
["19) Rozdzielność rachunkowa określonej działalności gospodarczej polega na prowadzeniu odrębnej ewidencji dla tej działalności gospodarczej oraz prawidłowym przypisywaniu przychodów i kosztów na podstawie konsekwentnie stosowanych i mających obiektywne uzasadnienie metod, a także na określeniu w dokumentacji, o której mowa w art. 10 ustawy z dnia 29 września 1994 r. o rachunkowości\n(Dz. U. z 2023 r. poz. 120, z późn zm.), zasad prowadzenia odrębnej ewidencji oraz metod przypisywania kosztów i przychodów."]
["20) Przez przedsięwzięcie należy rozumieć w szczególności projekt, inwestycję, działanie lub usługę świadczoną w ogólnym interesie gospodarczym."]
["21) Rozpoczęcie realizacji przedsięwzięcia należy definiować zgodnie z właściwymi przepisami prawa unijnego. Przykładowo, zgodnie z art. 2 pkt 23 rozporządzenia Komisji (UE) nr 651/2014 rozpoczęcie prac oznacza rozpoczęcie robót budowlanych związanych z inwestycją lub pierwsze prawnie wiążące zobowiązanie do zamówienia urządzeń lub inne zobowiązanie, które sprawia, że inwestycja staje się nieodwracalna, zależnie od tego, co nastąpi najpierw."]
["22) Należy podać dokładny adres przedsięwzięcia. Jeżeli nie jest możliwe wskazanie dokładnego adresu, należy podać lokalizację przedsięwzięcia przynajmniej na poziomie podregionu."]
["23) Należy uwzględnić również pomoc de minimis oraz finansowanie ze środków Unii Europejskiej, o którym mowa w art. 8 ust. 2 zdanie pierwsze rozporządzenia Komisji (UE) nr 651/2014."]
["24) Przez taką samą lub podobną działalność należy rozumieć działalność wskazaną w art. 2 pkt 50 rozporządzenia Komisji (UE) nr 651/2014."]
["25) Wypełnia się zgodnie z „Instrukcją wypełnienia tabeli w części E formularza”."]
["26) Podaje się wartość pomocy w euro obliczoną zgodnie z art. 11 ust. 3 ustawy z dnia 30 kwietnia 2004 r. o postępowaniu w sprawach dotyczących pomocy publicznej."]
["27) W przypadku otrzymania pomocy stanowiącej rekompensatę z tytułu świadczenia usług w ogólnym interesie gospodarczym, należy podać opis usługi, w związku z którą podmiot otrzymywał rekompensatę. Podaje się informacje pozwalające na zidentyfikowanie konkretnej usługi świadczonej przez podmiot, tj. pozwalające odróżnić tę usługę od innych usług świadczonych przez podmiot oraz usług świadczonych przez inne podmioty, np. nazwa usługi świadczonej w ogólnym interesie gospodarczym, sektor w jakim jest świadczona, okres oraz obszar jej wykonywania."]
["G. Instrukcja wypełnienia tabeli w części E formularza "]
["Należy podać informacje o pomocy otrzymanej w odniesieniu do tego samego przedsięwzięcia, w związku z realizacją którego wnioskodawca ubiega się o pomoc publiczną, pomoc na ratowanie, pomoc na restrukturyzację lub tymczasową pomoc na restrukturyzację. Na przykład jeżeli podmiot ubiegający się o pomoc otrzymał w przeszłości pomoc w związku z realizacją inwestycji, należy wykazać jedynie pomoc przeznaczoną na te same koszty kwalifikujące się do objęcia pomocą, na pokrycie których ma być udzielona wnioskowana pomoc."]
["1. Dzień udzielenia pomocy (kol. 2) - należy podać dzień udzielenia pomocy w rozumieniu art. 2 pkt 11 ustawy z dnia 30 kwietnia 2004 r. o postępowaniu w sprawach dotyczących pomocy publicznej."]
["2. Podmiot udzielający pomocy (kol. 3) - należy podać pełną nazwę i adres podmiotu, który udzielił pomocy. W przypadku gdy podmiot uzyskał pomoc na podstawie aktu normatywnego, który uzależnia nabycie prawa do otrzymania pomocy wyłącznie od spełnienia przesłanek w nim określonych, bez konieczności wydania decyzji albo zawarcia umowy, należy pozostawić to miejsce niewypełnione."]
["3. Podstawa prawna otrzymanej pomocy (kol. 4) – należy podać przepis oraz nazwę ustawy będącej podstawą udzielenia pomocy. Jeżeli podstawą udzielenia pomocy był akt wykonawczy do ustawy, należy również podać jego nazwę. Jeżeli podstawą udzielenia pomocy była decyzja, uchwała lub umowa, należy również podać symbol określający ten akt: w przypadku decyzji – numer decyzji, w przypadku uchwały – numer uchwały, w przypadku umowy – numer, przedmiot oraz strony umowy."]
["4. Przeznaczenie pomocy (kol. 5) – należy podać kod wskazujący przeznaczenie otrzymanej pomocy określony zgodnie z rozporządzeniem Rady Ministrów z dnia 7 sierpnia 2008 r. w sprawie sprawozdań o udzielonej pomocy publicznej, informacji o nieudzieleniu takiej pomocy oraz sprawozdań o zaległościach przedsiębiorców we wpłatach świadczeń należnych na rzecz sektora finansów publicznych (Dz. U. z 2026 r. poz. 450, z późn. zm.)."]
["5. Forma pomocy (kol. 6) – należy podać kod oznaczający właściwą formę pomocy określony zgodnie z rozporządzeniem Rady Ministrów z dnia 7 sierpnia 2008 r. w sprawie sprawozdań o udzielonej pomocy publicznej, informacji o nieudzieleniu takiej pomocy oraz sprawozdań o zaległościach przedsiębiorców we wpłatach świadczeń należnych na rzecz sektora finansów publicznych."]
["6. Wartość pomocy brutto (PLN) (kol. 7) – jako ekwiwalent dotacji brutto obliczony zgodnie z rozporządzeniem Rady Ministrów z dnia \n11 sierpnia 2004 r. w sprawie szczegółowego sposobu obliczania wartości pomocy publicznej udzielanej w różnych formach (Dz. U. z 2018 r. poz. 461) oraz właściwymi przepisami unijnymi."]

{"sheet":"Formularz pomocy de minimis","index":20,"n_rows":237,"n_cols":31,"rows_kept":237,"cut":false,"hidden":false,"merged":[[8,1,8,14],[8,19,8,30],[9,1,9,16],[9,19,9,31],[10,1,10,14],[10,19,10,30],[0,0,1,31],[2,0,2,31],[3,1,3,16],[3,19,3,30],[5,1,5,14],[7,1,7,14],[20,3,22,29],[23,3,24,28],[26,4,26,30],[28,1,29,30],[30,3,30,8],[31,3,31,9],[11,1,11,14],[11,19,11,30],[12,1,12,28],[16,3,16,14],[17,3,17,23],[18,3,19,28],[42,1,43,25],[44,1,45,24],[46,1,47,24],[48,1,50,24],[51,1,52,24],[54,1,54,18],[54,19,54,30],[32,3,32,9],[33,3,33,15],[35,1,35,30],[37,1,37,9],[40,1,40,12],[41,1,41,30],[64,1,64,20],[66,1,66,30],[67,2,68,16],[67,17,71,30],[73,2,74,16],[73,17,73,30],[56,1,57,17],[56,19,56,30],[59,1,59,30],[61,1,61,18],[62,1,62,10],[63,1,63,20],[84,2,84,16],[84,17,84,30],[85,2,85,16],[85,17,85,30],[87,1,87,30],[88,1,89,24],[75,1,75,28],[76,1,77,15],[78,1,79,15],[78,17,78,30],[80,1,81,30],[82,2,83,16],[82,17,82,30],[104,1,104,15],[105,1,105,15],[106,1,106,15],[107,1,108,15],[109,1,110,15],[111,1,111,29],[91,1,96,24],[98,1,98,24],[99,1,99,15],[100,1,100,15],[101,1,102,15],[103,1,103,15],[126,1,127,24],[128,1,129,24],[130,1,133,23],[133,26,133,29],[134,2,139,30],[141,1,141,30],[112,1,116,29],[118,1,118,30],[119,1,119,29],[120,1,120,24],[122,1,123,24],[124,1,125,24],[142,1,143,23],[144,1,145,24],[146,1,146,25],[147,1,150,5],[147,6,150,7],[147,8,150,9],[147,10,150,11],[147,12,150,13],[147,14,150,15],[147,16,150,17],[147,18,150,19],[147,20,150,21],[147,22,150,23],[147,24,150,25],[147,26,150,27],[151,1,160,3],[151,4,155,5],[151,6,155,7],[151,8,155,9],[151,10,155,11],[161,1,164,5],[161,6,164,7],[161,8,164,9],[161,10,164,11],[161,12,164,13],[161,14,164,15],[151,24,155,25],[151,26,155,27],[156,4,160,5],[156,6,160,7],[156,8,160,9],[156,10,160,11],[156,12,160,13],[156,14,160,15],[156,16,160,17],[156,18,160,19],[151,12,155,13],[151,14,155,15],[151,16,155,17],[151,18,155,19],[151,20,155,21],[151,22,155,23],[161,16,164,17],[161,18,164,19],[161,20,164,21],[161,22,164,23],[161,24,164,25],[161,26,164,27],[156,20,160,21],[156,22,160,23],[156,24,160,25],[156,26,160,27],[165,26,168,27],[169,4,172,5],[169,6,172,7],[169,8,172,9],[169,10,172,11],[169,12,172,13],[169,14,172,15],[169,16,172,17],[169,18,172,19],[169,20,172,21],[165,14,168,15],[165,16,168,17],[165,18,168,19],[165,20,168,21],[165,22,168,23],[165,24,168,25],[165,4,168,5],[165,6,168,7],[165,8,168,9],[165,10,168,11],[165,12,168,13],[169,22,172,23],[169,24,172,25],[169,26,172,27],[173,1,177,5],[173,6,177,7],[173,8,177,9],[173,10,177,11],[173,12,177,13],[173,14,177,15],[173,16,177,17],[165,1,172,3],[173,18,177,19],[173,20,177,21],[173,22,177,23],[173,24,177,25],[173,26,177,27],[178,1,181,5],[178,6,181,7],[178,8,181,9],[178,10,181,11],[178,12,181,13],[178,26,181,27],[182,1,183,5],[182,6,183,7],[182,8,183,9],[182,10,183,11],[182,12,183,13],[182,14,183,15],[182,16,183,17],[182,18,183,19],[182,20,183,21],[178,14,181,15],[178,16,181,17],[178,18,181,19],[178,20,181,21],[178,22,181,23],[178,24,181,25],[187,1,187,30],[188,1,188,30],[189,1,189,30],[190,1,190,30],[191,1,191,30],[192,1,192,30],[182,22,183,23],[182,24,183,25],[182,26,183,27],[184,1,184,30],[185,1,185,30],[186,1,186,30],[199,1,199,30],[200,1,200,30],[201,0,201,31],[202,0,202,31],[203,0,203,31],[204,0,204,31],[193,1,193,30],[194,1,194,30],[195,1,195,30],[196,1,196,30],[197,1,197,30],[198,1,198,30],[211,0,211,31],[212,0,212,31],[213,0,213,31],[214,0,214,31],[215,0,215,31],[216,0,216,31],[205,0,205,31],[206,0,206,31],[207,0,207,31],[208,0,208,31],[209,0,209,31],[210,0,210,31],[222,0,223,13],[222,14,223,26],[224,0,224,13],[224,14,224,26],[225,0,225,13],[225,14,225,26],[217,0,217,31],[218,0,218,31],[219,0,219,31],[220,0,220,31],[221,0,221,13],[221,14,221,26],[231,0,231,31],[232,0,232,31],[233,0,233,31],[234,0,234,31],[235,0,235,31],[236,0,236,31],[226,0,228,13],[226,14,226,26],[227,14,227,26],[228,14,228,26],[229,0,230,13],[229,14,230,26]]}
["Formularz informacji przedstawianych przy ubieganiu się o pomoc de minimis "]
[]
["Stosuje się do pomocy de minimis udzielanej na warunkach określonych w rozporządzeniu Komisji (UE) 2023/2831\nz dnia 13 grudnia 2023 r. w sprawie stosowania art. 107 i 108 Traktatu o funkcjonowaniu Unii Europejskiej\ndo pomocy de minimis (Dz. Urz. UE L 2023/2831)"]
[null,"A. Informacje dotyczące podmiotu któremu ma być udzielona pomoc de minimis1)",null,null,null,null,null,null,null,null,null,null,null,null,null,null,null,null,null,"A1. Informacje dotyczące wnioskodawcy niebędącego podmiotem, któremu ma być udzielona pomoc de minimis2)"]
[]
[null,"1) Identyfikator podatkowy NIP podmiotu",null,null,null,null,null,null,null,null,null,null,null,null,null,null,null,null,null,"1a) Identyfikator podatkowy NIP wnioskodawcy3)"]
[]
[null,"2) Imię i nazwisko albo nazwa podmiotu",null,null,null,null,null,null,null,null,null,null,null,null,null,null,null,null,null,"2a) Imię i nazwisko albo nazwa wnioskodawcy"]
[]
[null,"3) Adres miejsca zamieszkania albo adres siedziby\npodmiotu",null,null,null,null,null,null,null,null,null,null,null,null,null,null,null,null,null,"3a) Adres miejsca zamieszkania albo adres siedziby wnioskodawcy"]
[]
[]
[null,"4) Identyfikator gminy, w której podmiot ma miejsce zamieszkania albo siedzibę4)"]
[]
[]
[null,"5) Forma prawna podmiotu5)"]
[null,null,null,"przedsiębiorstwo państwowe"]
[null,null,null,"jednoosobowa spółka Skarbu Państwa"]
[null,null,null,"jednoosobowa spółka jednostki samorządu terytorialnego, w rozumieniu ustawy\nz dnia 20 grudnia 1996 r. o gospodarce komunalnej (Dz. U. z 2021 r. poz. 679)"]
[]
[null,null,null,"spółka akcyjna albo spółka z ograniczoną odpowiedzialnością, w stosunku do których\nSkarb Państwa, jednostka samorządu terytorialnego, przedsiębiorstwo państwowe lub jednoosobowa spółka Skarbu Państwa są podmiotami, które posiadają uprawnienia takie,\njak przedsiębiorcy dominujący w rozumieniu przepisów ustawy z dnia 16 lutego 2007 r.\no ochronie konkurencji i konsumentów (Dz. U. z 2024 r. poz. 594)"]
[]
[]
[null,null,null,"jednostka sektora finansów publicznych w rozumieniu przepisów ustawy\nz dnia 27 sierpnia 2009 r. o finansach publicznych (Dz. U. z 2023 r. poz. 1270, z późn. zm.)"]
[]
[null,null,null,"inna (podać jaka)"]
[]
[]
[null,"6) Wielkość podmiotu, zgodnie z załącznikiem I do rozporządzenia Komisji (UE) nr 651/2014\nz dnia 17 czerwca 2014 r. uznającego niektóre rodzaje pomocy za zgodne z rynkiem wewnętrznym w zastosowaniu art. 107 i 108 Traktatu (Dz. Urz. UE L 187 z 26.06.2014, str. 1, z późn. zm.)5)"]
[]
[null,null,null,"mikroprzedsiębiorca"]
[null,null,null,"mały przedsiębiorca"]
[null,null,null,"średni przedsiębiorca"]
[null,null,null,"inny przedsiębiorca"]
[]
[null,"7) Klasa działalności, zgodnie z rozporządzeniem Rady Ministrów z dnia 24 grudnia 2007 r. w sprawie Polskiej Klasyfikacji Działalności (PKD) (Dz. U. Nr 251, poz. 1885, z późn. zm.)6)"]
[]
[null,"8) Data utworzenia podmiotu"]
[null,null,null," - ",null,null," - "]
[]
[null,"9) Powiązania z innymi przedsiębiorcami7)"]
[null,"Czy pomiędzy podmiotem a innymi przedsiębiorcami istnieją powiązania polegające na tym, że:"]
[null,"a) jeden przedsiębiorca posiada większość praw głosu akcjonariuszy lub wspólników drugiego przedsiębiorcy?",null,null,null,null,null,null,null,null,null,null,null,null,null,null,null,null,null,null,null,null,null,null,null,null,null,"tak",null,null,"nie"]
[]
[null,"b) jeden przedsiębiorca ma prawo powołać lub odwołać większość członków organu zarządzającego lub nadzorującego innego przedsiębiorcy?",null,null,null,null,null,null,null,null,null,null,null,null,null,null,null,null,null,null,null,null,null,null,null,null,null,"tak",null,null,"nie"]
[]
[null,"c) jeden przedsiębiorca ma prawo wywierać dominujący wpływ na innego przedsiębiorcę zgodnie z umową zawartą z tym przedsiębiorcą lub zgodnie z jego dokumentami założycielskimi?",null,null,null,null,null,null,null,null,null,null,null,null,null,null,null,null,null,null,null,null,null,null,null,null,null,"tak",null,null,"nie"]
[]
[null,"d) jeden przedsiębiorca, który jest akcjonariuszem lub wspólnikiem innego przedsiębiorcy lub jego członkiem, zgodnie z porozumieniem z innymi akcjonariuszami, wspólnikami lub członkami tego przedsiębiorcy, samodzielnie kontroluje większość praw głosu u tego przedsiębiorcy?",null,null,null,null,null,null,null,null,null,null,null,null,null,null,null,null,null,null,null,null,null,null,null,null,null,"tak",null,null,"nie"]
[]
[]
[null,"e) przedsiębiorca pozostaje w jakimkolwiek ze stosunków opisanych powyżej poprzez jednego innego przedsiębiorcę lub kilku innych przedsiębiorców?",null,null,null,null,null,null,null,null,null,null,null,null,null,null,null,null,null,null,null,null,null,null,null,null,null,"tak",null,null,"nie"]
[]
[null,"W przypadku zaznaczenia przynajmniej jednej odpowiedzi twierdzącej należy podać:"]
[null,"a) identyfikator podatkowy NIP wszystkich powiązanych\nz podmiotem przedsiębiorców"]
[]
[null,"b) łączną wartość pomocy de minimis udzielonej w okresie minionych 3 lat wszystkim powiązanym z podmiotem przedsiębiorcom8)"]
[]
[]
[null,"10) Informacja o utworzeniu wnioskodawcy w wyniku podziału innego przedsiębiorcy lub połączenia z innym przedsiębiorcą, w tym przez przejęcie innego przedsiębiorcy, lub przekształcenia przedsiębiorcy"]
[null,"Czy podmiot w okresie minionych 3 lat:"]
[null,"a) powstał wskutek połączenia się innych przedsiębiorców?",null,null,null,null,null,null,null,null,null,null,null,null,null,null,null,null,null,null,null,null,null,null,null,null,null,"tak",null,null,"nie"]
[null,"b) przejął innego przedsiębiorcę?",null,null,null,null,null,null,null,null,null,null,null,null,null,null,null,null,null,null,null,null,null,null,null,null,null,"tak",null,null,"nie"]
[null,"c) powstał w wyniku podziału innego przedsiębiorcy?",null,null,null,null,null,null,null,null,null,null,null,null,null,null,null,null,null,null,null,null,null,null,null,null,null,"tak",null,null,"nie"]
[null,"d) powstał w wyniku przekształcenia przedsiębiorcy?",null,null,null,null,null,null,null,null,null,null,null,null,null,null,null,null,null,null,null,null,null,null,null,null,null,"tak",null,null,"nie"]
[]
[null,"W przypadku zaznaczenia odpowiedzi twierdzącej w lit. a) lub b) należy podać:"]
[null,null,"a) identyfikator podatkowy NIP wszystkich połączonych lub przejętych przedsiębiorców"]
[]
[]
[]
[]
[]
[null,null,"b) łączną wartość pomocy de minimis udzielonej w okresie minionych 3 lat przedsiębiorcy istniejącemu przed podziałem lub przekształceniem w odniesieniu do działalności przejmowanej przez podmiot8)"]
[]
[null,"W przypadku zaznaczenia odpowiedzi twierdzącej w lit. c lub d należy podać:"]
[null,"a) identyfikator podatkowy NIP przedsiębiorcy\nprzed podziałem lub przekształceniem"]
[]
[null,"b) łączną wartość pomocy de minimis udzielonej\nw okresie minionych 3 lat przedsiębiorcy istniejącemu przed podziałem lub przekształceniem w odniesieniu do działalności przejmowanej\nprzez podmiot8)"]
[]
[null,"Jeśli nie jest możliwe ustalenie, jaka część pomocy de minimis uzyskanej przez przedsiębiorcę przed podziałem była przeznaczona na działalność przejętą przez podmiot, należy podać:"]
[]
[null,null,"–  łączną wartość pomocy de minimis udzielonej\nw okresie minionych 3 lat przedsiębiorcy przed\npodziałem8)"]
[]
[null,null,"– wartość kapitału przedsiębiorcy przed podziałem (w PLN)"]
[null,null,"– wartość kapitału podmiotu na moment podziału\n(w PLN)"]
[]
[null,"B. Informacje dotyczące sytuacji ekonomicznej podmiotu któremu ma być udzielona pomoc de minimis9)"]
[null,"1) Czy podmiot spełnia kryteria kwalifikujące go do objęcia postępowaniem upadłościowym? ",null,null,null,null,null,null,null,null,null,null,null,null,null,null,null,null,null,null,null,null,null,null,null,null,null,"tak",null,null,"nie"]
[]
[]
[null,"2) Czy podmiot będący przedsiębiorcą innym niż mikro-, mały lub średni- albo\nw przypadku, o którym mowa w art. 4 ust. 7 rozporządzenia Komisji (UE) 2023/2831\nz dnia 13 grudnia 2023 w sprawie stosowania art. 107 i 108 Traktatu\no funkcjonowaniu Unii Europejskiej do pomocy de minimis, będący każdym przedsiębiorcą - znajduje się w sytuacji gorszej niż sytuacja kwalifikująca się\ndo oceny kredytowej B-10)?",null,null,null,null,null,null,null,null,null,null,null,null,null,null,null,null,null,null,null,null,null,null,null,null,null,"tak",null,null,"nie"]
[]
[null,null,null,null,null,null,null,null,null,null,null,null,null,null,null,null,null,null,null,null,null,null,null,null,null,null,null,"nie dotyczy"]
[]
[]
[]
[]
[null,"3) Czy w odniesieniu do okresu ostatnich 3 lat poprzedzających dzień wystąpienia z wnioskiem o udzielenie pomocy de minimis:"]
[null,"a) podmiot odnotowuje rosnące straty?",null,null,null,null,null,null,null,null,null,null,null,null,null,null,null,"tak",null,null,"nie"]
[null,"b) obroty podmiotu maleją? ",null,null,null,null,null,null,null,null,null,null,null,null,null,null,null,"tak",null,null,"nie"]
[null,"c) zwiększeniu ulegają zapasy podmiotu lub niewykorzystany potencjał do świadczenia usług?",null,null,null,null,null,null,null,null,null,null,null,null,null,null,null,"tak",null,null,"nie"]
[]
[null,"d) podmiot ma nadwyżki produkcji11)?",null,null,null,null,null,null,null,null,null,null,null,null,null,null,null,"tak",null,null,"nie"]
[null,"e) zmniejsza się przepływ środków finansowych?",null,null,null,null,null,null,null,null,null,null,null,null,null,null,null,"tak",null,null,"nie"]
[null,"f) zwiększa się suma zadłużenia podmiotu?",null,null,null,null,null,null,null,null,null,null,null,null,null,null,null,"tak",null,null,"nie"]
[null,"g) rosną kwoty odsetek od zobowiązań podmiotu?",null,null,null,null,null,null,null,null,null,null,null,null,null,null,null,"tak",null,null,"nie"]
[null,"h) wartość aktywów netto podmiotu zmniejsza się lub jest zerowa?\n",null,null,null,null,null,null,null,null,null,null,null,null,null,null,null,"tak",null,null,"nie"]
[]
[null,"i) zaistniały inne okoliczności wskazujące na trudności w zakresie płynności finansowej?",null,null,null,null,null,null,null,null,null,null,null,null,null,null,null,"tak",null,null,"nie"]
[]
[null,"Jeśli tak, należy wskazać jakie:"]
[]
[]
[]
[]
[]
[]
[null,"C. Informacje dotyczące działalności gospodarczej prowadzonej przez podmiot któremu ma być udzielona pomoc de minimis"]
[null,"Czy podmiot, któremu ma być udzielona pomoc de minimis, prowadzi działalność:"]
[null,"1) w sektorze produkcji podstawowej produktów rybołówstwa i akwakultury12)?",null,null,null,null,null,null,null,null,null,null,null,null,null,null,null,null,null,null,null,null,null,null,null,null,"tak",null,null,"nie"]
[]
[null,"2) w dziedzinie produkcji podstawowej produktów rolnych wymienionych\nw załączniku I do Traktatu o funkcjonowaniu Unii Europejskiej?",null,null,null,null,null,null,null,null,null,null,null,null,null,null,null,null,null,null,null,null,null,null,null,null,"tak",null,null,"nie"]
[]
[null,"3) w dziedzinie przetwarzania i wprowadzania do obrotu produktów rolnych\nwymienionych w załączniku I do Traktatu o funkcjonowaniu Unii Europejskiej?",null,null,null,null,null,null,null,null,null,null,null,null,null,null,null,null,null,null,null,null,null,null,null,null,"tak",null,null,"nie"]
[]
[null,"4) w dziedzinie przetwarzania i wprowadzania do obrotu produktów rybołówstwa\ni akwakultury12)?",null,null,null,null,null,null,null,null,null,null,null,null,null,null,null,null,null,null,null,null,null,null,null,null,"tak",null,null,"nie"]
[]
[null,"5) Czy wnioskowana pomoc de minimis będzie przeznaczona na działalność wskazaną w pkt 1–4?",null,null,null,null,null,null,null,null,null,null,null,null,null,null,null,null,null,null,null,null,null,null,null,null,"tak",null,null,"nie"]
[]
[null,"6) W przypadku zaznaczenia odpowiedzi twierdzącej w pkt 1 lub 2:\nczy zapewniona jest rozdzielność rachunkowa13) uniemożliwiająca przeniesienie na wskazaną w tych punktach działalność korzyści wynikających z uzyskanej pomocy de minimis (w jaki sposób)?",null,null,null,null,null,null,null,null,null,null,null,null,null,null,null,null,null,null,null,null,null,null,null,null,"tak",null,null,"nie"]
[]
[null,null,null,null,null,null,null,null,null,null,null,null,null,null,null,null,null,null,null,null,null,null,null,null,null,null,"nie dotyczy"]
[]
[]
[]
[]
[]
[]
[]
[]
[null,"D. Informacje dotyczące pomocy otrzymanej w odniesieniu do tych samych kosztów, na pokrycie których ma być przeznaczona wnioskowana pomoc de minimis"]
[null,"1) Czy wnioskowana pomoc de minimis zostanie przeznaczona na pokrycie dających się zidentyfikować kosztów?",null,null,null,null,null,null,null,null,null,null,null,null,null,null,null,null,null,null,null,null,null,null,null,null,null,"tak",null,null,"nie"]
[]
[null,"2) Jeśli tak, to czy na pokrycie tych samych kosztów, o których mowa powyżej, \npodmiot otrzymał pomoc inną niż pomoc de minimis ?",null,null,null,null,null,null,null,null,null,null,null,null,null,null,null,null,null,null,null,null,null,null,null,null,null,"tak",null,null,"nie"]
[]
[null,"3) Jeśli tak, należy wypełnić poniższą tabelę14) w odniesieniu do ww. pomocy\ninnej niż de minimis oraz pomocy de minimis na te same koszty."]
[null,"Przeznaczenie pomocy",null,null,null,null,6]
[]
[]
[]
[null,"Wartość otrzymanej pomocy",null,null,"brutto",null,"5b"]
[]
[]
[]
[]
[null,null,null,null,"nominalna",null,"5a"]
[]
[]
[]
[]
[null,"Forma pomocy",null,null,null,null,4]
[]
[]
[]
[null,"Podstawa prawna udzielenia pomocy",null,null,"informacje szczegółowe",null,"3b"]
[]
[]
[]
[null,null,null,null,"informacje podstawowe",null,"3a"]
[]
[]
[]
[null,"Podmiot udzielający pomocy",null,null,null,null,2]
[]
[]
[]
[]
[null,"Dzień udzielenia pomocy",null,null,null,null,1]
[]
[]
[]
[null,"Lp.",null,null,null,null,null,null,"1.",null,"2.",null,"3.",null,"4.",null,"5.",null,"6.",null,"7.",null,"8.",null,"9.",null,"10."]
[]
[null,"Jeżeli w tabeli wykazano otrzymaną pomoc inną niż pomoc de minimis, należy dodatkowo wypełnić pkt 1-8 poniżej: "]
[null,"1) opis przedsięwzięcia"]
[]
[null,"2) koszty kwalifikujące się do objęcia pomocą w wartości nominalnej i zdyskontowanej oraz ich rodzaje"]
[]
[null,"3) maksymalna dopuszczalna intensywność pomocy"]
[]
[null,"4) intensywność pomocy już udzielonej w związku z kosztami, o których mowa w pkt 2"]
[]
[null,"5) lokalizacja przedsięwzięcia"]
[]
[null,"6) cele, które mają być osiągnięte w związku z realizacją przedsięwzięcia"]
[]
[null,"7) etapy realizacji przedsięwzięcia"]
[]
[null,"8) data rozpoczęcia i zakończenia realizacji przedsięwzięcia"]
[]
["1) W przypadku gdy o pomoc de minimis wnioskuje wspólnik spółki cywilnej, jawnej albo partnerskiej, komplementariusz spółki komandytowej albo komandytowo-akcyjnej niebędący akcjonariuszem, wspólnik jednoosobowej spółki z ograniczoną odpowiedzialnością albo akcjonariusz prostej spółki akcyjnej lub inny podmiot, na który została przeniesiona odpowiedzialność podatkowa, w związku z działalnością prowadzoną w tej spółce, podaje się informacje dotyczące tej spółki. W przypadku spółki cywilnej należy podać NIP tej spółki, nazwę, pod jaką spółka funkcjonuje na rynku, oraz miejsce prowadzenia działalności, a w przypadku braku nazwy i miejsca prowadzenia działalności - imiona i nazwiska oraz adresy wszystkich wspólników tej spółki"]
["2) Wypełnia się w przypadku, gdy o pomoc de minimis wnioskuje wspólnik spółki cywilnej, jawnej albo partnerskiej, komplementariusz spółki komandytowej albo komandytowo-akcyjnej niebędący akcjonariuszem, wspólnik jednoosobowej spółki z ograniczoną odpowiedzialnością albo akcjonariusz prostej spółki akcyjnej lub inny podmiot, na który została przeniesiona odpowiedzialność podatkowa, w związku z działalnością prowadzoną w tej spółce (podaje się informacje dotyczące tego wspólnika, akcjonariusza albo komplementariusza lub osoby trzeciej, na którą przeniesiono odpowiedzialność podatkową). "]
["3) O ile posiada identyfikator podatkowy NIP."]
["4) Wpisuje się siedmiocyfrowe oznaczenie nadane w sposób określony w rozporządzeniu Rady Ministrów z dnia 15 grudnia 1998 r. w sprawie szczegółowych zasad prowadzenia, stosowania i udostępniania krajowego rejestru urzędowego podziału terytorialnego kraju oraz związanych z tym obowiązków organów administracji rządowej i jednostek samorządu terytorialnego (Dz. U. poz. 1031, z późn. zm.)"]
["5) Zaznacza się właściwą pozycję znakiem X"]
["6) Podaje się klasę działalności, w związku z którą podmiot ubiega się o pomoc de minimis. Jeżeli nie jest możliwe ustalenie jednej takiej działalności, podaje się klasę PKD tej działalności, która generuje największy przychód."]
["7) Za powiązane nie uważa się podmiotów, w przypadku których powiązanie występuje wyłącznie za pośrednictwem organu publicznego, np. Skarbu Państwa, jednostki samorządu terytorialnego"]
["8) Podaje się wartość pomocy w euro obliczoną zgodnie z art. 11 ust. 3 ustawy z dnia 30 kwietnia 2004 r. o postępowaniu w sprawach dotyczących pomocy publicznej (Dz. U. z 2023 r. poz. 702), rozporządzeniem Rady Ministrów wydanym na podstawie art. 11 ust. 2 tej ustawy oraz właściwymi przepisami unijnymi."]
["9) Wypełnia się jedynie w przypadku podmiotów, którym ma być udzielona pomoc de minimis, do obliczenia wartości której konieczne jest ustalenie ich stopy referencyjnej (tj. w formie takiej jak: pożyczki, gwarancje, odroczenia, rozłożenia na raty), z wyjątkiem podmiotów, którym pomoc de minimis ma być udzielona na podstawie art. 34a ustawy z dnia 8 maja 1997 r. o poręczeniach i gwarancjach udzielanych przez Skarb Państwa oraz niektóre osoby prawne (Dz. U. z 2004 r. poz. 291), oraz będących osobami fizycznymi, które na dzień złożenia informacji określonych w niniejszym rozporządzeniu nie rozpoczęły prowadzenia działalności gospodarczej."]
["10) Ocena kredytowa B- oznacza wysokie ryzyko kredytowe. Zdolność do obsługi zobowiązań istnieje jedynie przy sprzyjających warunkach zewnętrznych. Poziom odzyskania wierzytelności w przypadku wystąpienia niewypłacalności jest średni lub niski."]
["11) Dotyczy wyłącznie producentów."]
["12) Objętych rozporządzeniem Parlamentu Europejskiego i Rady (UE) nr 1379/2013 z dnia 11 grudnia 2013 r. w sprawie wspólnej organizacji rynków produktów rybołówstwa i akwakultury, zmieniającym rozporządzenia Rady (WE) nr 1184/2006 i (WE) nr 1224/2009 oraz uchylającym rozporządzenie Rady (WE) nr 104/2000 (Dz. Urz. UE L 354 z 28.12.2013, str. 1, z późn. zm.)."]
["13) Rozdzielność rachunkowa określonej działalności gospodarczej polega na prowadzeniu odrębnej ewidencji dla tej działalności gospodarczej oraz prawidłowym przypisywaniu przychodów i kosztów na podstawie konsekwentnie stosowanych i mających obiektywne uzasadnienie metod, a także na określeniu w dokumentacji, o której mowa w art. 10 ustawy z dnia 29 września 1994 r. o rachunkowości (Dz. U. z 2023 r. poz. 120, z późn. zm.), zasad prowadzenia odrębnej ewidencji oraz metod przypisywania kosztów i przychodów."]
["14) Wypełnia się zgodnie z Instrukcją wypełnienia tabeli w części D formularza."]
["Instrukcja wypełnienia tabeli w części D formularza "]
["Należy podać informacje o dotychczas otrzymanej pomocy, w odniesieniu do tych samych kosztów kwalifikujących się do objęcia pomocą, na pokrycie których udzielana będzie pomoc de minimis. Na przykład jeżeli podmiot ubiegający się o pomoc de minimis otrzymał w przeszłości pomoc w związku z realizacją inwestycji, należy wykazać jedynie pomoc przeznaczoną na te same koszty kwalifikujące się do \nobjęcia pomocą, na pokrycie których ma być udzielona pomoc de minimis."]
["1. Dzień udzielenia pomocy (kol. 1) - należy podać dzień udzielenia pomocy w rozumieniu art. 2 pkt 11 ustawy z dnia 30 kwietnia 2004 r. o postępowaniu w sprawach dotyczących pomocy publicznej."]
["2. Podmiot udzielający pomocy (kol. 2) - należy podać pełną nazwę i adres podmiotu, który udzielił pomocy. W przypadku gdy podmiot uzyskał pomoc na podstawie aktu normatywnego, który uzależnia nabycie prawa do otrzymania pomocy wyłącznie od spełnienia przesłanek w nim określonych, bez konieczności wydania decyzji albo zawarcia umowy, należy pozostawić to miejsce niewypełnione."]
["3. Podstawa prawna otrzymanej pomocy (kol. 3a i 3b)"]
["Uwaga: istnieją następujące możliwości łączenia elementów tworzących podstawę prawną otrzymanej pomocy, które należy wpisać w poszczególnych kolumnach tabeli w sposób przedstawiony poniżej."]
["Podstawa prawna - informacje podstawowe",null,null,null,null,null,null,null,null,null,null,null,null,null," Podstawa prawna - informacje szczegółowe"]
["3a",null,null,null,null,null,null,null,null,null,null,null,null,null," 3b"]
[]
["przepis ustawy",null,null,null,null,null,null,null,null,null,null,null,null,null,"brak*"]
["przepis ustawy",null,null,null,null,null,null,null,null,null,null,null,null,null,"przepis aktu wykonawczego"]
["przepis ustawy",null,null,null,null,null,null,null,null,null,null,null,null,null,"przepis aktu wykonawczego "]
[null,null,null,null,null,null,null,null,null,null,null,null,null,null,"decyzja/uchwała/"]
[null,null,null,null,null,null,null,null,null,null,null,null,null,null,"umowa – symbol"]
["przepis ustawy",null,null,null,null,null,null,null,null,null,null,null,null,null,"decyzja/uchwała/umowa – symbol"]
[]
["* W przypadku braku aktu wykonawczego, decyzji, uchwały i umowy należy wpisać określenie „brak”."]
["Kol. 3a Podstawa prawna – informacje podstawowe – należy podać kolejno: datę i tytuł aktu oraz oznaczenie roku (numeru) i pozycji Dziennika Ustaw, w którym ustawa została opublikowana, oraz oznaczenie przepisu ustawy będącego podstawą udzielenia pomocy (w kolejności: artykuł, ustęp, punkt, litera, tiret)."]
["Kol. 3b Podstawa prawna – informacje szczegółowe – jeżeli podstawą udzielenia pomocy był akt wykonawczy do ustawy, należy podać kolejno: nazwę organu wydającego akt, datę i tytuł aktu oraz oznaczenie roku (numeru) i pozycji Dziennika Ustaw, w którym akt został opublikowany, oraz przepis aktu wykonawczego będącego podstawą udzielenia pomocy (w kolejności: paragraf, ustęp, punkt, litera, tiret). \nAkt powinien być aktem wykonawczym do ustawy wskazanej w kol. 3a. W przypadku braku aktu wykonawczego będącego podstawą prawną udzielenia pomocy należy wpisać określenie „brak”. Jeżeli podstawą udzielenia pomocy była decyzja, uchwała lub umowa, należy podać symbol określający ten akt: w przypadku decyzji – numer decyzji, w przypadku uchwały – numer uchwały, w przypadku umowy – numer, przedmiot oraz strony umowy. W przypadku braku decyzji, uchwały lub umowy będącej podstawą prawną udzielenia pomocy należy wpisać określenie „brak”."]
["4. Forma pomocy (kol. 4) - należy podać kod oznaczający właściwą formę pomocy określony w załączniku nr 1 do rozporządzenia Rady Ministrów z dnia 7 sierpnia 2008 r. w sprawie sprawozdań o udzielonej pomocy publicznej, informacji o nieudzieleniu takiej pomocy oraz sprawozdań o zaległościach przedsiębiorców we wpłatach świadczeń należnych na rzecz sektora finansów publicznych (Dz. U. z 2024 r.\npoz. 161)."]
["5. Wartość otrzymanej pomocy (kol. 5a i 5b) – należy podać wartość otrzymanej pomocy publicznej lub pomocy de minimis:\na) wartość nominalną pomocy (jako całkowitą wielkość środków finansowych będących podstawą do obliczania wielkości udzielonej pomocy, np. kwotę udzielonej pożyczki lub kwotę odroczonego podatku) oraz\nb) wartość brutto (jako ekwiwalent dotacji brutto obliczony zgodnie z rozporządzeniem Rady Ministrów wydanym na podstawie art. 11 ust. 2 ustawy z dnia 30 kwietnia 2004 r. o postępowaniu w sprawach dotyczących pomocy publicznej oraz z właściwymi przepisami unijnymi).\n"]
["6. Przeznaczenie pomocy (kol. 6) – należy podać kod wskazujący przeznaczenie otrzymanej pomocy określony zgodnie z rozporządzeniem Rady Ministrów z dnia 7 sierpnia 2008 r. w sprawie sprawozdań o udzielonej pomocy publicznej, informacji o nieudzieleniu takiej pomocy oraz sprawozdań o zaległościach przedsiębiorców we wpłatach świadczeń należnych na rzecz sektora finansów publicznych."]

{"sheet":"Pomoc de minimis","index":21,"n_rows":21,"n_cols":4,"rows_kept":21,"cut":false,"hidden":false,"merged":[]}
["OŚWIADCZENIE O UZYSKANEJ POMOCY DE MINIMIS"]
["W wierszu poniżej należy wybrać czy wnioskodawca lub którykolwiek z podmiotów powiązanych stanowiący z nim „jedno przedsiębiorstwo” w rozumieniu Rozporządzenia Komisji (UE) nr 2023/2831 z dnia 13 grudnia 2023 r. w sprawie stosowania art. 107 i 108 Traktatu o funkcjonowaniu Unii Europejskiej do pomocy de minimis otrzymał pomoc de minimis w okresie minionych trzech lat - trzy lata liczone wstecz od dnia przedstawiania informacji w przedmiotowym załączniku."]
[]
["Jeżeli wnioskodawca lub którykolwiek z podmiotów stanowiący z wnioskodawcą „jedno przedsiębiorstwo” w rozumieniu Rozporządzenia Komisji (UE) nr 2023/2831 w okresie minionych trzech lat uzyskał pomoc de minimis, należy wypełnić poniższą tabelę (istnieje możliwość dodawania wierszy, przy czym należy zwrócić uwagę aby wiersze dodane były w tabeli, a nie pod nią)"]
["Nazwa podmiotu (należy wskazać wnioskodawcę oraz wszystkie pozostałe podmioty stanowiące jedno przedsiębiorstwo z wnioskodawcą, które uzyskały pomoc de minimis)","Nazwa podmiotu udzielającego pomocy","Data udzielenia pomocy","Wartość pomocy brutto w Euro"]
[]
[]
[]
[]
[]
[]
[]
[]
[]
[]
[]
[]
[]
[]
[]
[null,null,"SUMA",{"$f":"SUM(D6:D20)","v":0}]

{"sheet":"Kumulacja pomocy","index":22,"n_rows":21,"n_cols":1,"rows_kept":21,"cut":false,"hidden":false,"merged":[]}
["Oświadczenie dotyczące kumulacji pomocy"]
["W związku z ubieganiem się o dofinansowanie projektu złożonego w ramach programu Fundusze Europejskie dla Lubelskiego 2021-2027 oświadczam, że (należy wybrać odpowiedź w poniższym wierszu z listy):"]
[]
["o takim samym lub podobnym zakresie rzeczowym w ramach wdrażanych przez LAWP Działań lub w ramach innego programu finansowanego ze środków publicznych"]
["oraz (należy wybrać odpowiedź w poniższym wierszu z listy):"]
[]
["Jednocześnie, w związku z ubieganiem się o dofinansowanie projektu, złożonego w ramach programu Fundusze Europejskie dla Lubelskiego 2021-2027 oświadczam, że w odniesieniu do kosztów kwalifikowalnych ujętych w projekcie, pokrywających się częściowo lub w całości (należy wybrać odpowiedź w poniższym wierszu z listy):"]
[]
["W przypadku gdy wnioskodawca przedkładał wniosek o dofinansowanie o takim samym lub podobnym zakresie do niniejszego projektu, będącego przedmiotem oceny, w celu uzyskania finansowania ze środków publicznych, należy złożyć szczegółowe wyjaśnienia na temat tego wniosku m.in. numer wniosku, zakres wniosku, informacje o pokrywających się kosztach."]
[]
[]
[]
[]
[]
[]
[]
[]
["oświadczam, że uzyskałem dofinansowanie na realizację projektu o takim samym lub podobnym zakresie, o którym mowa powyżej."]
["oświadczam, że nie uzyskałem dofinansowania na realizację projektu o takim samym lub podobnym zakresie, o którym mowa powyżej."]
["została mi przyznana inna pomoc państwa (w tym pomoc de minimis)."]
["nie została  mi przyznana inna pomoc państwa (w tym pomoc de minimis)."]

{"sheet":"Tajemnica przedsiębiorstwa","index":23,"n_rows":4,"n_cols":1,"rows_kept":4,"cut":false,"hidden":false,"merged":[]}
["Oświadczenie dotyczące tajemnicy przedsiębiorstwa"]
["W związku z ubieganiem się o dofinansowanie projektu oświadczam, że informacje zawarte we wniosku posiadają wartość gospodarczą i są prawnie zastrzeżone jako informacje poufne lub podjęto w przedsiębiorstwie niezbędne działania w celu zachowania ich poufności oraz nie są informacjami powszechnie dostępnymi i w związku z tym stanowią tajemnicę przedsiębiorstwa w rozumieniu art. 11 ust. 4 ustawy z dnia 16 kwietnia 1993 r. o zwalczaniu nieuczciwej konkurencji. Wyrażam zgodę na udostępnienie ww. danych wyłącznie, jeżeli konieczność ich udostępnienia będzie wynikać z przepisów obowiązującego prawa, w niezbędnym do powyższego zakresie. Jednocześnie wyrażam zgodę na wykorzystanie ww. informacji w celu wykonywania czynności niezbędnych do oceny dokumentacji aplikacyjnej, rozliczenia oraz kontroli projektu."]
[]
["W przypadku wyboru opcji \"TAK\" w polu poniżej należy wskazać punkty we wniosku oraz załącznikach, w których zawarto informacje stanowiące prawnie chronioną tajemnicę przedsiębiorstwa. Jeżeli w pytaniu powyżej wybrano opcję \"NIE\" pole opisowe należy pozostawić niewypełnione."]

{"sheet":"Oświadczenia","index":24,"n_rows":21,"n_cols":2,"rows_kept":21,"cut":false,"hidden":false,"merged":[]}
["Oświadczenia wnioskodawcy","Potwierdzam złożenie oświadczenia"]
["Zakładka Oświadczenia wnioskodawcy służy do potwierdzenia przez wnioskodawcę prawdziwości zawartych danych we wniosku i załącznikach (stanowiących jego integralną część) oraz przyjęcia pełnej odpowiedzialności za realizację projektu dofinansowanego z funduszy europejskich i wszystkich konsekwencji wynikających z tego faktu, co odbywa się poprzez zapoznanie się i zaakceptowanie każdego z poniższych warunków realizacji projektu w ramach programu Fundusze Europejskie dla Lubelskiego 2021-2027, poprzez wybór opcji \"TAK\" lub \"NIE DOTYCZY\" w kolumnie \"Potwierdzam złożenie oświadczenia\" (brak wyboru opcji \"TAK\" lub \"NIE DOTYCZY\" jest równoznacznych z brakiem złożenia danego oświadczenia przez wnioskodawcę)."]
["Oświadczam, że dane zawarte we wniosku o dofinansowanie złożonym w WOD2021 są zgodne z rzeczywistym stanem faktycznym i prawnym."]
["Oświadczam, że dane zawarte w niniejszym Biznes Planie część opisowa oraz wszystkich pozostałych załącznikach składanych wraz z wnioskiem o dofinansowanie w WOD2021 są zgodne ze stanem faktycznym i prawnym."]
["Oświadczam, że jestem świadomy/świadoma odpowiedzialności karnej, o której mowa w art. 233 § 1 ustawy z dnia 6 czerwca 1997 r. Kodeks karny, za podanie fałszywych danych lub złożenie fałszywych oświadczeń, w ramach dokumentacji niezbędnej do oceny projektu lub objęcia go dofinansowaniem."]
["Oświadczam, że jestem świadomy/świadoma odpowiedzialności karnej, za przedkładanie podrobionych, przerobionych, poświadczających nieprawdę albo nierzetelnych dokumentów oraz za składanie nierzetelnych, pisemnych oświadczeń co do okoliczności o istotnym znaczeniu dla uzyskania wsparcia, a także odpowiedzialności karnej za niepowiadomienie LAWP o powstaniu sytuacji mogącej mieć wpływ na wstrzymanie albo ograniczenie wysokości udzielonego wsparcia."]
["Oświadczam, że nie podlegam wykluczeniu z możliwości ubiegania się o wsparcie z funduszy strukturalnych na podstawie art. 207 ust. 4 Ustawy z dnia 27 sierpnia 2009 r. o finansach publicznych, art. 12 ust. 1 pkt 1 Ustawy z dnia 15 czerwca 2012 r. o skutkach powierzenia wykonywania pracy cudzoziemcom przebywającym wbrew przepisom na terenie Rzeczypospolitej Polskiej, art. 9 ust. 1 pkt 2a Ustawy z dnia 28 października 2002 r. o odpowiedzialności podmiotów zbiorowych za czyny zabronione pod groźbą kary."]
["Oświadczam, że w stosunku do członków organu zarządzającego wnioskodawcy nie toczy się postępowanie karne lub karne skarbowe za przestępstwo składania fałszywych zeznań, przekupstwa, przeciwko mieniu, wiarygodności dokumentów, obrotowi pieniędzmi i papierami wartościowymi, obrotowi gospodarczemu, systemowi bankowemu albo inne związane z wykonywaniem działalności gospodarczej lub popełnione w celu osiągnięcia korzyści majątkowych, w związku z dofinansowaniem, które zostało udzielone ze środków publicznych na realizację projektu temu wnioskodawcy, podmiotowi powiązanemu z nim osobowo lub kapitałowo lub członkowi organów zarządzających tego wnioskodawcy lub podmiotu."]
["Oświadczam, że nie ciąży na mnie obowiązek zwrotu pomocy wynikający z decyzji Komisji Europejskiej uznającej taką pomoc za niezgodną z prawem oraz z rynkiem wewnętrznym."]
["Oświadczam, że zgodnie z art. 66 Rozporządzenia Parlamentu Europejskiego i Rady (UE) nr 2021/1060 z dnia 24 czerwca 2021 r. projekt nie dotyczy przeniesienia produkcji oraz spełnia warunki, o których mowa w art. 73 ust. 2 lit. i ww. Rozporządzenia."]
["Oświadczam, że nie zostałem wykluczony z możliwości ubiegania się o dofinansowanie na podstawie Ustawy z dnia 13 kwietnia 2022 r. o szczególnych rozwiązaniach w zakresie przeciwdziałania wspieraniu agresji na Ukrainę oraz służących ochronie bezpieczeństwa narodowego."]
["Oświadczam, że projekt nie dotyczy rodzajów działalności wykluczonych, o których mowa w art. 7 ust. 1 Rozporządzenia Parlamentu Europejskiego i Rady (UE) 2021/1058 z dnia 24 czerwca 2021 r. w sprawie Europejskiego Funduszu Rozwoju Regionalnego i Funduszu Spójności."]
["Oświadczam, że zapoznałem/zapoznałam się z Regulaminem wyboru projektów i akceptuję jego zasady."]
["Oświadczam, że projekt jest zgodny z właściwymi przepisami prawa unijnego i polskiego."]
["Oświadczam, że nie pozostaję pod zarządem komisarycznym, nie znajduje się w toku likwidacji lub postępowania upadłościowego."]
["Oświadczam, że nie zalegam w opłacaniu składek na ubezpieczenie społeczne, ubezpieczenie zdrowotne, Fundusz Pracy i Fundusz Gwarantowanych Świadczeń Pracowniczych oraz podatków i innych należności publicznoprawnych."]
["Wyrażam zgodę na udostępnienie niniejszego wniosku podmiotom dokonującym ewaluacji, w tym w szczególności na udzielanie informacji na potrzeby ewaluacji przeprowadzanych przez Instytucję Zarządzającą, Instytucję Pośredniczącą lub inną uprawnioną instytucję lub jednostkę organizacyjną z zastrzeżeniem zapewnienia ochrony informacji w nim zawartych."]
["Wyrażam zgodę na kontrolę przeprowadzaną przez LAWP w miejscu realizacji projektu i/lub siedzibie wnioskodawcy oraz udostępnienie niezbędnych dokumentów."]
["Oświadczam, że projekt w zakresie, którego wsparcie stanowi pomoc publiczną nie dotyczy rodzajów działalności wykluczonych, o których mowa w art. 1 ust. 2 - 5 Rozporządzenia Komisji (UE) Nr 651/2014 z dnia 17 czerwca 2014 r. uznającego niektóre rodzaje pomocy za zgodne z rynkiem wewnętrznym w zastosowaniu art. 107 i 108 Traktatu."]
["Oświadczam, że projekt w zakresie którego wsparcie stanowi pomoc de minimis nie dotyczy rodzajów działalności wykluczonych, o których mowa w art. 1 ust. 1 Rozporządzenia Komisji (UE) Nr 2023/2831 z dnia 13 grudnia 2023 r. w sprawie stosowania art. 107 i 108 Traktatu o funkcjonowaniu Unii Europejskiej do pomocy de minimis."]
["Oświadczam, że  zapoznałem się z klauzulą informacyjną dotyczącą przetwarzania danych osobowych, określoną w Regulaminie wyboru projektów."]

{"sheet":"Słownik 2.7","index":25,"n_rows":24,"n_cols":1,"rows_kept":24,"cut":false,"hidden":true,"merged":[]}
["oświadczam, że uzyskałem dofinansowanie na realizację projektu o takim samym lub podobnym zakresie, o którym mowa powyżej."]
["oświadczam, że nie uzyskałem dofinansowania na realizację projektu o takim samym lub podobnym zakresie, o którym mowa powyżej."]
["została mi przyznana inna pomoc państwa (w tym pomoc de minimis). "]
["nie została  mi przyznana inna pomoc państwa (w tym pomoc de minimis). "]
[]
["TAK"]
["NIE "]
[]
["NIE - Oświadczam, iż nie mogę odzyskać w żaden sposób poniesionego kosztu podatku VAT.\nJednocześnie zobowiązuje się do zwrotu zrefundowanej w ramach projektu części poniesionego VAT, jeżeli zaistnieją przesłanki umożliwiające odzyskanie tego podatku.\nZobowiązuję się także do niezwłocznego poinformowania LAWP o jakichkolwiek zmianach w zakresie kwalifikowalności podatku VAT, jak również zobowiązuję się do udostepnienia dokumentacji finansowo-księgowej oraz udzielenia uprawnionym organom kontrolnym informacji umożliwiających weryfikację kwalifikowalności podatku VAT."]
["TAK"]
[]
["NIE"]
["TAK"]
[]
["I półrocze 2023 r."]
["II półrocze 2023 r."]
["I półrocze 2024 r."]
["II półrocze 2024 r."]
["I półrocze 2025 r."]
["II półrocze 2025 r."]
["I półrocze 2026 r."]
["II półrocze 2026 r."]
["I półrocze 2027 r."]
["II półrocze 2027 r."]

{"sheet":"słownik RIS","index":26,"n_rows":117,"n_cols":1,"rows_kept":117,"cut":false,"hidden":true,"merged":[]}
["TAK"]
["NIE"]
[]
[]
["I. ŻYWNOŚĆ WYSOKIEJ JAKOŚCI "]
["111 Innowacyjne działania na rzecz poprawy żyzności i produktywności gleb"]
["\n112 Wysokiej jakości materiał siewny, rozmnożeniowy i nasadzeniowy o zwiększonej odporności na choroby i szkodniki oraz warunki suszy rolniczej\n"]
["113 Bezpieczeństwo oraz poprawa jakości surowców roślinnych w zakresie stosowania nawozów i środków ochrony roślin\n"]
["114 Innowacyjne technologie i maszyny dla rolnictwa, w tym precyzyjnego"]
["121 Zdrowa żywność, w tym ekologiczna, tradycyjna i regionalna"]
["122 Innowacyjne sieci dystrybucji zdrowej, lokalnej i sezonowej żywności tzw.kooperatywy spożywcze"]
["123 Technologie przetwórstwa rolno-spożywczego ograniczające zużycie energii i wody"]
["124 Technologie podnoszące jakość, trwałość, funkcjonalność i bezpieczeństwo produktów pochodzenia roślinnego i zwierzęcego\n"]
["125 Zrównoważona produkcja, przetwórstwo i przechowalnictwo"]
["126 Innowacyjne systemy i oprogramowanie oraz inteligentne metody i narzędzia zarządzania i monitorowania przebiegu procesu produkcji oraz oceny jakości surowców i produktów gotowych                                                                                                                                                                                                                                                                                                                                                                                                                                                \n\n"]
["127 Rozwijanie narzędzi i nowoczesnych technik badawczych oraz markerów jakości żywności"]
["128 Innowacyjne systemy, układy, sensory i detektory elektroniczne i fotoniczne do zastosowań rolno-spożywczych "]
["129 Technologie cyfrowe, w tym rozwiązania informatyczne służące do gromadzenia i analizy danych, wspomagających procesy produkcyjne w sektorze rolno-spożywczym\n"]
["130 Technologie w zakresie transportu i przechowywania żywności"]
["131 Innowacyjne modele marketingowe w promocji żywności wysokiej jakości"]
[]
["II. ZIELONA GOSPODARKA"]
["211 Efektywne zarządzanie zasobami obejmujące ich przetwarzanie, produkcję, sprzedaż, użytkowanie i zagospodarowanie odpadów\n"]
["212 Wykorzystywanie biomasy do produkcji materiałów zastępujących inne nieodnawialne surowce"]
["213 Obniżanie emisyjności przemysłu"]
["214 Technologie i systemy przeciwdziałające zagrożeniom środowiskowym oraz monitoring poziomu zanieczyszczeń"]
["215 Biodegradowalność surowców oraz optymalizacja zagospodarowania odpadów poprodukcyjnych (technologie, procesy, produkty)\n"]
["216 Zero waste food"]
["217 Biotechnologie w inżynierii i ochronie środowiska"]
["218 Innowacyjne systemy, układy, sensory i detektory elektroniczne i fotoniczne do zastosowań w ochronie środowiska"]
["219 Metody ochrony i rekultywacji gleb oraz oczyszczanie ścieków"]
["220 Oszczędna i efektywna gospodarka wodna"]
["221 Czyste technologie węglowe"]
["222 Substancje bioaktywne przeznaczone do wytwarzania środków ochrony roślin, nawozów i leków, w tym leków weterynaryjnych \n"]
["223 (Bio)polimery i (bio)tworzywa"]
["231 Zwiększenie wykorzystania odnawialnych źródeł energii"]
["232 Energia z odpadów i paliw alternatywnych"]
["233 Poprawa efektywności konwersji energii"]
["234 Innowacyjne systemy wytwarzania, zarządzania, przesyłu, dystrybucji energii\n"]
["235 Inteligentne rozwiązania w sieciach elektroenergetycznych"]
["236 Metody i technologie magazynowania energii"]
["237 Smart mettering i inteligentne liczniki energii"]
["238 Nowoczesne systemy ciepłownicze i chłodnicze"]
["239 Systemy izolacyjne sprzyjające energooszczędności"]
["240 Systemy dystrybucji energii w budynkach"]
["241 Inteligentne, energooszczędne systemy oświetleniowe"]
["242 Rozwój infrastruktury sprzyjającej elektromobilności"]
[]
["III. ZDROWE SPOŁECZEŃSTWO"]
["311 Promocja zdrowego stylu życia, w tym rozwój branży wellness"]
["312 Profilaktyka chorób cywilizacyjnych i przeciwdziałanie zagrożeniom epidemiologicznym, w tym nowe innowacyjne metody leczenia i profilaktyki"]
["313 Turystyka, w tym turystyka zdrowotna i prozdrowotna"]
["314 Wykorzystanie zasobów (walorów) naturalnych regionu w funkcji uzdrowiskowej\n"]
["315 Rozwój usług i produktów skierowanych do osób starszych, z niepełnosprawnościami, sprzyjających utrzymaniu ich samodzielności i aktywności"]
["316 Nowe leki, innowacyjne suplementy diety, żywność funkcjonalna i środki spożywcze specjalnego przeznaczenia żywieniowego"]
["317 Innowacyjne kosmetyki"]
["318 Innowacyjne substancje biologicznie czynne jako potencjalne leki nowej generacji"]
["321 Diagnostyka i terapia genowa"]
["322 Medycyna spersonalizowana"]
["323 Zintegrowana opieka medyczna"]
["324 Chirurgia minimalnie inwazyjna"]
["325 Medycyna regeneracyjna i inżynieria tkankowa"]
["326 Medycyna translacyjna"]
["331 Teleopieka i telemedycyna"]
["332 Nowoczesne technologie materiałowe i materiały w medycynie i rehabilitacji"]
["333 Informatyczne narzędzia medyczne do gromadzenia i analizy danych medycznych w celach diagnostycznych, terapeutycznych i rehabilitacyjnych"]
["334 Innowacyjne systemy, układy, sensory i detektory elektroniczne i fotoniczne do zastosowań medycznych"]
["335 Biosensory"]
["336 Algorytmy sztucznej inteligencji do zastosowania medycznego"]
["337 Robotyka medyczna"]
["338 Rzeczywistość wirtualna i technologie symulacyjne w medycynie"]
[]
["IV. CYFROWE SPOŁECZEŃSTWO"]
["411 Gromadzenie i przechowywanie danych, dygitalizaja zasobów, chmury"]
["412 Aplikacje i analizy potencjału rynku"]
["413 Projektowanie, zarządzanie, optymalizacja i sterowanie procesami produkcyjnymi"]
["414 Technologie i systemy służące świadczeniu usług dla biznesu"]
["415 Technologie i inteligentne systemy telekomunikacyjne i teleinformatyczne, w tym internet rzeczy"]
["416 Systemy służące sprzedaży oraz obsłudze klienta, platformy e-zakupowe, telemarketing"]
["417 Systemy i usługi płatnicze i finansowe (e-commerce)"]
["421 Systemy wykorzystywane w transporcie, w tym systemy sterowania ruchem"]
["422 Inteligentne bezzałogowe statki latające"]
["423 Systemy i urządzenia sterowane numerycznie"]
["431 Bezpieczeństwo i systemy ochrony cyberprzestrzeni"]
["432 Cyberbezpieczeństwo systemów energetycznych"]
["433 Systemy przewidywania i zapobiegania awariom"]
["434 Przestrzenne systemy nawigacje i monitorowania, w tym rozwiązania stosowane w obiektach zamkniętych"]
["435 Zintegrowane systemy zarządzania budynkami"]
["436 Systemy bezinwazyjnego pomiaru i detekcji"]
["437 Projektowanie, w tym projektowanie wnętrz i zabudowy"]
["438 Rzeczywistość wirtualna i technologie symulacyjne"]
["441 Wykorzystanie TIK na rzecz rozwoju edukacji w obszarze umiejętności cyfrowych w celu stworzenia warunków do edukacji zdalnej (na odległość)"]
["442 Innowacyjne produkty i technologie stosowane w upowszechnianiu kultury i dziedzictwa narodowego oraz zabezpieczaniu zbiorów i ich konserwacji"]
["443 Innowacyjne produkty i technologie stosowane w sporcie, rozrywce, reklamie i multimediach"]
["444 Rozwój oprogramowania i technologii związanych ze sztuczną inteligencją i uczeniem maszynowym"]
[]
["V. TECHNOLOGIE MATERIAŁOWE, PROCESY PRODUKCYJNE I LOGISTYCZNE"]
["511 Materiały o podwyższonych parametrach konstrukcyjnych i izolacyjnych, trwałości oraz charakteryzujące się wysoką odpornością na zużycie i czynniki degradujące"]
["512 Niskoodpadowe technologie i linie produkcyjne wykorzystywane w procesach produkcyjnych"]
["513 Innowacyjne maszyny i urządzenia zmniejszające energochłonność i pracochłonność  produkcji oraz zwiększające bezpieczeństwo pracy"]
["514 Technologie i linie produkcyjne do wytwarzania materiałów i wyrobów z zastosowaniem surowców towarzyszących, produktów ubocznych i odpadów"]
["515 Nowoczesne technologie i materiały dla sektora lotniczego"]
["516 Inżynieria mechaniczna w zakresie nowoczesnych metod wytwarzania"]
["517 Innowacyjne metody i narzędzia stosowane do oceny jakości wykonanych produktów\n"]
["521 Nowoczesne technologie budowy dróg i mostów"]
["522 Innowacyjne konstrukcje nośne z zastosowaniem nowoczesnych materiałów konstrukcyjnych, w tym kompozytów"]
["523 Technologie i systemy sprzyjające racjonalnemu wykorzystaniu ciepła i wody w procesach produkcyjnych"]
["524 Ponowne wykorzystanie materiałów oraz elementów budowlanych (recykling w budoownictwie)"]
["531 Innowacyjne pokrycia dachowe oraz zawansowane technologicznie okna i drzwi\n"]
["532 Innowacyjne systemy, układy, sensory i detektory elektroniczne i fotoniczne do  zastosowań w procesach produkcyjnych i logistycznych, energetyce i budownictwie"]
["533 Innowacyjne technologie VR do zastosowań w procesach produkcyjnych i budownictwie"]
["541 Automatyka przemysłowa i usługowa"]
["542 Inteligentne opakowania umożliwiające monitoring jakości i zawartości otoczenia\n\n\n"]
["543 Inteligentne magazyny z wysoce zautomatyzowanymi procesami logistycznymi"]
["544 Nowoczesne opakowania, w tym biodegradowalne i wielokrotnego użytku"]
["545 Zarządzanie procesami technologicznymi i logistycznymi, w tym sterowanie łańcuchem dostaw"]
["546 Systemy i rozwiązania stosowane w usługach spedytorskich i dyspozytorskich"]

{"sheet":"słownik koszty 1.3","index":27,"n_rows":20,"n_cols":20,"rows_kept":20,"cut":false,"hidden":true,"merged":[]}
["KOSZTY B+R",null,null,null,null,"Wspólny",null,null,"Zadania",null,null,null,null,null,null,null,null,null,null,"I półrocze 2023 r."]
["Personel Projektu",null,null,null,null,"Personel Projektu (tylko komponent B+R)",null,null,"Badania przemysłowe",null,null,null,null,null,null,null,null,null,null,"II półrocze 2023 r."]
["Usługi zewnętrzne",null,null,null,null,"Usługi zewnętrzne (nie dotyczy wdrożenia)",null,null,"Eksperymentalne prace rozwojowe",null,null,null,null,null,null,null,null,null,null,"I półrocze 2024 r."]
["Amortyzacja",null,null,null,null,"Amortyzacja (tylko komponent B+R)",null,null,"Prace przedwdrożeniowe",null,null,null,null,null,null,null,null,null,null,"II półrocze 2024 r."]
["Nieruchomości",null,null,null,null,"Nieruchomości (nie dotyczy prac przedwdrożeniowych)",null,null,"Bezpośrednie wdrożenie ",null,null,null,null,null,null,null,null,null,null,"I półrocze 2025 r."]
["Dostawy (inne niż środki trwałe)",null,null,null,null,"Dostawy (inne niż środki trwałe) (tylko komponent B+R)",null,null,null,null,null,null,null,null,null,null,null,null,null,"II półrocze 2025 r."]
["Podatki i opłaty",null,null,null,null,"Podatki i opłaty",null,null,null,null,null,null,null,null,null,null,null,null,null,"I półrocze 2026 r."]
[null,null,null,null,null,"Roboty budowlane (tylko wdrożenie)",null,null,null,null,null,null,null,null,null,null,null,null,null,"II półrocze 2026 r."]
["Komponent wdrożeniowy",null,null,null,null,"Środki trwałe/Dostawy (tylko wdrożenie)",null,null,null,null,null,null,null,null,null,null,null,null,null,"I półrocze 2027 r."]
[null,null,null,null,null,"Wartości niematerialne i prawne (tylko wdrożenie)",null,null,null,null,null,null,null,null,null,null,null,null,null,"II półrocze 2027 r."]
["Prace przedwdrożeniowe"]
["Usługi zewnętrzne"]
["Podatki i opłaty"]
[]
["Wdrożenie"]
["Nieruchomości"]
["Roboty budowlane"]
["Środki trwałe"]
["Wartości niematerialne i prawne"]
["Podatki i opłaty"]

{"sheet":"Słownik","index":28,"n_rows":31,"n_cols":1,"rows_kept":31,"cut":false,"hidden":true,"merged":[]}
["uzyskałem dofinansowanie na jego realizację."]
["nie uzyskałem dofinansowania na jego realizację."]
["została mi przyznana inna pomoc państwa (w tym pomoc de minimis). "]
["nie została  mi przyznana inna pomoc państwa (w tym pomoc de minimis). "]
[]
["TAK"]
["NIE "]
[]
["NIE - \nOświadczam, iż nie mogę odzyskać w żaden sposób poniesionego kosztu podatku VAT.\nJednocześnie zobowiązuje się do zwrotu zrefundowanej w ramach projektu części poniesionego VAT, jeżeli zaistnieją przesłanki umożliwiające odzyskanie tego podatku.\nZobowiązuję się także do niezwłocznego poinformowania LAWP o jakichkolwiek zmianach w zakresie kwalifikowalności podatku VAT, jak również zobowiązuję się do udostepnienia dokumentacji finansowo-księgowej oraz udzielenia uprawnionym organom kontrolnym informacji umożliwiających weryfikację kwalifikowalności podatku VAT."]
["TAK."]
[]
["NIE"]
["TAK"]
[]
["I półrocze 2023 r."]
["II półrocze 2023 r."]
["I półrocze 2024 r."]
["II półrocze 2024 r."]
["I półrocze 2025 r."]
["II półrocze 2025 r."]
["I półrocze 2026 r."]
["II półrocze 2026 r."]
["I półrocze 2027 r."]
["II półrocze 2027 r."]
[]
[]
[]
["Utworzenie nowego zakładu"]
["Zwiększenie zdolności produkcyjnej istniejącego zakładu"]
["Dywersyfikacja produkcji zakładu poprzez wprowadzenie produktów lub usług dotąd niewytwarzanych lub nieświadczonych przez ten zakład"]
["Zasadnicza zmiana całościowego procesu produkcji produktu lub produktów, których dotyczy inwestycja w ten zakład"]